Department Family,Entity,Date,Expense Type,Expense Area,Supplier,Transaction Number,Amount,Description
Ministry of Justice,HMCTS,09-Jun-14 ,211000-Judicial Salaries - Salaried,FC999-Centrally Managed Costs by F&G,JUDICIAL PENSIONS SCHEME,3132,"2,752,650.97 ",Pension payment to payroll master for Judiciary
Ministry of Justice,HMCTS,09-Jun-14 ,211000-Judicial Salaries - Salaried,FC999-Centrally Managed Costs by F&G,JUDICIAL PENSIONS SCHEME,3132,"3,362,917.98 ",Pension payment to payroll master for Judiciary
Ministry of Justice,HMCTS,25-Jun-14 ,212001-Agency staff,AT899-HQ - ICT,CAPITA RESOURCING LTD,2897416,"25,650.00 ",New Request for 57828 CIPHERL00768 -Deputy Head of National Judicial Support and RCJG IT (RC Service Delivery)  for a maximum of 121 days from 02/02/2014 to 26/07/2014
Ministry of Justice,HMCTS,25-Jun-14 ,212001-Agency staff,AT899-HQ - ICT,CAPITA RESOURCING LTD,2897416,"5,130.00 ",VAT on New Request for 57828 CIPHERL00768 -Deputy Head of National Judicial Support and RCJG IT (RC Service Delivery) - for a maximum of 121 days from 02/02/2014 to 26/07/2015
Ministry of Justice,HMCTS,06-Jun-14 ,221000-Property Rent and Rates,FZ999-Midlands Region,LONDON & SCOTTISH PROPERTY MANAGEMENT LTD,2877879,"143,625.00 ",Rent payment Tribunal site
Ministry of Justice,HMCTS,06-Jun-14 ,221000-Property Rent and Rates,FZ999-Midlands Region,LONDON & SCOTTISH PROPERTY MANAGEMENT LTD,2877879,"28,725.00 ",Rent payment Tribunal site
Ministry of Justice,HMCTS,27-Jun-14 ,221000-Property Rent and Rates,FZ999-Midlands Region,LONDON & SCOTTISH PROPERTY MANAGEMENT LTD,2899644,"62,500.00 ",Rent payment Tribunal site
Ministry of Justice,HMCTS,27-Jun-14 ,221000-Property Rent and Rates,FZ999-Midlands Region,LONDON & SCOTTISH PROPERTY MANAGEMENT LTD,2899644,"12,500.00 ",Rent payment Tribunal site
Ministry of Justice,HMCTS,06-Jun-14 ,221000-Property Rent and Rates,SM999-National Business Centres,TLG LLC,2878155,"71,817.83 ",Rent payment Tribunal site
Ministry of Justice,HMCTS,06-Jun-14 ,221000-Property Rent and Rates,SM999-National Business Centres,TLG LLC,2878155,"14,363.57 ",Rent payment Tribunal site
Ministry of Justice,HMCTS,10-Jun-14 ,221000-Property Rent and Rates,BZ999-London Region,ORBIT PROPERTY MANAGEMENT,2880335,"182,449.38 ",Rent payment Tribunal site
Ministry of Justice,HMCTS,10-Jun-14 ,221000-Property Rent and Rates,BZ999-London Region,ORBIT PROPERTY MANAGEMENT,2880335,"36,489.88 ",Rent payment Tribunal site
Ministry of Justice,HMCTS,06-Jun-14 ,221000-Property Rent and Rates,HZ999-North East Region,CLSH MANAGEMENT LTD,2877622,"113,050.25 ",Rent payment Tribunal site
Ministry of Justice,HMCTS,06-Jun-14 ,221000-Property Rent and Rates,HZ999-North East Region,CLSH MANAGEMENT LTD,2877622,"22,610.05 ",Rent payment Tribunal site
Ministry of Justice,HMCTS,20-Jun-14 ,221000-Property Rent and Rates,FZ999-Midlands Region,HELIX PROPERTIES,2892492,"21,830.60 ",Rent payment Tribunal site
Ministry of Justice,HMCTS,20-Jun-14 ,221000-Property Rent and Rates,FZ999-Midlands Region,HELIX PROPERTIES,2892492,"4,366.12 ",Rent payment Tribunal site
Ministry of Justice,HMCTS,06-Jun-14 ,221000-Property Rent and Rates,BZ999-London Region,DERWENT LONDON,2877666,"430,000.00 ",Rent payment Tribunal site
Ministry of Justice,HMCTS,06-Jun-14 ,221000-Property Rent and Rates,BZ999-London Region,DERWENT LONDON,2877666,"86,000.00 ",Rent payment Tribunal site
Ministry of Justice,HMCTS,20-Jun-14 ,221000-Property Rent and Rates,GZ999-North West Region,MARDAN NORWICH LTD,171701,"120,000.00 ",Rent payment Tribunal site
Ministry of Justice,HMCTS,20-Jun-14 ,221000-Property Rent and Rates,GZ999-North West Region,MARDAN NORWICH LTD,171701,"24,000.00 ",Rent payment Tribunal site
Ministry of Justice,HMCTS,20-Jun-14 ,221000-Property Rent and Rates,SM999-National Business Centres,MARCUS KING & CO,2892608,"32,844.00 ",Rent payment Tribunal site
Ministry of Justice,HMCTS,20-Jun-14 ,221000-Property Rent and Rates,SM999-National Business Centres,MARCUS KING & CO,2892608,"6,568.80 ",Rent payment Tribunal site
Ministry of Justice,HMCTS,20-Jun-14 ,221000-Property Rent and Rates,SM999-National Business Centres,MARCUS KING & CO,2892608,"32,844.00 ",Rent payment Tribunal site
Ministry of Justice,HMCTS,20-Jun-14 ,221000-Property Rent and Rates,SM999-National Business Centres,MARCUS KING & CO,2892608,"6,568.80 ",Rent payment Tribunal site
Ministry of Justice,HMCTS,20-Jun-14 ,221000-Property Rent and Rates,SM999-National Business Centres,MARCUS KING & CO,2892608,"26,880.00 ",Rent payment Tribunal site
Ministry of Justice,HMCTS,20-Jun-14 ,221000-Property Rent and Rates,SM999-National Business Centres,MARCUS KING & CO,2892608,"5,376.00 ",Rent payment Tribunal site
Ministry of Justice,HMCTS,10-Jun-14 ,221000-Property Rent and Rates,BZ999-London Region,BRUNTWOOD,2879708,"25,610.75 ",Rent payment Tribunal site
Ministry of Justice,HMCTS,10-Jun-14 ,221000-Property Rent and Rates,BZ999-London Region,BRUNTWOOD,2879708,"5,122.15 ",Rent payment Tribunal site
Ministry of Justice,HMCTS,17-Jun-14 ,221000-Property Rent and Rates,GZ999-North West Region,BRUNTWOOD,2887497,"206,880.50 ",Rent payment Tribunal site
Ministry of Justice,HMCTS,17-Jun-14 ,221000-Property Rent and Rates,GZ999-North West Region,BRUNTWOOD,2887497,"41,376.10 ",Rent payment Tribunal site
Ministry of Justice,HMCTS,10-Jun-14 ,221000-Property Rent and Rates,SJ999-Scotland,CBRE LTD,2879737,"90,357.75 ",Rent payment Tribunal site
Ministry of Justice,HMCTS,10-Jun-14 ,221000-Property Rent and Rates,SJ999-Scotland,CBRE LTD,2879737,"18,071.55 ",Rent payment Tribunal site
Ministry of Justice,HMCTS,10-Jun-14 ,221000-Property Rent and Rates,SJ999-Scotland,CBRE LTD,2879737,"59,846.50 ",Rent payment Tribunal site
Ministry of Justice,HMCTS,10-Jun-14 ,221000-Property Rent and Rates,SJ999-Scotland,CBRE LTD,2879737,"11,969.30 ",Rent payment Tribunal site
Ministry of Justice,HMCTS,03-Jun-14 ,221000-Property Rent and Rates,FZ999-Midlands Region,STANDARD LIFE INVESTMENTS,2873076,"36,937.50 ",Rent payment Tribunal site
Ministry of Justice,HMCTS,03-Jun-14 ,221000-Property Rent and Rates,HZ999-North East Region,STANDARD LIFE INVESTMENTS,2873075,"39,203.75 ",Rent payment Tribunal site
Ministry of Justice,HMCTS,03-Jun-14 ,221000-Property Rent and Rates,HZ999-North East Region,STANDARD LIFE INVESTMENTS,2873075,"7,840.75 ",Rent payment Tribunal site
Ministry of Justice,HMCTS,03-Jun-14 ,221000-Property Rent and Rates,HZ999-North East Region,STANDARD LIFE INVESTMENTS,2873075,"35,537.50 ",Rent payment Tribunal site
Ministry of Justice,HMCTS,03-Jun-14 ,221000-Property Rent and Rates,HZ999-North East Region,STANDARD LIFE INVESTMENTS,2873075,"7,107.50 ",Rent payment Tribunal site
Ministry of Justice,HMCTS,18-Jun-14 ,221000-Property Rent and Rates,HZ999-North East Region,LAND SECURITIES PROPERTIES LTD,2890422,"79,314.81 ",Rent payment Tribunal site
Ministry of Justice,HMCTS,18-Jun-14 ,221000-Property Rent and Rates,HZ999-North East Region,LAND SECURITIES PROPERTIES LTD,2890422,"15,862.96 ",Rent payment Tribunal site
Ministry of Justice,HMCTS,10-Jun-14 ,221000-Property Rent and Rates,CZ999-South East Region,GE REAL ESTATE,2879864,"115,819.75 ",Rent payment Tribunal site
Ministry of Justice,HMCTS,10-Jun-14 ,221000-Property Rent and Rates,CZ999-South East Region,GE REAL ESTATE,2879864,"23,163.95 ",Rent payment Tribunal site
Ministry of Justice,HMCTS,06-Jun-14 ,221000-Property Rent and Rates,BZ999-London Region,JONES LANG LASALLE LTD,2877828,"490,306.00 ",Rent payment Tribunal site
Ministry of Justice,HMCTS,06-Jun-14 ,221000-Property Rent and Rates,BZ999-London Region,JONES LANG LASALLE LTD,2877828,"98,061.20 ",Rent payment Tribunal site
Ministry of Justice,HMCTS,03-Jun-14 ,221000-Property Rent and Rates,DZ999-South West Region,EDDISONS,2872567,"21,936.50 ",Rent payment Tribunal site
Ministry of Justice,HMCTS,03-Jun-14 ,221000-Property Rent and Rates,DZ999-South West Region,EDDISONS,2872567,"4,387.30 ",Rent payment Tribunal site
Ministry of Justice,HMCTS,03-Jun-14 ,221000-Property Rent and Rates,CZ999-South East Region,SAVILLS COMMERCIAL LTD,2873036,"24,500.00 ",Rent payment Tribunal site
Ministry of Justice,HMCTS,03-Jun-14 ,221000-Property Rent and Rates,CZ999-South East Region,SAVILLS COMMERCIAL LTD,2873036,"4,900.00 ",Rent payment Tribunal site
Ministry of Justice,HMCTS,06-Jun-14 ,221000-Property Rent and Rates,BZ999-London Region,FERNEX LTD,2877714,"137,625.00 ",Rent payment Tribunal site
Ministry of Justice,HMCTS,06-Jun-14 ,221000-Property Rent and Rates,BZ999-London Region,FERNEX LTD,2877714,"27,525.00 ",Rent payment Tribunal site
Ministry of Justice,HMCTS,10-Jun-14 ,221000-Property Rent and Rates,BZ999-London Region,SAVILLS COMMERCIAL LTD,2880422,"104,687.75 ",Rent payment Tribunal site
Ministry of Justice,HMCTS,10-Jun-14 ,221000-Property Rent and Rates,BZ999-London Region,SAVILLS COMMERCIAL LTD,2880422,"20,937.55 ",Rent payment Tribunal site
Ministry of Justice,HMCTS,06-Jun-14 ,221000-Property Rent and Rates,BZ999-London Region,SAVILLS COMMERCIAL LTD,2878092,"57,981.50 ",Rent payment Tribunal site
Ministry of Justice,HMCTS,06-Jun-14 ,221000-Property Rent and Rates,BZ999-London Region,SAVILLS COMMERCIAL LTD,2878092,"11,596.30 ",Rent payment Tribunal site
Ministry of Justice,HMCTS,10-Jun-14 ,221000-Property Rent and Rates,BZ999-London Region,ASHWELL ROGERS LLP,2879648,"231,875.00 ",Rent payment Tribunal site
Ministry of Justice,HMCTS,10-Jun-14 ,221000-Property Rent and Rates,BZ999-London Region,ASHWELL ROGERS LLP,2879648,"46,375.00 ",Rent payment Tribunal site
Ministry of Justice,HMCTS,24-Jun-14 ,221000-Property Rent and Rates,EZ999-Wales Region,COLUMBUS HOUSE PROPERTIES LTD,2894982,"85,625.00 ",Rent payment Tribunal site
Ministry of Justice,HMCTS,10-Jun-14 ,221000-Property Rent and Rates,BZ999-London Region,MAPELEY STEPS CONTRACTOR LTD,2880042,"50,842.00 ",Rent payment Tribunal site
Ministry of Justice,HMCTS,10-Jun-14 ,221000-Property Rent and Rates,BZ999-London Region,MAPELEY STEPS CONTRACTOR LTD,2880042,"10,168.40 ",Rent payment Tribunal site
Ministry of Justice,HMCTS,13-Jun-14 ,221000-Property Rent and Rates,SM999-National Business Centres,CUSHMAN & WAKEFIELD LLP,2885213,"123,580.00 ",Rent payment Tribunal site
Ministry of Justice,HMCTS,13-Jun-14 ,221000-Property Rent and Rates,SM999-National Business Centres,CUSHMAN & WAKEFIELD LLP,2885213,"24,716.00 ",Rent payment Tribunal site
Ministry of Justice,HMCTS,18-Jun-14 ,222002-Other Property Costs,BZ999-London Region,DTZ DEBENHAM TIE LEUNG,2890349,"282,720.88 ",Other Government Department occupancy costs
Ministry of Justice,HMCTS,27-Jun-14 ,222002-Other Property Costs,AG999-HQ - Estates,HMRC,3209,"708,858.56 ",Other Government Department occupancy costs
Ministry of Justice,HMCTS,27-Jun-14 ,222002-Other Property Costs,FZ999-Midlands Region,LONDON & SCOTTISH PROPERTY MANAGEMENT LTD,2899644,"3,983.40 ",Service charge payment Tribunal site
Ministry of Justice,HMCTS,27-Jun-14 ,222002-Other Property Costs,FZ999-Midlands Region,LONDON & SCOTTISH PROPERTY MANAGEMENT LTD,2899644,796.68 ,Service charge payment Tribunal site
Ministry of Justice,HMCTS,10-Jun-14 ,222002-Other Property Costs,BZ999-London Region,ORBIT PROPERTY MANAGEMENT,2880335,"59,514.99 ",Service charge payment Tribunal site
Ministry of Justice,HMCTS,10-Jun-14 ,222002-Other Property Costs,BZ999-London Region,ORBIT PROPERTY MANAGEMENT,2880335,"11,903.00 ",Service charge payment Tribunal site
Ministry of Justice,HMCTS,06-Jun-14 ,222002-Other Property Costs,BZ999-London Region,DERWENT LONDON,2877666,"128,316.64 ",Service charge payment Tribunal site
Ministry of Justice,HMCTS,06-Jun-14 ,222002-Other Property Costs,BZ999-London Region,DERWENT LONDON,2877666,"25,663.33 ",Service charge payment Tribunal site
Ministry of Justice,HMCTS,10-Jun-14 ,222002-Other Property Costs,BZ999-London Region,BRUNTWOOD,2879708,"9,233.25 ",Service charge payment Tribunal site
Ministry of Justice,HMCTS,10-Jun-14 ,222002-Other Property Costs,BZ999-London Region,BRUNTWOOD,2879708,"1,846.65 ",Service charge payment Tribunal site
Ministry of Justice,HMCTS,17-Jun-14 ,222002-Other Property Costs,GZ999-North West Region,BRUNTWOOD,2887497,"17,912.00 ",Service charge payment Tribunal site
Ministry of Justice,HMCTS,17-Jun-14 ,222002-Other Property Costs,GZ999-North West Region,BRUNTWOOD,2887497,"3,582.40 ",Service charge payment Tribunal site
Ministry of Justice,HMCTS,17-Jun-14 ,222002-Other Property Costs,FZ999-Midlands Region,BRUNTWOOD,2887496,"45,173.25 ",Service charge payment Tribunal site
Ministry of Justice,HMCTS,17-Jun-14 ,222002-Other Property Costs,FZ999-Midlands Region,BRUNTWOOD,2887496,"9,034.65 ",Service charge payment Tribunal site
Ministry of Justice,HMCTS,10-Jun-14 ,222002-Other Property Costs,SJ999-Scotland,CBRE LTD,2879737,"57,920.75 ",Service charge payment Tribunal site
Ministry of Justice,HMCTS,10-Jun-14 ,222002-Other Property Costs,SJ999-Scotland,CBRE LTD,2879737,"11,584.15 ",Service charge payment Tribunal site
Ministry of Justice,HMCTS,10-Jun-14 ,222002-Other Property Costs,SJ999-Scotland,CBRE LTD,2879737,"38,349.50 ",Service charge payment Tribunal site
Ministry of Justice,HMCTS,10-Jun-14 ,222002-Other Property Costs,SJ999-Scotland,CBRE LTD,2879737,"7,669.90 ",Service charge payment Tribunal site
Ministry of Justice,HMCTS,13-Jun-14 ,222002-Other Property Costs,HZ999-North East Region,LAND SECURITIES PROPERTIES LTD,2885407,"23,759.72 ",Service charge payment Tribunal site
Ministry of Justice,HMCTS,13-Jun-14 ,222002-Other Property Costs,HZ999-North East Region,LAND SECURITIES PROPERTIES LTD,2885407,"4,751.94 ",Service charge payment Tribunal site
Ministry of Justice,HMCTS,27-Jun-14 ,222002-Other Property Costs,CZ999-South East Region,CAPITA PROPERTY & INFRASTRUCTURE LTD,2899442,"34,150.40 ",Service charge payment Tribunal site
Ministry of Justice,HMCTS,27-Jun-14 ,222002-Other Property Costs,CZ999-South East Region,CAPITA PROPERTY & INFRASTRUCTURE LTD,2899442,"6,830.08 ",Service charge payment Tribunal site
Ministry of Justice,HMCTS,03-Jun-14 ,222002-Other Property Costs,DZ999-South West Region,EDDISONS,2872567,"8,978.56 ",Service charge payment Tribunal site
Ministry of Justice,HMCTS,03-Jun-14 ,222002-Other Property Costs,DZ999-South West Region,EDDISONS,2872567,"1,795.71 ",Service charge payment Tribunal site
Ministry of Justice,HMCTS,03-Jun-14 ,222002-Other Property Costs,CZ999-South East Region,SAVILLS COMMERCIAL LTD,2873036,"12,815.50 ",Service charge payment Tribunal site
Ministry of Justice,HMCTS,03-Jun-14 ,222002-Other Property Costs,CZ999-South East Region,SAVILLS COMMERCIAL LTD,2873036,"2,563.10 ",Service charge payment Tribunal site
Ministry of Justice,HMCTS,10-Jun-14 ,222002-Other Property Costs,BZ999-London Region,MAPELEY STEPS CONTRACTOR LTD,2880042,"9,821.75 ",Service charge payment Tribunal site
Ministry of Justice,HMCTS,10-Jun-14 ,222002-Other Property Costs,BZ999-London Region,MAPELEY STEPS CONTRACTOR LTD,2880042,"1,964.35 ",Service charge payment Tribunal site
Ministry of Justice,HMCTS,13-Jun-14 ,222002-Other Property Costs,SM999-National Business Centres,CUSHMAN & WAKEFIELD LLP,2885213,"50,911.50 ",Service charge payment Tribunal site
Ministry of Justice,HMCTS,13-Jun-14 ,222002-Other Property Costs,SM999-National Business Centres,CUSHMAN & WAKEFIELD LLP,2885213,"10,182.30 ",Service charge payment Tribunal site
Ministry of Justice,HMCTS,06-Jun-14 ,222002-Other Property Costs,FZ999-Midlands Region,WOLVERHAMPTON CITY COUNCIL#AJ10100623,2877974,"300,000.00 ",Service charge payment Tribunal site
Ministry of Justice,HMCTS,17-Jun-14 ,222001-Maintenance,AG999-HQ - Estates,WYG MANAGEMENT SERVICES LTD,2888164,"32,793.17 ",Estates Director - HMCS HQ - WYG - Audit of the G4S contract
Ministry of Justice,HMCTS,17-Jun-14 ,222001-Maintenance,AG999-HQ - Estates,WYG MANAGEMENT SERVICES LTD,2888164,"6,558.63 ",Estates Director - HMCS HQ - WYG - Audit of the G4S contract
Ministry of Justice,HMCTS,25-Jun-14 ,222001-Maintenance,AG999-HQ - Estates,WYG MANAGEMENT SERVICES LTD,2897767,"33,428.92 ",Estates Director - HMCS HQ - WYG - Audit of the G4S contract
Ministry of Justice,HMCTS,25-Jun-14 ,222001-Maintenance,AG999-HQ - Estates,WYG MANAGEMENT SERVICES LTD,2897767,"6,685.78 ",Estates Director - HMCS HQ - WYG - Audit of the G4S contract
Ministry of Justice,HMCTS,13-Jun-14 ,222001-Maintenance,BZ999-London Region,TURNER & TOWNSEND PROJECT MANAGEMENT,2885867,"29,795.70 ",PRFD First Avenue House - Turner & Townsend - Professional Services - stage 4 to 7 for Client Rep & Cost Consultant
Ministry of Justice,HMCTS,13-Jun-14 ,222001-Maintenance,BZ999-London Region,TURNER & TOWNSEND PROJECT MANAGEMENT,2885867,"5,959.14 ",PRFD First Avenue House - Turner & Townsend - Professional Services - stage 4 to 7 for Client Rep & Cost Consultant
Ministry of Justice,HMCTS,10-Jun-14 ,222001-Maintenance,AG999-HQ - Estates,DAC BEACHCROFT LLP,2879784,"71,753.70 ",Disposals
Ministry of Justice,HMCTS,10-Jun-14 ,222001-Maintenance,AG999-HQ - Estates,DAC BEACHCROFT LLP,2879784,240.00 ,Disposals
Ministry of Justice,HMCTS,10-Jun-14 ,222001-Maintenance,AG999-HQ - Estates,DAC BEACHCROFT LLP,2879784,"14,350.74 ",Disposals
Ministry of Justice,HMCTS,10-Jun-14 ,222001-Maintenance,CZ999-South East Region,VINCI CONSTRUCTION UK LTD,2880525,"41,126.45 ",CIS Labour-1608-1-Works/FM-SW-RFP-Hertford Magistrates'-Vinci Construction UK Limited-Decorating & external repairs of windows at the site.  THIS REPLACES PO 20000158928
Ministry of Justice,HMCTS,10-Jun-14 ,261000-Fuel and Utilities,BZ999-London Region,THAMES WATER UTILITIES LTD,2880496,"42,012.28 ",HMCS London Region Consolidated - Water Costs - Thames Water 2013/14
Ministry of Justice,HMCTS,11-Jun-14 ,261000-Fuel and Utilities,GZ999-North West Region,EDF ENERGY LTD,2883195,"27,840.04 ",Manchester CJC - Electricity - EDF - 13/14
Ministry of Justice,HMCTS,11-Jun-14 ,261000-Fuel and Utilities,GZ999-North West Region,EDF ENERGY LTD,2883195,"5,568.01 ",Manchester CJC - Electricity - EDF - 13/14
Ministry of Justice,HMCTS,20-Jun-14 ,261000-Fuel and Utilities,BZ999-London Region,EDF ENERGY LTD,2892416,"44,801.35 ",EDF Energy Ltd - Electricity Costs for RCJ. Strand. Period April 2013 to March 2014. (Account No. 13592343). Business Entity IH701. NAC 222142.
Ministry of Justice,HMCTS,20-Jun-14 ,261000-Fuel and Utilities,BZ999-London Region,EDF ENERGY LTD,2892416,"8,960.27 ",EDF Energy Ltd - Electricity Costs for RCJ. Strand. Period April 2013 to March 2014. (Account No. 13592343). Business Entity IH701. NAC 222142.
Ministry of Justice,HMCTS,17-Jun-14 ,261000-Fuel and Utilities,EZ999-Wales Region,BRITISH GAS BUSINESS,2887484,412.47 ,BGB electricity for  HMCTS Wales 2014/15.
Ministry of Justice,HMCTS,17-Jun-14 ,261000-Fuel and Utilities,EZ999-Wales Region,BRITISH GAS BUSINESS,2887484,"22,069.81 ",BGB electricity for  HMCTS Wales 2014/15.
Ministry of Justice,HMCTS,17-Jun-14 ,261000-Fuel and Utilities,EZ999-Wales Region,BRITISH GAS BUSINESS,2887484,20.62 ,BGB electricity for  HMCTS Wales 2014/15.
Ministry of Justice,HMCTS,17-Jun-14 ,261000-Fuel and Utilities,EZ999-Wales Region,BRITISH GAS BUSINESS,2887484,"4,413.96 ",BGB electricity for  HMCTS Wales 2014/15.
Ministry of Justice,HMCTS,18-Jun-14 ,261000-Fuel and Utilities,DZ999-South West Region,BRITISH GAS BUSINESS,2890299,-0.02 ,South West Regionas Office (DA170) - British Gas - Account no.: 3053490 - Electricity Consumption costs (various sites) 13/14
Ministry of Justice,HMCTS,18-Jun-14 ,261000-Fuel and Utilities,DZ999-South West Region,BRITISH GAS BUSINESS,2890299,961.66 ,South West Regionas Office (DA170) - British Gas - Account no.: 3053490 - Electricity Consumption costs (various sites) 13/14
Ministry of Justice,HMCTS,18-Jun-14 ,261000-Fuel and Utilities,DZ999-South West Region,BRITISH GAS BUSINESS,2890299,"28,074.00 ",South West Regionas Office (DA170) - British Gas - Account no.: 3053490 - Electricity Consumption costs (various sites) 13/14
Ministry of Justice,HMCTS,18-Jun-14 ,261000-Fuel and Utilities,DZ999-South West Region,BRITISH GAS BUSINESS,2890299,48.08 ,South West Regionas Office (DA170) - British Gas - Account no.: 3053490 - Electricity Consumption costs (various sites) 13/14
Ministry of Justice,HMCTS,18-Jun-14 ,261000-Fuel and Utilities,DZ999-South West Region,BRITISH GAS BUSINESS,2890299,"5,614.80 ",South West Regionas Office (DA170) - British Gas - Account no.: 3053490 - Electricity Consumption costs (various sites) 13/14
Ministry of Justice,HMCTS,27-Jun-14 ,261000-Fuel and Utilities,CZ999-South East Region,BRITISH GAS BUSINESS,2899411,0.05 ,SE Region Consolidated - British Gas - Electricity supply
Ministry of Justice,HMCTS,27-Jun-14 ,261000-Fuel and Utilities,CZ999-South East Region,BRITISH GAS BUSINESS,2899411,0.01 ,SE Region Consolidated - British Gas - Electricity supply
Ministry of Justice,HMCTS,27-Jun-14 ,261000-Fuel and Utilities,CZ999-South East Region,BRITISH GAS BUSINESS,2899411,"1,795.62 ",SE Region Consolidated - British Gas - Electricity supply
Ministry of Justice,HMCTS,27-Jun-14 ,261000-Fuel and Utilities,CZ999-South East Region,BRITISH GAS BUSINESS,2899411,"49,812.37 ",SE Region Consolidated - British Gas - Electricity supply
Ministry of Justice,HMCTS,27-Jun-14 ,261000-Fuel and Utilities,CZ999-South East Region,BRITISH GAS BUSINESS,2899411,89.78 ,SE Region Consolidated - British Gas - Electricity supply
Ministry of Justice,HMCTS,27-Jun-14 ,261000-Fuel and Utilities,CZ999-South East Region,BRITISH GAS BUSINESS,2899411,"9,962.47 ",SE Region Consolidated - British Gas - Electricity supply
Ministry of Justice,HMCTS,17-Jun-14 ,261000-Fuel and Utilities,HZ999-North East Region,BRITISH GAS BUSINESS,2887484,0.02 ,222142-Utility - Electricity
Ministry of Justice,HMCTS,17-Jun-14 ,261000-Fuel and Utilities,HZ999-North East Region,BRITISH GAS BUSINESS,2887484,739.33 ,222142-Utility - Electricity
Ministry of Justice,HMCTS,17-Jun-14 ,261000-Fuel and Utilities,HZ999-North East Region,BRITISH GAS BUSINESS,2887484,"33,243.26 ",222142-Utility - Electricity
Ministry of Justice,HMCTS,17-Jun-14 ,261000-Fuel and Utilities,HZ999-North East Region,BRITISH GAS BUSINESS,2887484,36.97 ,222142-Utility - Electricity
Ministry of Justice,HMCTS,17-Jun-14 ,261000-Fuel and Utilities,HZ999-North East Region,BRITISH GAS BUSINESS,2887484,"6,648.65 ",222142-Utility - Electricity
Ministry of Justice,HMCTS,27-Jun-14 ,261000-Fuel and Utilities,BZ999-London Region,BRITISH GAS BUSINESS,2899410,-0.01 ,London Region Consolidated Electricity Charges - British Gas 2014/15 - Replacement for PO 20000173776
Ministry of Justice,HMCTS,27-Jun-14 ,261000-Fuel and Utilities,BZ999-London Region,BRITISH GAS BUSINESS,2899410,314.86 ,London Region Consolidated Electricity Charges - British Gas 2014/15 - Replacement for PO 20000173776
Ministry of Justice,HMCTS,27-Jun-14 ,261000-Fuel and Utilities,BZ999-London Region,BRITISH GAS BUSINESS,2899410,"22,479.28 ",London Region Consolidated Electricity Charges - British Gas 2014/15 - Replacement for PO 20000173776
Ministry of Justice,HMCTS,27-Jun-14 ,261000-Fuel and Utilities,BZ999-London Region,BRITISH GAS BUSINESS,2899410,15.74 ,London Region Consolidated Electricity Charges - British Gas 2014/15 - Replacement for PO 20000173776
Ministry of Justice,HMCTS,27-Jun-14 ,261000-Fuel and Utilities,BZ999-London Region,BRITISH GAS BUSINESS,2899410,"4,495.86 ",London Region Consolidated Electricity Charges - British Gas 2014/15 - Replacement for PO 20000173776
Ministry of Justice,HMCTS,27-Jun-14 ,261000-Fuel and Utilities,CZ999-South East Region,CORONA ENERGY,2899466,"1,260.66 ",SE Region Consolidated - Corona - Gas charges 2014/15 - Replacement for PO 20000173659
Ministry of Justice,HMCTS,27-Jun-14 ,261000-Fuel and Utilities,CZ999-South East Region,CORONA ENERGY,2899466,"46,787.45 ",SE Region Consolidated - Corona - Gas charges 2014/15 - Replacement for PO 20000173659
Ministry of Justice,HMCTS,27-Jun-14 ,261000-Fuel and Utilities,CZ999-South East Region,CORONA ENERGY,2899466,63.03 ,SE Region Consolidated - Corona - Gas charges 2014/15 - Replacement for PO 20000173659
Ministry of Justice,HMCTS,27-Jun-14 ,261000-Fuel and Utilities,CZ999-South East Region,CORONA ENERGY,2899466,"9,357.49 ",SE Region Consolidated - Corona - Gas charges 2014/15 - Replacement for PO 20000173659
Ministry of Justice,HMCTS,17-Jun-14 ,261000-Fuel and Utilities,DZ999-South West Region,CORONA ENERGY,2887566,-0.03 ,SE Region Consolidated - Corona - Gas charges 2014/15 - Replacement for PO 20000173659
Ministry of Justice,HMCTS,17-Jun-14 ,261000-Fuel and Utilities,DZ999-South West Region,CORONA ENERGY,2887566,"1,220.16 ",SW Finance Office _ Corona Energy _ DA170-222143 _ GAS _ Acct no.:20301400 _ Monthly Consolidated Bill for various sites in the SW Region.
Ministry of Justice,HMCTS,17-Jun-14 ,261000-Fuel and Utilities,DZ999-South West Region,CORONA ENERGY,2887566,"28,054.48 ",SW Finance Office _ Corona Energy _ DA170-222143 _ GAS _ Acct no.:20301400 _ Monthly Consolidated Bill for various sites in the SW Region.
Ministry of Justice,HMCTS,17-Jun-14 ,261000-Fuel and Utilities,DZ999-South West Region,CORONA ENERGY,2887566,61.01 ,SW Finance Office _ Corona Energy _ DA170-222143 _ GAS _ Acct no.:20301400 _ Monthly Consolidated Bill for various sites in the SW Region.
Ministry of Justice,HMCTS,17-Jun-14 ,261000-Fuel and Utilities,DZ999-South West Region,CORONA ENERGY,2887566,"5,610.90 ",SW Finance Office _ Corona Energy _ DA170-222143 _ GAS _ Acct no.:20301400 _ Monthly Consolidated Bill for various sites in the SW Region.
Ministry of Justice,HMCTS,17-Jun-14 ,261000-Fuel and Utilities,HZ999-North East Region,CORONA ENERGY,2887569,761.09 ,222143-Utility - Gas
Ministry of Justice,HMCTS,17-Jun-14 ,261000-Fuel and Utilities,HZ999-North East Region,CORONA ENERGY,2887569,"48,185.66 ",222143-Utility - Gas
Ministry of Justice,HMCTS,17-Jun-14 ,261000-Fuel and Utilities,HZ999-North East Region,CORONA ENERGY,2887569,38.05 ,222143-Utility - Gas
Ministry of Justice,HMCTS,17-Jun-14 ,261000-Fuel and Utilities,HZ999-North East Region,CORONA ENERGY,2887569,"9,637.13 ",222143-Utility - Gas
Ministry of Justice,HMCTS,17-Jun-14 ,261000-Fuel and Utilities,GZ999-North West Region,CORONA ENERGY,2887569,-0.02 ,NW Region Consolidated - Gas - Corona - April 13 - March 14
Ministry of Justice,HMCTS,17-Jun-14 ,261000-Fuel and Utilities,GZ999-North West Region,CORONA ENERGY,2887569,385.77 ,NW Region Consolidated - Gas - Corona - April 13 - March 14
Ministry of Justice,HMCTS,17-Jun-14 ,261000-Fuel and Utilities,GZ999-North West Region,CORONA ENERGY,2887569,"51,187.30 ",NW Region Consolidated - Gas - Corona - April 13 - March 14
Ministry of Justice,HMCTS,17-Jun-14 ,261000-Fuel and Utilities,GZ999-North West Region,CORONA ENERGY,2887569,19.29 ,NW Region Consolidated - Gas - Corona - April 13 - March 14
Ministry of Justice,HMCTS,17-Jun-14 ,261000-Fuel and Utilities,GZ999-North West Region,CORONA ENERGY,2887569,"10,237.46 ",NW Region Consolidated - Gas - Corona - April 13 - March 14
Ministry of Justice,HMCTS,27-Jun-14 ,261000-Fuel and Utilities,BZ999-London Region,CORONA ENERGY,2899466,-0.01 ,HMCTS London Region - Corona - Consolidated Gas Account 2014/15 - Replacement for PO 20000173777
Ministry of Justice,HMCTS,27-Jun-14 ,261000-Fuel and Utilities,BZ999-London Region,CORONA ENERGY,2899466,"1,476.41 ",HMCTS London Region - Corona - Consolidated Gas Account 2014/15 - Replacement for PO 20000173777
Ministry of Justice,HMCTS,27-Jun-14 ,261000-Fuel and Utilities,BZ999-London Region,CORONA ENERGY,2899466,"84,727.81 ",HMCTS London Region - Corona - Consolidated Gas Account 2014/15 - Replacement for PO 20000173777
Ministry of Justice,HMCTS,27-Jun-14 ,261000-Fuel and Utilities,BZ999-London Region,CORONA ENERGY,2899466,73.82 ,HMCTS London Region - Corona - Consolidated Gas Account 2014/15 - Replacement for PO 20000173777
Ministry of Justice,HMCTS,27-Jun-14 ,261000-Fuel and Utilities,BZ999-London Region,CORONA ENERGY,2899466,"16,945.56 ",HMCTS London Region - Corona - Consolidated Gas Account 2014/15 - Replacement for PO 20000173777
Ministry of Justice,HMCTS,18-Jun-14 ,261000-Fuel and Utilities,FZ999-Midlands Region,CORONA ENERGY,2890330,-0.01 ,Corona Energy gas HMCTS Midlands 2014/15.
Ministry of Justice,HMCTS,18-Jun-14 ,261000-Fuel and Utilities,FZ999-Midlands Region,CORONA ENERGY,2890330,54.11 ,Corona Energy gas HMCTS Midlands 2014/15.
Ministry of Justice,HMCTS,18-Jun-14 ,261000-Fuel and Utilities,FZ999-Midlands Region,CORONA ENERGY,2890330,"7,148.97 ",Corona Energy gas HMCTS Midlands 2014/15.
Ministry of Justice,HMCTS,18-Jun-14 ,261000-Fuel and Utilities,FZ999-Midlands Region,CORONA ENERGY,2890330,"1,082.26 ",Corona Energy gas HMCTS Midlands 2014/15.
Ministry of Justice,HMCTS,18-Jun-14 ,261000-Fuel and Utilities,FZ999-Midlands Region,CORONA ENERGY,2890330,"35,744.84 ",Corona Energy gas HMCTS Midlands 2014/15.
Ministry of Justice,HMCTS,18-Jun-14 ,261000-Fuel and Utilities,FZ999-Midlands Region,CORONA ENERGY,2890330,54.11 ,Corona Energy gas HMCTS Midlands 2014/15.
Ministry of Justice,HMCTS,18-Jun-14 ,261000-Fuel and Utilities,FZ999-Midlands Region,CORONA ENERGY,2890330,"7,148.97 ",Corona Energy gas HMCTS Midlands 2014/15.
Ministry of Justice,HMCTS,18-Jun-14 ,261000-Fuel and Utilities,FZ999-Midlands Region,CORONA ENERGY,2890330,-54.11 ,Corona Energy gas HMCTS Midlands 2014/15.
Ministry of Justice,HMCTS,18-Jun-14 ,261000-Fuel and Utilities,FZ999-Midlands Region,CORONA ENERGY,2890330,"-7,148.97 ",Corona Energy gas HMCTS Midlands 2014/15.
Ministry of Justice,HMCTS,19-Jun-14 ,222002-Other Property Costs,AG999-HQ - Estates,DEPARTMENT FOR WORK & PENSIONS (DWP),3177,"762,768.80 ",Other Government Department occupancy costs Tribunal sites
Ministry of Justice,HMCTS,19-Jun-14 ,222002-Other Property Costs,AG999-HQ - Estates,DEPARTMENT FOR WORK & PENSIONS (DWP),3175,"49,064.09 ",Other Government Department occupancy costs Tribunal sites
Ministry of Justice,HMCTS,19-Jun-14 ,222002-Other Property Costs,AG999-HQ - Estates,DEPARTMENT FOR WORK & PENSIONS (DWP),3176,"171,051.01 ",Rates charges - Tribunal sites
Ministry of Justice,HMCTS,03-Jun-14 ,222003-CIS Labour TFM Estates,DZ999-South West Region,MITIE JUSTICE LTD,2872848,"2,133.25 ","CIS Labour - TFM Works Package B, South West Region - Soft Services (Fixed) - Catering - Lease Contracts"
Ministry of Justice,HMCTS,17-Jun-14 ,222003-CIS Labour TFM Estates,BZ999-London Region,MITIE JUSTICE LTD,2887855,"5,337.49 ",Catering; Lease
Ministry of Justice,HMCTS,24-Jun-14 ,222003-CIS Labour TFM Estates,CZ999-South East Region,MITIE JUSTICE LTD,2895310,"6,055.48 ",Catering - Lease Contracts
Ministry of Justice,HMCTS,18-Jun-14 ,222003-CIS Labour TFM Estates,FZ999-Midlands Region,G4S INTEGRATED SERVICES (UK) LTD,2890373,607.26 ,Catering
Ministry of Justice,HMCTS,18-Jun-14 ,222003-CIS Labour TFM Estates,EZ999-Wales Region,G4S INTEGRATED SERVICES (UK) LTD,2890373,552.99 ,Wales - G4S - Catering
Ministry of Justice,HMCTS,20-Jun-14 ,222003-CIS Labour TFM Estates,HZ999-North East Region,G4S INTEGRATED SERVICES (UK) LTD,2892442,180.00 ,TFM Annual Fixed Catering
Ministry of Justice,HMCTS,20-Jun-14 ,222003-CIS Labour TFM Estates,GZ999-North West Region,G4S INTEGRATED SERVICES (UK) LTD,2892442,189.51 ,TFM Annual Fixed Catering
Ministry of Justice,HMCTS,03-Jun-14 ,222003-CIS Labour TFM Estates,CZ999-South East Region,MITIE JUSTICE LTD,2872848,198.61 ,Cleaning
Ministry of Justice,HMCTS,03-Jun-14 ,222003-CIS Labour TFM Estates,DZ999-South West Region,MITIE JUSTICE LTD,2872848,"111,134.67 ","CIS Labour - TFM Works Package B, South West Region - Soft Services (Fixed) - Cleaning"
Ministry of Justice,HMCTS,17-Jun-14 ,222003-CIS Labour TFM Estates,BZ999-London Region,MITIE JUSTICE LTD,2887855,"338,870.24 ",Cleaning
Ministry of Justice,HMCTS,24-Jun-14 ,222003-CIS Labour TFM Estates,CZ999-South East Region,MITIE JUSTICE LTD,2895310,"177,129.66 ",Cleaning
Ministry of Justice,HMCTS,18-Jun-14 ,222003-CIS Labour TFM Estates,FZ999-Midlands Region,G4S INTEGRATED SERVICES (UK) LTD,2890373,"179,476.39 ",Cleaning
Ministry of Justice,HMCTS,18-Jun-14 ,222003-CIS Labour TFM Estates,EZ999-Wales Region,G4S INTEGRATED SERVICES (UK) LTD,2890373,"67,588.82 ",Wales - G4S - Cleaning
Ministry of Justice,HMCTS,20-Jun-14 ,222003-CIS Labour TFM Estates,FZ999-Midlands Region,G4S INTEGRATED SERVICES (UK) LTD,2892442,"4,122.50 ",Cleaning
Ministry of Justice,HMCTS,20-Jun-14 ,222003-CIS Labour TFM Estates,HZ999-North East Region,G4S INTEGRATED SERVICES (UK) LTD,2892442,"164,320.13 ",TFM Annual Fixed Cleaning
Ministry of Justice,HMCTS,20-Jun-14 ,222003-CIS Labour TFM Estates,HZ999-North East Region,G4S INTEGRATED SERVICES (UK) LTD,2892442,"3,405.00 ",Cleaning
Ministry of Justice,HMCTS,20-Jun-14 ,222003-CIS Labour TFM Estates,GZ999-North West Region,G4S INTEGRATED SERVICES (UK) LTD,2892442,"177,226.82 ",TFM Annual Fixed Cleaning
Ministry of Justice,HMCTS,20-Jun-14 ,222003-CIS Labour TFM Estates,GZ999-North West Region,G4S INTEGRATED SERVICES (UK) LTD,2892442,"3,027.50 ",Cleaning
Ministry of Justice,HMCTS,03-Jun-14 ,222003-CIS Labour TFM Estates,CZ999-South East Region,MITIE JUSTICE LTD,2872848,"1,810.54 ",Waste Disposal
Ministry of Justice,HMCTS,03-Jun-14 ,222003-CIS Labour TFM Estates,DZ999-South West Region,MITIE JUSTICE LTD,2872848,"24,138.74 ","CIS Labour - TFM Works Package B, South West Region - Soft Services (Fixed) - Waste Disposal"
Ministry of Justice,HMCTS,03-Jun-14 ,222003-CIS Labour TFM Estates,CZ999-South East Region,MITIE JUSTICE LTD,2872848,"1,810.54 ",Waste Disposal
Ministry of Justice,HMCTS,17-Jun-14 ,222003-CIS Labour TFM Estates,BZ999-London Region,MITIE JUSTICE LTD,2887855,"48,106.95 ",Waste Disposal
Ministry of Justice,HMCTS,24-Jun-14 ,222003-CIS Labour TFM Estates,CZ999-South East Region,MITIE JUSTICE LTD,2895310,"51,991.04 ",Waste Disposal
Ministry of Justice,HMCTS,18-Jun-14 ,222003-CIS Labour TFM Estates,FZ999-Midlands Region,G4S INTEGRATED SERVICES (UK) LTD,2890373,"21,082.37 ",Waste Disposal
Ministry of Justice,HMCTS,18-Jun-14 ,222003-CIS Labour TFM Estates,EZ999-Wales Region,G4S INTEGRATED SERVICES (UK) LTD,2890373,"12,355.21 ",Wales - G4S - Waste Disposal
Ministry of Justice,HMCTS,20-Jun-14 ,222003-CIS Labour TFM Estates,HZ999-North East Region,G4S INTEGRATED SERVICES (UK) LTD,2892442,"36,522.18 ",TFM Annual Fixed Waste Disposal
Ministry of Justice,HMCTS,20-Jun-14 ,222003-CIS Labour TFM Estates,GZ999-North West Region,G4S INTEGRATED SERVICES (UK) LTD,2892442,"19,595.19 ",TFM Annual Fixed Waste Disposal
Ministry of Justice,HMCTS,03-Jun-14 ,222003-CIS Labour TFM Estates,CZ999-South East Region,MITIE JUSTICE LTD,2872848,"66,789.14 ",Security
Ministry of Justice,HMCTS,03-Jun-14 ,222003-CIS Labour TFM Estates,DZ999-South West Region,MITIE JUSTICE LTD,2872848,"202,625.49 ","CIS Labour - TFM Works Package B, South West Region - Soft Services (Fixed) - Security"
Ministry of Justice,HMCTS,03-Jun-14 ,222003-CIS Labour TFM Estates,CZ999-South East Region,MITIE JUSTICE LTD,2872848,"49,566.29 ",Security
Ministry of Justice,HMCTS,17-Jun-14 ,222003-CIS Labour TFM Estates,BZ999-London Region,MITIE JUSTICE LTD,2887855,"630,624.79 ",Security
Ministry of Justice,HMCTS,24-Jun-14 ,222003-CIS Labour TFM Estates,CZ999-South East Region,MITIE JUSTICE LTD,2895310,"438,467.19 ",Security
Ministry of Justice,HMCTS,25-Jun-14 ,222003-CIS Labour TFM Estates,CZ999-South East Region,MITIE JUSTICE LTD,2897537,"34,477.55 ",Security
Ministry of Justice,HMCTS,18-Jun-14 ,222003-CIS Labour TFM Estates,FZ999-Midlands Region,G4S INTEGRATED SERVICES (UK) LTD,2890373,"340,717.29 ",Security
Ministry of Justice,HMCTS,18-Jun-14 ,222003-CIS Labour TFM Estates,EZ999-Wales Region,G4S INTEGRATED SERVICES (UK) LTD,2890373,"145,031.87 ",Wales - G4S - Security
Ministry of Justice,HMCTS,20-Jun-14 ,222003-CIS Labour TFM Estates,FZ999-Midlands Region,G4S INTEGRATED SERVICES (UK) LTD,2892442,"26,339.19 ",Security
Ministry of Justice,HMCTS,20-Jun-14 ,222003-CIS Labour TFM Estates,HZ999-North East Region,G4S INTEGRATED SERVICES (UK) LTD,2892442,"325,359.54 ",TFM Annual  Fixed Security
Ministry of Justice,HMCTS,20-Jun-14 ,222003-CIS Labour TFM Estates,HZ999-North East Region,G4S INTEGRATED SERVICES (UK) LTD,2892442,"18,726.97 ",Security
Ministry of Justice,HMCTS,20-Jun-14 ,222003-CIS Labour TFM Estates,GZ999-North West Region,G4S INTEGRATED SERVICES (UK) LTD,2892442,"281,421.48 ",TFM Annual Fixed Security
Ministry of Justice,HMCTS,20-Jun-14 ,222003-CIS Labour TFM Estates,GZ999-North West Region,G4S INTEGRATED SERVICES (UK) LTD,2892442,"30,252.85 ",Security
Ministry of Justice,HMCTS,20-Jun-14 ,222003-CIS Labour TFM Estates,CZ999-South East Region,MITIE JUSTICE LTD,2892638,"104,170.40 ",Management Costs
Ministry of Justice,HMCTS,03-Jun-14 ,222003-CIS Labour TFM Estates,DZ999-South West Region,MITIE JUSTICE LTD,2872848,"66,679.08 ","CIS Labour - TFM Works Package B, South West Region - Hard Services (Fixed) - Management Costs"
Ministry of Justice,HMCTS,03-Jun-14 ,222003-CIS Labour TFM Estates,DZ999-South West Region,MITIE JUSTICE LTD,2872848,"7,275.51 ","CIS Labour - TFM Works Package B, South West Region - Soft Services (Fixed) - Management Costs"
Ministry of Justice,HMCTS,03-Jun-14 ,222003-CIS Labour TFM Estates,BZ999-London Region,MITIE JUSTICE LTD,2872848,"101,431.15 ",Management
Ministry of Justice,HMCTS,17-Jun-14 ,222003-CIS Labour TFM Estates,BZ999-London Region,MITIE JUSTICE LTD,2887855,"21,310.44 ",Management
Ministry of Justice,HMCTS,17-Jun-14 ,222003-CIS Labour TFM Estates,BZ999-London Region,MITIE JUSTICE LTD,2887855,"148,953.32 ",Management
Ministry of Justice,HMCTS,24-Jun-14 ,222003-CIS Labour TFM Estates,CZ999-South East Region,MITIE JUSTICE LTD,2895310,"13,882.23 ",Management Costs
Ministry of Justice,HMCTS,20-Jun-14 ,222003-CIS Labour TFM Estates,CZ999-South East Region,MITIE JUSTICE LTD,2892638,"90,044.71 ",Management Costs
Ministry of Justice,HMCTS,27-Jun-14 ,222003-CIS Labour TFM Estates,DZ999-South West Region,MITIE JUSTICE LTD,2899680,"66,730.40 ","CIS Labour - TFM Works Package B, South West Region - Hard Services (Fixed) - Management Costs"
Ministry of Justice,HMCTS,20-Jun-14 ,222003-CIS Labour TFM Estates,FZ999-Midlands Region,G4S INTEGRATED SERVICES (UK) LTD,2892442,"103,462.95 ",Management Costs
Ministry of Justice,HMCTS,18-Jun-14 ,222003-CIS Labour TFM Estates,FZ999-Midlands Region,G4S INTEGRATED SERVICES (UK) LTD,2890373,"32,219.36 ",Management Costs
Ministry of Justice,HMCTS,18-Jun-14 ,222003-CIS Labour TFM Estates,EZ999-Wales Region,G4S INTEGRATED SERVICES (UK) LTD,2890373,"13,438.10 ",Wales - G4S - Management
Ministry of Justice,HMCTS,20-Jun-14 ,222003-CIS Labour TFM Estates,FZ999-Midlands Region,G4S INTEGRATED SERVICES (UK) LTD,2892442,"1,998.05 ",Management Costs
Ministry of Justice,HMCTS,20-Jun-14 ,222003-CIS Labour TFM Estates,FZ999-Midlands Region,G4S INTEGRATED SERVICES (UK) LTD,2892442,"2,284.63 ",Management Costs
Ministry of Justice,HMCTS,20-Jun-14 ,222003-CIS Labour TFM Estates,HZ999-North East Region,G4S INTEGRATED SERVICES (UK) LTD,2892442,"106,409.29 ",TFM Annual Management costs
Ministry of Justice,HMCTS,20-Jun-14 ,222003-CIS Labour TFM Estates,HZ999-North East Region,G4S INTEGRATED SERVICES (UK) LTD,2892442,"31,816.69 ",TFM Annual Fixed Management Costs
Ministry of Justice,HMCTS,20-Jun-14 ,222003-CIS Labour TFM Estates,HZ999-North East Region,G4S INTEGRATED SERVICES (UK) LTD,2892442,"1,659.90 ",Management Costs
Ministry of Justice,HMCTS,20-Jun-14 ,222003-CIS Labour TFM Estates,GZ999-North West Region,G4S INTEGRATED SERVICES (UK) LTD,2892442,"100,081.81 ",TFM Annual Management Costs
Ministry of Justice,HMCTS,20-Jun-14 ,222003-CIS Labour TFM Estates,GZ999-North West Region,G4S INTEGRATED SERVICES (UK) LTD,2892442,"28,946.67 ",TFM Annual Fixed Management
Ministry of Justice,HMCTS,20-Jun-14 ,222003-CIS Labour TFM Estates,GZ999-North West Region,G4S INTEGRATED SERVICES (UK) LTD,2892442,"2,496.03 ",Management Costs
Ministry of Justice,HMCTS,03-Jun-14 ,222003-CIS Labour TFM Estates,CZ999-South East Region,MITIE JUSTICE LTD,2872848,593.25 ,Porterage
Ministry of Justice,HMCTS,03-Jun-14 ,222003-CIS Labour TFM Estates,CZ999-South East Region,MITIE JUSTICE LTD,2872848,630.00 ,Internal Moves
Ministry of Justice,HMCTS,17-Jun-14 ,222003-CIS Labour TFM Estates,BZ999-London Region,MITIE JUSTICE LTD,2887855,"14,033.28 ",Internal Moves
Ministry of Justice,HMCTS,25-Jun-14 ,222003-CIS Labour TFM Estates,CZ999-South East Region,MITIE JUSTICE LTD,2897537,299.25 ,Internal Moves
Ministry of Justice,HMCTS,03-Jun-14 ,222003-CIS Labour TFM Estates,DZ999-South West Region,MITIE JUSTICE LTD,2872848,"27,241.36 ","CIS Labour - TFM Works Package B, South West Region - Hard Services (Variable) - Internal Repair & Maintenance"
Ministry of Justice,HMCTS,03-Jun-14 ,222003-CIS Labour TFM Estates,DZ999-South West Region,MITIE JUSTICE LTD,2872848,"4,488.17 ","CIS Labour - TFM Works Package B, South West Region - Hard Services (Variable) - M&E Repair & Maintenance"
Ministry of Justice,HMCTS,20-Jun-14 ,222003-CIS Labour TFM Estates,CZ999-South East Region,MITIE JUSTICE LTD,2892638,"29,544.00 ",Internal Repair & Maintenance
Ministry of Justice,HMCTS,20-Jun-14 ,222003-CIS Labour TFM Estates,CZ999-South East Region,MITIE JUSTICE LTD,2892638,"163,416.12 ",M&E Repair & Maintenance
Ministry of Justice,HMCTS,03-Jun-14 ,222003-CIS Labour TFM Estates,DZ999-South West Region,MITIE JUSTICE LTD,2872848,"17,379.78 ","CIS Labour - TFM Works Package B, South West Region - Hard Services (Fixed) - Internal Repair & Maintenance"
Ministry of Justice,HMCTS,03-Jun-14 ,222003-CIS Labour TFM Estates,DZ999-South West Region,MITIE JUSTICE LTD,2872848,"99,540.02 ","CIS Labour - TFM Works Package B, South West Region - Hard Services (Fixed) - M&E Repair & Maintenance"
Ministry of Justice,HMCTS,03-Jun-14 ,222003-CIS Labour TFM Estates,BZ999-London Region,MITIE JUSTICE LTD,2872848,"33,595.78 ",CIS Labour - Redbridge MC - MITIE JUSTICE -Refurbishment of Probation kitchen & toilet area
Ministry of Justice,HMCTS,03-Jun-14 ,222003-CIS Labour TFM Estates,BZ999-London Region,MITIE JUSTICE LTD,2872848,"46,976.85 ",CIS Labour - Royal Courts of Justice  - MITIE JUSTICE -1st floor link WC conversion
Ministry of Justice,HMCTS,03-Jun-14 ,222003-CIS Labour TFM Estates,BZ999-London Region,MITIE JUSTICE LTD,2872848,"45,948.26 ",Internal Repairs & Maintenance
Ministry of Justice,HMCTS,03-Jun-14 ,222003-CIS Labour TFM Estates,BZ999-London Region,MITIE JUSTICE LTD,2872848,"251,645.31 ",M&E Maintenance
Ministry of Justice,HMCTS,17-Jun-14 ,222003-CIS Labour TFM Estates,CZ999-South East Region,MITIE JUSTICE LTD,2887855,"29,780.01 ",Colchester County - Mitie Justice - Lift Refurbishment
Ministry of Justice,HMCTS,17-Jun-14 ,222003-CIS Labour TFM Estates,BZ999-London Region,MITIE JUSTICE LTD,2887855,"220,000.00 ",CIS Labour - Central London County - MITIE JUSTICE -Project Ref; 4475133. Clearance of Premises of both the County Court & the Trial Centre
Ministry of Justice,HMCTS,17-Jun-14 ,222003-CIS Labour TFM Estates,BZ999-London Region,MITIE JUSTICE LTD,2887855,"45,577.58 ",Internal Repairs & Maintenance
Ministry of Justice,HMCTS,17-Jun-14 ,222003-CIS Labour TFM Estates,BZ999-London Region,MITIE JUSTICE LTD,2887855,"249,808.05 ",M&E Maintenance
Ministry of Justice,HMCTS,20-Jun-14 ,222003-CIS Labour TFM Estates,CZ999-South East Region,MITIE JUSTICE LTD,2892638,"30,679.09 ",Internal Repair & Maintenance
Ministry of Justice,HMCTS,20-Jun-14 ,222003-CIS Labour TFM Estates,CZ999-South East Region,MITIE JUSTICE LTD,2892638,"160,328.60 ",M&E Repair & Maintenance
Ministry of Justice,HMCTS,20-Jun-14 ,222003-CIS Labour TFM Estates,BZ999-London Region,MITIE JUSTICE LTD,2892638,"66,150.00 ",Rolls Building RCJ - Mitie Justice -RCJ/524/BC Supply 3no Rapiscan 620XR X-Ray System 620 x 420 Tunnel Input/Output Rollers
Ministry of Justice,HMCTS,27-Jun-14 ,222003-CIS Labour TFM Estates,DZ999-South West Region,MITIE JUSTICE LTD,2899680,"17,379.78 ","CIS Labour - TFM Works Package B, South West Region - Hard Services (Fixed) - Internal Repair & Maintenance"
Ministry of Justice,HMCTS,27-Jun-14 ,222003-CIS Labour TFM Estates,DZ999-South West Region,MITIE JUSTICE LTD,2899680,"99,540.02 ","CIS Labour - TFM Works Package B, South West Region - Hard Services (Fixed) - M&E Repair & Maintenance"
Ministry of Justice,HMCTS,25-Jun-14 ,222003-CIS Labour TFM Estates,CZ999-South East Region,MITIE JUSTICE LTD,2897537,"35,234.18 ",Internal Repair & Maintenance
Ministry of Justice,HMCTS,25-Jun-14 ,222003-CIS Labour TFM Estates,CZ999-South East Region,MITIE JUSTICE LTD,2897537,"1,699.59 ",M&E Repair & Maintenance
Ministry of Justice,HMCTS,25-Jun-14 ,222003-CIS Labour TFM Estates,CZ999-South East Region,MITIE JUSTICE LTD,2897537,"171,817.07 ",Internal Repair & Maintenance
Ministry of Justice,HMCTS,25-Jun-14 ,222003-CIS Labour TFM Estates,CZ999-South East Region,MITIE JUSTICE LTD,2897537,"11,293.30 ",M&E Repair & Maintenance
Ministry of Justice,HMCTS,27-Jun-14 ,222003-CIS Labour TFM Estates,BZ999-London Region,MITIE JUSTICE LTD,2899680,"31,069.50 ",Royal Courts of Justice - Mitie Justice - Decorate the whole of the 3rd Floor Centre Block
Ministry of Justice,HMCTS,17-Jun-14 ,222003-CIS Labour TFM Estates,GZ999-North West Region,G4S INTEGRATED SERVICES (UK) LTD,2887658,"76,551.73 ",CIS Labour - Liverpool Civil & Family Court  - G4S Integrated Services - various works  - MoJ Ref: TO-NW-OCT13-596
Ministry of Justice,HMCTS,20-Jun-14 ,222003-CIS Labour TFM Estates,FZ999-Midlands Region,G4S INTEGRATED SERVICES (UK) LTD,2892442,"152,547.16 ",M&E Repair & Maintenance
Ministry of Justice,HMCTS,20-Jun-14 ,222003-CIS Labour TFM Estates,FZ999-Midlands Region,G4S INTEGRATED SERVICES (UK) LTD,2892442,"27,645.34 ",Internal Repair and Maintenance
Ministry of Justice,HMCTS,20-Jun-14 ,222003-CIS Labour TFM Estates,FZ999-Midlands Region,G4S INTEGRATED SERVICES (UK) LTD,2892442,"15,452.36 ",M&E Repair & Maintenance
Ministry of Justice,HMCTS,20-Jun-14 ,222003-CIS Labour TFM Estates,FZ999-Midlands Region,G4S INTEGRATED SERVICES (UK) LTD,2892442,"7,443.68 ",Internal Repair & Maintenance
Ministry of Justice,HMCTS,20-Jun-14 ,222003-CIS Labour TFM Estates,HZ999-North East Region,G4S INTEGRATED SERVICES (UK) LTD,2892442,"171,613.66 ",TFM Annual  Fixed Internal Maint Service and M&E
Ministry of Justice,HMCTS,20-Jun-14 ,222003-CIS Labour TFM Estates,GZ999-North West Region,G4S INTEGRATED SERVICES (UK) LTD,2892442,"187,016.38 ",TFM Annual Fixed Internal Maint Service & M&E
Ministry of Justice,HMCTS,04-Jun-14 ,222003-CIS Labour TFM Estates,EZ999-Wales Region,G4S INTEGRATED SERVICES (UK) LTD,2875180,"30,906.94 ",Cardiff Crown - G4S - Replace emergency lighting batteries
Ministry of Justice,HMCTS,04-Jun-14 ,222003-CIS Labour TFM Estates,EZ999-Wales Region,G4S INTEGRATED SERVICES (UK) LTD,2875180,"6,181.39 ",Cardiff Crown - G4S - Replace emergency lighting batteries
Ministry of Justice,HMCTS,04-Jun-14 ,222003-CIS Labour TFM Estates,FZ999-Midlands Region,G4S INTEGRATED SERVICES (UK) LTD,2875180,"253,000.00 ",Birmingham Civil Justice Centre - G4S - New hearing rooms
Ministry of Justice,HMCTS,04-Jun-14 ,222003-CIS Labour TFM Estates,FZ999-Midlands Region,G4S INTEGRATED SERVICES (UK) LTD,2875180,"50,600.00 ",Birmingham Civil Justice Centre - G4S - New hearing rooms
Ministry of Justice,HMCTS,04-Jun-14 ,222003-CIS Labour TFM Estates,EZ999-Wales Region,G4S INTEGRATED SERVICES (UK) LTD,2875180,0.01 ,Swansea Magistrates' - G4S - Internal Redecoration
Ministry of Justice,HMCTS,04-Jun-14 ,222003-CIS Labour TFM Estates,EZ999-Wales Region,G4S INTEGRATED SERVICES (UK) LTD,2875180,"26,603.26 ",Swansea Magistrates' - G4S - Internal Redecoration
Ministry of Justice,HMCTS,04-Jun-14 ,222003-CIS Labour TFM Estates,EZ999-Wales Region,G4S INTEGRATED SERVICES (UK) LTD,2875180,"5,320.65 ",Swansea Magistrates' - G4S - Internal Redecoration
Ministry of Justice,HMCTS,04-Jun-14 ,222003-CIS Labour TFM Estates,EZ999-Wales Region,G4S INTEGRATED SERVICES (UK) LTD,2875180,"55,732.49 ",Merthyr Combined - G4S - Car Park Lighting
Ministry of Justice,HMCTS,04-Jun-14 ,222003-CIS Labour TFM Estates,EZ999-Wales Region,G4S INTEGRATED SERVICES (UK) LTD,2875180,"11,146.50 ",Merthyr Combined - G4S - Car Park Lighting
Ministry of Justice,HMCTS,04-Jun-14 ,222003-CIS Labour TFM Estates,EZ999-Wales Region,G4S INTEGRATED SERVICES (UK) LTD,2875180,0.01 ,Swansea Civil Justice Centre - G4S - Panic Alarm
Ministry of Justice,HMCTS,04-Jun-14 ,222003-CIS Labour TFM Estates,EZ999-Wales Region,G4S INTEGRATED SERVICES (UK) LTD,2875180,"43,861.62 ",Swansea Civil Justice Centre - G4S - Panic Alarm
Ministry of Justice,HMCTS,04-Jun-14 ,222003-CIS Labour TFM Estates,EZ999-Wales Region,G4S INTEGRATED SERVICES (UK) LTD,2875180,"8,772.32 ",Swansea Civil Justice Centre - G4S - Panic Alarm
Ministry of Justice,HMCTS,04-Jun-14 ,222003-CIS Labour TFM Estates,EZ999-Wales Region,G4S INTEGRATED SERVICES (UK) LTD,2875180,0.01 ,CIS Labour - Wrexham Law Courts  - G4S Integrated Services - Modifications to Bailiffs counter
Ministry of Justice,HMCTS,04-Jun-14 ,222003-CIS Labour TFM Estates,EZ999-Wales Region,G4S INTEGRATED SERVICES (UK) LTD,2875180,"27,848.11 ",CIS Labour - Wrexham Law Courts  - G4S Integrated Services - Modifications to Bailiffs counter
Ministry of Justice,HMCTS,04-Jun-14 ,222003-CIS Labour TFM Estates,EZ999-Wales Region,G4S INTEGRATED SERVICES (UK) LTD,2875180,"5,569.62 ",CIS Labour - Wrexham Law Courts  - G4S Integrated Services - Modifications to Bailiffs counter
Ministry of Justice,HMCTS,17-Jun-14 ,222003-CIS Labour TFM Estates,FZ999-Midlands Region,G4S INTEGRATED SERVICES (UK) LTD,2887658,0.01 ,CIS Labour - Nottingham Crown Court - G4S Integrated Services - Redecoration Phase 1
Ministry of Justice,HMCTS,17-Jun-14 ,222003-CIS Labour TFM Estates,FZ999-Midlands Region,G4S INTEGRATED SERVICES (UK) LTD,2887658,"67,614.26 ",CIS Labour - Nottingham Crown Court - G4S Integrated Services - Redecoration Phase 1
Ministry of Justice,HMCTS,17-Jun-14 ,222003-CIS Labour TFM Estates,FZ999-Midlands Region,G4S INTEGRATED SERVICES (UK) LTD,2887658,"13,522.85 ",CIS Labour - Nottingham Crown Court - G4S Integrated Services - Redecoration Phase 1
Ministry of Justice,HMCTS,17-Jun-14 ,222003-CIS Labour TFM Estates,EZ999-Wales Region,G4S INTEGRATED SERVICES (UK) LTD,2887658,"39,125.08 ",Swansea Magistrates' - G4S - Pre Contract Services
Ministry of Justice,HMCTS,17-Jun-14 ,222003-CIS Labour TFM Estates,EZ999-Wales Region,G4S INTEGRATED SERVICES (UK) LTD,2887658,"7,825.02 ",Swansea Magistrates' - G4S - Pre Contract Services
Ministry of Justice,HMCTS,17-Jun-14 ,222003-CIS Labour TFM Estates,EZ999-Wales Region,G4S INTEGRATED SERVICES (UK) LTD,2887658,"27,692.64 ",CIS Labour - Caernarfon CJC - G4S Integrated Service - Redecoration
Ministry of Justice,HMCTS,17-Jun-14 ,222003-CIS Labour TFM Estates,EZ999-Wales Region,G4S INTEGRATED SERVICES (UK) LTD,2887658,"5,538.53 ",CIS Labour - Caernarfon CJC - G4S Integrated Service - Redecoration
Ministry of Justice,HMCTS,17-Jun-14 ,222003-CIS Labour TFM Estates,EZ999-Wales Region,G4S INTEGRATED SERVICES (UK) LTD,2887658,0.01 ,Swansea Magistrates' - G4S - Roof Repair
Ministry of Justice,HMCTS,17-Jun-14 ,222003-CIS Labour TFM Estates,EZ999-Wales Region,G4S INTEGRATED SERVICES (UK) LTD,2887658,"206,008.66 ",Swansea Magistrates' - G4S - Roof Repair
Ministry of Justice,HMCTS,17-Jun-14 ,222003-CIS Labour TFM Estates,EZ999-Wales Region,G4S INTEGRATED SERVICES (UK) LTD,2887658,"41,201.73 ",Swansea Magistrates' - G4S - Roof Repair
Ministry of Justice,HMCTS,20-Jun-14 ,222003-CIS Labour TFM Estates,CZ999-South East Region,MITIE JUSTICE LTD,2892638,"21,057.15 ",Grounds Maintenance
Ministry of Justice,HMCTS,03-Jun-14 ,222003-CIS Labour TFM Estates,DZ999-South West Region,MITIE JUSTICE LTD,2872848,"9,515.81 ","CIS Labour - TFM Works Package B, South West Region - Hard Services (Fixed) - Grounds Maintenance"
Ministry of Justice,HMCTS,03-Jun-14 ,222003-CIS Labour TFM Estates,BZ999-London Region,MITIE JUSTICE LTD,2872848,"17,303.77 ",Grounds Maintenance
Ministry of Justice,HMCTS,17-Jun-14 ,222003-CIS Labour TFM Estates,BZ999-London Region,MITIE JUSTICE LTD,2887855,"17,285.31 ",Grounds Maintenance
Ministry of Justice,HMCTS,20-Jun-14 ,222003-CIS Labour TFM Estates,CZ999-South East Region,MITIE JUSTICE LTD,2892638,"21,057.15 ",Grounds Maintenance
Ministry of Justice,HMCTS,27-Jun-14 ,222003-CIS Labour TFM Estates,DZ999-South West Region,MITIE JUSTICE LTD,2899680,"9,103.25 ","CIS Labour - TFM Works Package B, South West Region - Hard Services (Fixed) - Grounds Maintenance"
Ministry of Justice,HMCTS,25-Jun-14 ,222003-CIS Labour TFM Estates,CZ999-South East Region,MITIE JUSTICE LTD,2897537,"6,417.64 ",Grounds Maintenance
Ministry of Justice,HMCTS,20-Jun-14 ,222003-CIS Labour TFM Estates,FZ999-Midlands Region,G4S INTEGRATED SERVICES (UK) LTD,2892442,"8,773.42 ",Grounds Maintenance
Ministry of Justice,HMCTS,20-Jun-14 ,222003-CIS Labour TFM Estates,FZ999-Midlands Region,G4S INTEGRATED SERVICES (UK) LTD,2892442,"4,190.07 ",Grounds Maintenance
Ministry of Justice,HMCTS,20-Jun-14 ,222003-CIS Labour TFM Estates,HZ999-North East Region,G4S INTEGRATED SERVICES (UK) LTD,2892442,"9,697.52 ",TFM Annual Grounds Maintenance
Ministry of Justice,HMCTS,20-Jun-14 ,222003-CIS Labour TFM Estates,GZ999-North West Region,G4S INTEGRATED SERVICES (UK) LTD,2892442,"11,764.59 ",TFM Annual Grounds Maintenance
Ministry of Justice,HMCTS,03-Jun-14 ,222003-CIS Labour TFM Estates,DZ999-South West Region,MITIE JUSTICE LTD,2872848,"2,159.20 ","CIS Labour - TFM Works Package B, South West Region - Soft Services (Fixed) - Pest Control"
Ministry of Justice,HMCTS,17-Jun-14 ,222003-CIS Labour TFM Estates,BZ999-London Region,MITIE JUSTICE LTD,2887855,"4,576.61 ",Pest & Vermin
Ministry of Justice,HMCTS,24-Jun-14 ,222003-CIS Labour TFM Estates,CZ999-South East Region,MITIE JUSTICE LTD,2895310,791.37 ,Pest Control
Ministry of Justice,HMCTS,25-Jun-14 ,222003-CIS Labour TFM Estates,CZ999-South East Region,MITIE JUSTICE LTD,2897537,"19,653.00 ",Pest Control
Ministry of Justice,HMCTS,18-Jun-14 ,222003-CIS Labour TFM Estates,FZ999-Midlands Region,G4S INTEGRATED SERVICES (UK) LTD,2890373,"1,202.05 ",Pest & Vermin
Ministry of Justice,HMCTS,20-Jun-14 ,222003-CIS Labour TFM Estates,HZ999-North East Region,G4S INTEGRATED SERVICES (UK) LTD,2892442,187.87 ,TFM Annual Fixed Pest & Vermin
Ministry of Justice,HMCTS,20-Jun-14 ,222003-CIS Labour TFM Estates,GZ999-North West Region,G4S INTEGRATED SERVICES (UK) LTD,2892442,796.20 ,TFM Annual Fixed Pest & Vermin
Ministry of Justice,HMCTS,13-Jun-14 ,262000-SCA Costs,DZ999-South West Region,SERVICES SUPPORT (AVON & SOMERSET) LTD,2885796,"692,999.69 ",Worle Area Office / Bristol - Services Support (Avon & Somerset) Ltd - Unitary Charges for Worle & Bristol PFI - Monthly
Ministry of Justice,HMCTS,13-Jun-14 ,262000-SCA Costs,FZ999-Midlands Region,H & W COURTS LIMITED,2885311,"511,942.07 ",Hereford & Worcester - H & W Courts Ltd - Monthly 2014-15 Unitary Charges for H&W PFI
Ministry of Justice,HMCTS,06-Jun-14 ,262000-SCA Costs,FZ999-Midlands Region,DERBYSHIRE COURTS LTD,2877665,"481,680.45 ",Derby & Chesterfield - Derbyshire Courts Ltd (SE1 9RD) - Monthly 2014-15 Unitary Charges for Derbyshire
Ministry of Justice,HMCTS,24-Jun-14 ,262000-SCA Costs,FZ999-Midlands Region,H & W COURTS LIMITED,2895122,"520,216.70 ",Hereford & Worcester - H & W Courts Ltd - Monthly 2014-15 Unitary Charges for H&W PFI
Ministry of Justice,HMCTS,06-Jun-14 ,262000-SCA Costs,CZ999-South East Region,MODERN COURTS (EAST ANGLIA) LTD,2877938,"382,873.77 ",Ipswich & Cambridge - Modern Courts (East Anglia) Ltd (BR8 7AG) - Monthly 2014-15 Unitary Charges for East Anglia PFI
Ministry of Justice,HMCTS,06-Jun-14 ,262000-SCA Costs,CZ999-South East Region,MODERN COURTS (EAST ANGLIA) LTD,2877938,"72,211.00 ",Ipswich & Cambridge - Modern Courts (East Anglia) Ltd (BR8 7AG) - Monthly 2014-15 Unitary Charges for East Anglia PFI
Ministry of Justice,HMCTS,06-Jun-14 ,262000-SCA Costs,HZ999-North East Region,MODERN COURTS (HUMBERSIDE) LTD,2877939,"323,290.74 ","Beverley, Hull & Bridlington - Modern Courts (Humberside) Ltd (BR8 7AG) - Unitary Charges for Humberside PFI - Monthly"
Ministry of Justice,HMCTS,06-Jun-14 ,262000-SCA Costs,HZ999-North East Region,MODERN COURTS (HUMBERSIDE) LTD,2877939,"48,365.73 ","Beverley, Hull & Bridlington - Modern Courts (Humberside) Ltd (BR8 7AG) - Unitary Charges for Humberside PFI - Monthly"
Ministry of Justice,HMCTS,11-Jun-14 ,262000-SCA Costs,HZ999-North East Region,PALECASTLE LTD,2883523,"107,385.20 ",Sheffield - Palecastle Ltd  (WA14 2EX) - Unitary Charges for Sheffield PFI - Monthly
Ministry of Justice,HMCTS,10-Jun-14 ,262000-SCA Costs,DZ999-South West Region,ENTERPRISE CIVIC BUILDINGS LIMITED,2879832,"280,772.55 ",Exeter - Enterprise Civic Buildings  Ltd (W1S 1TD) - Monthly 2014-15 Unitary Charges for Exeter PFI
Ministry of Justice,HMCTS,06-Jun-14 ,262000-SCA Costs,GZ999-North West Region,UK COURT SERVICES LTD,2878169,"517,138.29 ",Manchester - UK Court Services LTD (WR12 7LJ) - Unitary Charges for Manchester PFI - Monthly
Ministry of Justice,HMCTS,11-Jun-14 ,262000-SCA Costs,GZ999-North West Region,UK COURT SERVICES LTD,2883607,"517,138.29 ",Manchester - UK Court Services LTD (WR12 7LJ) - Unitary Charges for Manchester PFI - Monthly
Ministry of Justice,HMCTS,12-Jun-14 ,223001-Printing Postage and Office expenditure,HZ999-North East Region,NATIONAL OFFENDERS MANAGEMENT SERVICE (NOMS),3164,"51,562.30 ",223513-Design/Print/Reprographic Services
Ministry of Justice,HMCTS,04-Jun-14 ,223001-Printing Postage and Office expenditure,FZ999-Midlands Region,ROYAL MAIL GROUP PLC,2875531,"24,912.79 ",Royal Mail Variable Charges For Midlands Region - (Journal From FA107)
Ministry of Justice,HMCTS,04-Jun-14 ,223001-Printing Postage and Office expenditure,FZ999-Midlands Region,ROYAL MAIL GROUP PLC,2875531,48.50 ,Royal Mail Variable Charges For Midlands Region - (Journal From FA107)
Ministry of Justice,HMCTS,03-Jun-14 ,223001-Printing Postage and Office expenditure,CZ999-South East Region,ROYAL MAIL GROUP PLC,2873025,"28,771.26 ",SE Regional Mail variable charges - Royal Mail 2014/15- Account number 166289000 - Replaces PO 20000173034
Ministry of Justice,HMCTS,03-Jun-14 ,223001-Printing Postage and Office expenditure,CZ999-South East Region,ROYAL MAIL GROUP PLC,2873025,"4,874.01 ",SE Regional Mail variable charges - Royal Mail 2014/15- Account number 166289000 - Replaces PO 20000173034
Ministry of Justice,HMCTS,03-Jun-14 ,223001-Printing Postage and Office expenditure,CZ999-South East Region,ROYAL MAIL GROUP PLC,2873025,431.82 ,SE Regional Mail variable charges - Royal Mail 2014/15- Account number 166289000 - Replaces PO 20000173034
Ministry of Justice,HMCTS,03-Jun-14 ,223001-Printing Postage and Office expenditure,HZ999-North East Region,ROYAL MAIL GROUP PLC,2873025,"135,482.81 ",North East Consol Account - Variable service contract continuation - Royal Mail - 13/14
Ministry of Justice,HMCTS,03-Jun-14 ,223001-Printing Postage and Office expenditure,HZ999-North East Region,ROYAL MAIL GROUP PLC,2873025,759.66 ,North East Consol Account - Variable service contract continuation - Royal Mail - 13/14
Ministry of Justice,HMCTS,03-Jun-14 ,223001-Printing Postage and Office expenditure,HZ999-North East Region,ROYAL MAIL GROUP PLC,2873025,675.23 ,North East Consol Account - Variable service contract continuation - Royal Mail - 13/14
Ministry of Justice,HMCTS,27-Jun-14 ,263000-Other Contracted Out Services,BZ999-London Region,EUREST SERVICES,2899513,"27,476.94 ",London Region - Eurest Services - Catering Contract Subsidy April-August 2014
Ministry of Justice,HMCTS,27-Jun-14 ,263000-Other Contracted Out Services,BZ999-London Region,EUREST SERVICES,2899513,"40,973.75 ",London Region - Eurest Services - Catering Contract Subsidy April-August 2014
Ministry of Justice,HMCTS,27-Jun-14 ,263000-Other Contracted Out Services,BZ999-London Region,EUREST SERVICES,2899513,"39,588.50 ",London Region - Eurest Services - Catering Contract Subsidy April-August 2014
Ministry of Justice,HMCTS,04-Jun-14 ,265000-IT & Telecommunications,BZ999-London Region,BT TELECOMMUNICATIONS PLC,2875094,"8,512.29 ",London Region Consolidated - BT One Bill - 2014/15 - Replacement for PO 20000173667
Ministry of Justice,HMCTS,04-Jun-14 ,265000-IT & Telecommunications,BZ999-London Region,BT TELECOMMUNICATIONS PLC,2875094,"-8,512.29 ",London Region Consolidated - BT One Bill - 2014/15 - Replacement for PO 20000173667
Ministry of Justice,HMCTS,04-Jun-14 ,265000-IT & Telecommunications,BZ999-London Region,BT TELECOMMUNICATIONS PLC,2875094,"42,517.51 ",London Region Consolidated - BT One Bill - 2014/15 - Replacement for PO 20000173667
Ministry of Justice,HMCTS,04-Jun-14 ,265000-IT & Telecommunications,BZ999-London Region,BT TELECOMMUNICATIONS PLC,2875094,43.95 ,London Region Consolidated - BT One Bill - 2014/15 - Replacement for PO 20000173667
Ministry of Justice,HMCTS,04-Jun-14 ,265000-IT & Telecommunications,BZ999-London Region,BT TELECOMMUNICATIONS PLC,2875094,"8,503.50 ",London Region Consolidated - BT One Bill - 2014/15 - Replacement for PO 20000173667
Ministry of Justice,HMCTS,20-Jun-14 ,264000-Consultancy,AP999-HQ - Strategy & Change,ACTICA CONSULTING LTD,2892244,"74,600.00 ",Procuremnt support provided by ACTICA for CPP case Management System
Ministry of Justice,HMCTS,20-Jun-14 ,264000-Consultancy,AP999-HQ - Strategy & Change,ACTICA CONSULTING LTD,2892244,"14,920.00 ",Procuremnt support provided by ACTICA for CPP case Management System
Ministry of Justice,HMCTS,25-Jun-14 ,265000-IT & Telecommunications,EZ999-Wales Region,ATOS IT SERVICES UK LTD,2897380,"27,024.00 ", Neath Magistrates' Court Decommission
Ministry of Justice,HMCTS,11-Jun-14 ,265000-IT & Telecommunications,AT899-HQ - ICT,INSIGHT DIRECT (UK) LTD,2883264,"39,229.47 ","Provide Support for the Proof Of Concept works at Birmingham, Croydon and Chelmsford Court Buildings covered under RM721, Contract No: 3621 (ECM: 7312)						"
Ministry of Justice,HMCTS,11-Jun-14 ,265000-IT & Telecommunications,AT899-HQ - ICT,INSIGHT DIRECT (UK) LTD,2883264,"7,845.89 ","Provide Support for the Proof Of Concept works at Birmingham, Croydon and Chelmsford Court Buildings covered under RM721, Contract No: 3621 (ECM: 7312)						"
Ministry of Justice,HMCTS,02-Jun-14 ,265000-IT & Telecommunications,FC999-Centrally Managed Costs by F&G,HOME OFFICE IT,3113,"424,350.00 ",PentIP Managed Services - 13/14
Ministry of Justice,HMCTS,06-Jun-14 ,265000-IT & Telecommunications,AT899-HQ - ICT,CGI IT UK LTD,2877608,"36,803.00 ","CGI-CCN3974-02 - Sprint 5 complete - HMCTS 314 ARIA - PM Sonia Ferrari						 						 						 					 					"
Ministry of Justice,HMCTS,13-Jun-14 ,265000-IT & Telecommunications,AT899-HQ - ICT,CGI IT UK LTD,2885178,"27,197.00 ","L-R-3704-02 Libra Electronic Transfer - M5 - Go Live						 					 					 					 					"
Ministry of Justice,HMCTS,10-Jun-14 ,265000-IT & Telecommunications,AT899-HQ - ICT,CGI IT UK LTD,2879739,"30,937.00 ",PD L-R-4036-01 Delivery of upgrades for GRS2000 Case Management System
Ministry of Justice,HMCTS,24-Jun-14 ,265000-IT & Telecommunications,AT899-HQ - ICT,CGI IT UK LTD,2894958,"36,803.00 ","CGI-CCN3974-02 - SIT complete - HMCTS 314 ARIA - PM Sonia Ferrari						 						 						 						 					 					"
Ministry of Justice,HMCTS,17-Jun-14 ,265000-IT & Telecommunications,AT899-HQ - ICT,STERIA LTD,2888054,"25,860.00 ","CIC to GAPS2						"
Ministry of Justice,HMCTS,17-Jun-14 ,265000-IT & Telecommunications,AT899-HQ - ICT,STERIA LTD,2888054,"5,172.00 ","CIC to GAPS2						"
Ministry of Justice,HMCTS,20-Jun-14 ,265000-IT & Telecommunications,AT899-HQ - ICT,CGI IT UK LTD,2892332,"13,262.00 ","L-R-4077-01 Libra App Changes R5.10 Jun 14 - M2 Development Complete						 						"
Ministry of Justice,HMCTS,20-Jun-14 ,265000-IT & Telecommunications,AT899-HQ - ICT,CGI IT UK LTD,2892332,"13,262.00 ","L-R-4077-01 Libra App Changes R5.10 Jun 14 - M3 System Test Complete						"
Ministry of Justice,HMCTS,24-Jun-14 ,265000-IT & Telecommunications,AT899-HQ - ICT,CGI IT UK LTD,2894958,"20,869.88 ","To provide resources to meet the Mgt Info and Business Planning						"
Ministry of Justice,HMCTS,25-Jun-14 ,265000-IT & Telecommunications,CZ999-South East Region,ATOS IT SERVICES UK LTD,2897380,"38,833.00 ",A-R-3952-01-01 - ATOS - Gail House Maidstone - Relocation of Coms room and associated data cabling
Ministry of Justice,HMCTS,18-Jun-14 ,266000-Judicial Costs,AG999-HQ - Estates,GROUND TRANSPORT LTD,2890383,"23,836.93 ",Various Judges' Lodgings - Ground Transport Ltd - Judicial Car Provision 2014/15 Replaces PO 20000173460
Ministry of Justice,HMCTS,11-Jun-14 ,226000-Court Costs,FZ999-Midlands Region,EUREST SERVICES,2883203,"33,749.85 ",Midlands Region Catering Jurors Subsidy 11/12 - Eurest Services
Ministry of Justice,HMCTS,06-Jun-14 ,226000-Court Costs,FZ999-Midlands Region,EUREST SERVICES,2877704,"23,317.85 ",Midlands Region Catering Jurors Subsidy 11/12 - Eurest Services
Ministry of Justice,HMCTS,25-Jun-14 ,226000-Court Costs,BZ999-London Region,EUREST SERVICES,2897452,"42,881.38 ",London Region - Eurest Smart Cards - Consolidated Juror Smartcards - 2013/14
Ministry of Justice,HMCTS,25-Jun-14 ,226000-Court Costs,FZ999-Midlands Region,EUREST SERVICES,2897452,"27,929.12 ",Midlands Region Catering Jurors Subsidy 11/12 - Eurest Services
Ministry of Justice,HMCTS,19-Jun-14 ,226000-Court Costs,SL999-Centralised Frontline,B C L BURTON COPELAND#DX 37981,2890617,"154,821.12 ",Legal fees to solicitors for  the repayment of fees paid by the acquitted defendants
Ministry of Justice,HMCTS,05-Jun-14 ,226000-Court Costs,SL999-Centralised Frontline,MESSRS BLACKFORDS LLP#DX 33005,160911,"42,900.00 ",Legal fees to solicitors for  the repayment of fees paid by the acquitted defendants
Ministry of Justice,HMCTS,05-Jun-14 ,226000-Court Costs,SL999-Centralised Frontline,MESSRS DWF LLP#DX 714570,160961,"51,252.06 ",Legal fees to solicitors for  the repayment of fees paid by the acquitted defendants
Ministry of Justice,HMCTS,19-Jun-14 ,226000-Court Costs,SL999-Centralised Frontline,MESSRS HICKMAN & ROSE#DX53346,169240,"35,098.63 ",Legal fees to solicitors for  the repayment of fees paid by the acquitted defendants
Ministry of Justice,HMCTS,05-Jun-14 ,226000-Court Costs,SL999-Centralised Frontline,MESSRS STOKOE PARTNERSHIP#DX 718152,2875782,"30,962.40 ",Legal fees to solicitors for  the repayment of fees paid by the acquitted defendants
Ministry of Justice,HMCTS,05-Jun-14 ,226000-Court Costs,SL999-Centralised Frontline,MESSRS BERRYMANS LACE MAWER#DX 33861,160906,"69,400.80 ",Legal fees to solicitors for  the repayment of fees paid by the acquitted defendants
Ministry of Justice,HMCTS,19-Jun-14 ,226000-Court Costs,SL999-Centralised Frontline,MR B COOPER#DX223,169464,"42,717.38 ",Legal fees to solicitors for  the repayment of fees paid by the acquitted defendants
Ministry of Justice,HMCTS,05-Jun-14 ,226000-Court Costs,SL999-Centralised Frontline,MESSRS HICKMAN & ROSE#DX53346,161002,"29,490.00 ",Legal fees to solicitors for  the repayment of fees paid by the acquitted defendants
Ministry of Justice,HMCTS,19-Jun-14 ,226000-Court Costs,SL999-Centralised Frontline,MESSRS BYRNE & PARTNERSHIPS#DX 392,169135,"212,146.65 ",Legal fees to solicitors for  the repayment of fees paid by the acquitted defendants
Ministry of Justice,HMCTS,05-Jun-14 ,226000-Court Costs,SL999-Centralised Frontline,MESSRS PETERS & PETERS#DX 407,2875760,"230,350.07 ",Legal fees to solicitors for  the repayment of fees paid by the acquitted defendants
Ministry of Justice,HMCTS,05-Jun-14 ,226000-Court Costs,SL999-Centralised Frontline,MESSRS PETERS & PETERS#DX 407,2875760,"76,474.66 ",Legal fees to solicitors for  the repayment of fees paid by the acquitted defendants
Ministry of Justice,HMCTS,05-Jun-14 ,226000-Court Costs,SL999-Centralised Frontline,MESSRS FREEMANS#DX 40007,160977,"57,081.65 ",Legal fees to solicitors for  the repayment of fees paid by the acquitted defendants
Ministry of Justice,HMCTS,05-Jun-14 ,311200-Criminal Legal Aid,SL999-Centralised Frontline,MESSRS JONAS ROY BLOOM#DX 23540,161022,"26,284.26 ",Legal fees to solicitors for the repayment of costs to parties after gaining legal aid and represenation order
Ministry of Justice,HMCTS,05-Jun-14 ,311200-Criminal Legal Aid,SL999-Centralised Frontline,MESSRS BARK & CO#DX 447,160899,"37,547.89 ",Legal fees to solicitors for the repayment of costs to parties after gaining legal aid and represenation order
Ministry of Justice,HMCTS,05-Jun-14 ,311200-Criminal Legal Aid,SL999-Centralised Frontline,MESSRS B H MOHAMMED#DX 707271,160894,"143,906.28 ",Legal fees to solicitors for the repayment of costs to parties after gaining legal aid and represenation order
Ministry of Justice,HMCTS,05-Jun-14 ,311200-Criminal Legal Aid,SL999-Centralised Frontline,MESSRS COHEN CRAMER SOLICITORS#DX 716924,160933,"27,888.61 ",Legal fees to solicitors for the repayment of costs to parties after gaining legal aid and represenation order
Ministry of Justice,HMCTS,19-Jun-14 ,311200-Criminal Legal Aid,SL999-Centralised Frontline,MESSRS SHEARMAN BOWEN LTD#DX 218,2890813,"33,964.26 ",Legal fees to solicitors for the repayment of costs to parties after gaining legal aid and represenation order
Ministry of Justice,HMCTS,19-Jun-14 ,311200-Criminal Legal Aid,SL999-Centralised Frontline,MESSRS KAYDERS#DX 46469,169276,"107,289.80 ",Legal fees to solicitors for the repayment of costs to parties after gaining legal aid and represenation order
Ministry of Justice,HMCTS,19-Jun-14 ,311200-Criminal Legal Aid,SL999-Centralised Frontline,MESSRS KAIM TODNER#DX 265,2890754,"81,202.88 ",Legal fees to solicitors for the repayment of costs to parties after gaining legal aid and represenation order
Ministry of Justice,HMCTS,19-Jun-14 ,311200-Criminal Legal Aid,SL999-Centralised Frontline,MESSRS NEUMANS LLP#DX 490,169334,"28,761.38 ",Legal fees to solicitors for the repayment of costs to parties after gaining legal aid and represenation order
Ministry of Justice,HMCTS,19-Jun-14 ,311200-Criminal Legal Aid,SL999-Centralised Frontline,MESSRS CHAMBERS SOLICITORS#BD12LU,2890684,"30,434.24 ",Legal fees to solicitors for the repayment of costs to parties after gaining legal aid and represenation order
Ministry of Justice,HMCTS,27-Jun-14 ,532000-Tangible GBV - Additions,EZ999-Wales Region,CITY AND COUNTY OF SWANSEA,2899453,"90,622.60 ",Swansea Guildhall - Swansea Council - Reimbursement for works undertaken to windows
Ministry of Justice,HMCTS,06-Jun-14 ,532000-Tangible GBV - Additions,GZ999-North West Region,MILLER CONSTRUCTION (UK) LTD,2877930,"281,983.03 ",HMCTS North West 13-14 Package 1: ventilation works
Ministry of Justice,HMCTS,06-Jun-14 ,532000-Tangible GBV - Additions,GZ999-North West Region,MILLER CONSTRUCTION (UK) LTD,2877930,"56,396.61 ",HMCTS North West 13-14 Package 1: ventilation works
Ministry of Justice,HMCTS,20-Jun-14 ,532000-Tangible GBV - Additions,BZ999-London Region,WATES CONSTRUCTION LTD,2892926,-0.01 ,Camberwell Magistates' - Wates Construction Ltd - Major Internal Refurbishment
Ministry of Justice,HMCTS,20-Jun-14 ,532000-Tangible GBV - Additions,BZ999-London Region,WATES CONSTRUCTION LTD,2892926,"6,088.44 ",Uxbridge Magistrates' - Wates Construction Ltd -  Lift Replacement
Ministry of Justice,HMCTS,20-Jun-14 ,532000-Tangible GBV - Additions,BZ999-London Region,WATES CONSTRUCTION LTD,2892926,"20,725.79 ",Bow County - Wates Construction Ltd -  Asbestos Removal
Ministry of Justice,HMCTS,20-Jun-14 ,532000-Tangible GBV - Additions,BZ999-London Region,WATES CONSTRUCTION LTD,2892926,"44,849.98 ","Southwark Crown - Wates Construction Ltd - Window, Boiler & BMS Replacement"
Ministry of Justice,HMCTS,20-Jun-14 ,532000-Tangible GBV - Additions,BZ999-London Region,WATES CONSTRUCTION LTD,2892926,"1,516.60 ",Bow County - Wates Construction Ltd - Window Replacement throughout building
Ministry of Justice,HMCTS,20-Jun-14 ,532000-Tangible GBV - Additions,BZ999-London Region,WATES CONSTRUCTION LTD,2892926,"145,145.10 ",Camberwell Magistates' - Wates Construction Ltd - Major Internal Refurbishment
Ministry of Justice,HMCTS,20-Jun-14 ,532000-Tangible GBV - Additions,BZ999-London Region,WATES CONSTRUCTION LTD,2892926,"1,217.69 ",Uxbridge Magistrates' - Wates Construction Ltd -  Lift Replacement
Ministry of Justice,HMCTS,20-Jun-14 ,532000-Tangible GBV - Additions,BZ999-London Region,WATES CONSTRUCTION LTD,2892926,"4,145.16 ",Bow County - Wates Construction Ltd -  Asbestos Removal
Ministry of Justice,HMCTS,20-Jun-14 ,532000-Tangible GBV - Additions,BZ999-London Region,WATES CONSTRUCTION LTD,2892926,"8,970.00 ","Southwark Crown - Wates Construction Ltd - Window, Boiler & BMS Replacement"
Ministry of Justice,HMCTS,20-Jun-14 ,532000-Tangible GBV - Additions,BZ999-London Region,WATES CONSTRUCTION LTD,2892926,303.32 ,Bow County - Wates Construction Ltd - Window Replacement throughout building
Ministry of Justice,HMCTS,20-Jun-14 ,532000-Tangible GBV - Additions,BZ999-London Region,WATES CONSTRUCTION LTD,2892926,"29,029.01 ",Camberwell Magistates' - Wates Construction Ltd - Major Internal Refurbishment
Ministry of Justice,HMCTS,25-Jun-14 ,532000-Tangible GBV - Additions,BZ999-London Region,WATES CONSTRUCTION LTD,2897751,"116,202.22 ",Uxbridge Magistrates' - Wates Construction Ltd -  Lift Replacement
Ministry of Justice,HMCTS,25-Jun-14 ,532000-Tangible GBV - Additions,BZ999-London Region,WATES CONSTRUCTION LTD,2897751,"23,240.45 ",Uxbridge Magistrates' - Wates Construction Ltd -  Lift Replacement
Ministry of Justice,HMCTS,25-Jun-14 ,532000-Tangible GBV - Additions,BZ999-London Region,WATES CONSTRUCTION LTD,2897751,"3,358.57 ",Bow County - Wates Construction Ltd - Window Replacement throughout building
Ministry of Justice,HMCTS,25-Jun-14 ,532000-Tangible GBV - Additions,BZ999-London Region,WATES CONSTRUCTION LTD,2897751,"8,263.17 ",Camberwell Magistates' - Wates Construction Ltd - Major Internal Refurbishment
Ministry of Justice,HMCTS,25-Jun-14 ,532000-Tangible GBV - Additions,BZ999-London Region,WATES CONSTRUCTION LTD,2897751,"16,792.84 ",Bow County - Wates Construction Ltd - Window Replacement throughout building
Ministry of Justice,HMCTS,25-Jun-14 ,532000-Tangible GBV - Additions,BZ999-London Region,WATES CONSTRUCTION LTD,2897751,"41,315.87 ",Camberwell Magistates' - Wates Construction Ltd - Major Internal Refurbishment
Ministry of Justice,HMCTS,25-Jun-14 ,532000-Tangible GBV - Additions,BZ999-London Region,WATES CONSTRUCTION LTD,2897751,"-3,358.57 ",Bow County - Wates Construction Ltd - Window Replacement throughout building
Ministry of Justice,HMCTS,25-Jun-14 ,532000-Tangible GBV - Additions,BZ999-London Region,WATES CONSTRUCTION LTD,2897751,"-8,263.17 ",Camberwell Magistates' - Wates Construction Ltd - Major Internal Refurbishment
Ministry of Justice,HMCTS,25-Jun-14 ,532000-Tangible GBV - Additions,BZ999-London Region,WATES CONSTRUCTION LTD,2897751,"3,358.57 ",Bow County - Wates Construction Ltd - Window Replacement throughout building
Ministry of Justice,HMCTS,25-Jun-14 ,532000-Tangible GBV - Additions,BZ999-London Region,WATES CONSTRUCTION LTD,2897751,"8,263.17 ",Camberwell Magistates' - Wates Construction Ltd - Major Internal Refurbishment
Ministry of Justice,HMCTS,27-Jun-14 ,532000-Tangible GBV - Additions,BZ999-London Region,WATES CONSTRUCTION LTD,2899876,"18,559.78 ",Highbury Magistrates' - Wates Construction Ltd - Asbestos Removal
Ministry of Justice,HMCTS,27-Jun-14 ,532000-Tangible GBV - Additions,BZ999-London Region,WATES CONSTRUCTION LTD,2899876,"20,780.49 ",Uxbridge Magistrates' - Wates Construction Ltd -  Lift Replacement
Ministry of Justice,HMCTS,27-Jun-14 ,532000-Tangible GBV - Additions,BZ999-London Region,WATES CONSTRUCTION LTD,2899876,34.02 ,Ealing Magistrates' - Wates Construction Ltd - Chiller Replacement
Ministry of Justice,HMCTS,27-Jun-14 ,532000-Tangible GBV - Additions,BZ999-London Region,WATES CONSTRUCTION LTD,2899876,"69,104.13 ",Camberwell Magistates' - Wates Construction Ltd - Major Internal Refurbishment
Ministry of Justice,HMCTS,27-Jun-14 ,532000-Tangible GBV - Additions,BZ999-London Region,WATES CONSTRUCTION LTD,2899876,"-18,559.79 ",Highbury Magistrates' - Wates Construction Ltd - Asbestos Removal
Ministry of Justice,HMCTS,27-Jun-14 ,532000-Tangible GBV - Additions,BZ999-London Region,WATES CONSTRUCTION LTD,2899876,"4,156.10 ",Uxbridge Magistrates' - Wates Construction Ltd -  Lift Replacement
Ministry of Justice,HMCTS,27-Jun-14 ,532000-Tangible GBV - Additions,BZ999-London Region,WATES CONSTRUCTION LTD,2899876,"2,803.92 ","Southwark Crown - Wates Construction Ltd - Window, Boiler & BMS Replacement"
Ministry of Justice,HMCTS,27-Jun-14 ,532000-Tangible GBV - Additions,BZ999-London Region,WATES CONSTRUCTION LTD,2899876,6.80 ,Ealing Magistrates' - Wates Construction Ltd - Chiller Replacement
Ministry of Justice,HMCTS,27-Jun-14 ,532000-Tangible GBV - Additions,BZ999-London Region,WATES CONSTRUCTION LTD,2899876,"13,820.83 ",Camberwell Magistates' - Wates Construction Ltd - Major Internal Refurbishment
Ministry of Justice,HMCTS,27-Jun-14 ,532000-Tangible GBV - Additions,BZ999-London Region,WATES CONSTRUCTION LTD,2899876,"-2,803.92 ","Southwark Crown - Wates Construction Ltd - Window, Boiler & BMS Replacement"
Ministry of Justice,HMCTS,27-Jun-14 ,532000-Tangible GBV - Additions,BZ999-London Region,WATES CONSTRUCTION LTD,2899876,"2,880.28 ","Southwark Crown - Wates Construction Ltd - Window, Boiler & BMS Replacement"
Ministry of Justice,HMCTS,27-Jun-14 ,532000-Tangible GBV - Additions,BZ999-London Region,WATES CONSTRUCTION LTD,2899876,576.06 ,"Southwark Crown - Wates Construction Ltd - Window, Boiler & BMS Replacement"
Ministry of Justice,HMCTS,03-Jun-14 ,532000-Tangible GBV - Additions,CZ999-South East Region,VINCI CONSTRUCTION UK LTD,2873130,"104,500.00 ",CIS Labour - HMCTS South East Regional Project 2013/14 - Vinci Construction UK Ltd   Maidstone Combined Court -  to replace Lighting and ceilings
Ministry of Justice,HMCTS,03-Jun-14 ,532000-Tangible GBV - Additions,CZ999-South East Region,VINCI CONSTRUCTION UK LTD,2873130,"20,900.00 ",CIS Labour - HMCTS South East Regional Project 2013/14 - Vinci Construction UK Ltd   Maidstone Combined Court -  to replace Lighting and ceilings
Ministry of Justice,HMCTS,03-Jun-14 ,532000-Tangible GBV - Additions,BZ999-London Region,LEND LEASE CONSTRUCTION (EMEA) LTD,2872783,"25,866.81 ","CIS Labour - Bexley MC - LEND LEASE CONSTRUCTION (EMEA) LTD - Roof, Lighting and AHU Replacement"
Ministry of Justice,HMCTS,03-Jun-14 ,532000-Tangible GBV - Additions,BZ999-London Region,LEND LEASE CONSTRUCTION (EMEA) LTD,2872783,"20,030.00 ","CIS Labour - Bexley MC - LEND LEASE CONSTRUCTION (EMEA) LTD - Roof, Lighting and AHU Replacement"
Ministry of Justice,HMCTS,03-Jun-14 ,532000-Tangible GBV - Additions,BZ999-London Region,LEND LEASE CONSTRUCTION (EMEA) LTD,2872783,"25,605.31 ",CIS Labour - Brentford County - LEND LEASE CONSTRUCTION (EMEA) LTD - Window Replacement
Ministry of Justice,HMCTS,03-Jun-14 ,532000-Tangible GBV - Additions,BZ999-London Region,LEND LEASE CONSTRUCTION (EMEA) LTD,2872783,"34,973.98 ",CIS Labour - Croydon MC - LEND LEASE CONSTRUCTION (EMEA) LTD - Roof and Window Replacement
Ministry of Justice,HMCTS,03-Jun-14 ,532000-Tangible GBV - Additions,BZ999-London Region,LEND LEASE CONSTRUCTION (EMEA) LTD,2872783,"48,724.77 ",CIS Labour -Willesden County - LEND LEASE CONSTRUCTION (EMEA) LTD - Window Replacement
Ministry of Justice,HMCTS,03-Jun-14 ,532000-Tangible GBV - Additions,BZ999-London Region,LEND LEASE CONSTRUCTION (EMEA) LTD,2872783,"4,006.00 ","CIS Labour - Bexley MC - LEND LEASE CONSTRUCTION (EMEA) LTD - Roof, Lighting and AHU Replacement"
Ministry of Justice,HMCTS,03-Jun-14 ,532000-Tangible GBV - Additions,BZ999-London Region,LEND LEASE CONSTRUCTION (EMEA) LTD,2872783,"5,121.06 ",CIS Labour - Brentford County - LEND LEASE CONSTRUCTION (EMEA) LTD - Window Replacement
Ministry of Justice,HMCTS,03-Jun-14 ,532000-Tangible GBV - Additions,BZ999-London Region,LEND LEASE CONSTRUCTION (EMEA) LTD,2872783,"6,994.80 ",CIS Labour - Croydon MC - LEND LEASE CONSTRUCTION (EMEA) LTD - Roof and Window Replacement
Ministry of Justice,HMCTS,03-Jun-14 ,532000-Tangible GBV - Additions,BZ999-London Region,LEND LEASE CONSTRUCTION (EMEA) LTD,2872783,"9,744.95 ",CIS Labour -Willesden County - LEND LEASE CONSTRUCTION (EMEA) LTD - Window Replacement
Ministry of Justice,HMCTS,03-Jun-14 ,532000-Tangible GBV - Additions,BZ999-London Region,LEND LEASE CONSTRUCTION (EMEA) LTD,2872783,"-25,866.81 ","CIS Labour - Bexley MC - LEND LEASE CONSTRUCTION (EMEA) LTD - Roof, Lighting and AHU Replacement"
Ministry of Justice,HMCTS,18-Jun-14 ,532000-Tangible GBV - Additions,BZ999-London Region,LEND LEASE CONSTRUCTION (EMEA) LTD,2890430,"11,320.74 ","CIS Labour - Bexley MC - LEND LEASE CONSTRUCTION (EMEA) LTD - Roof, Lighting and AHU Replacement"
Ministry of Justice,HMCTS,18-Jun-14 ,532000-Tangible GBV - Additions,BZ999-London Region,LEND LEASE CONSTRUCTION (EMEA) LTD,2890430,"15,571.61 ",CIS Labour -Willesden County - LEND LEASE CONSTRUCTION (EMEA) LTD - Window Replacement
Ministry of Justice,HMCTS,18-Jun-14 ,532000-Tangible GBV - Additions,BZ999-London Region,LEND LEASE CONSTRUCTION (EMEA) LTD,2890430,"2,264.15 ","CIS Labour - Bexley MC - LEND LEASE CONSTRUCTION (EMEA) LTD - Roof, Lighting and AHU Replacement"
Ministry of Justice,HMCTS,18-Jun-14 ,532000-Tangible GBV - Additions,BZ999-London Region,LEND LEASE CONSTRUCTION (EMEA) LTD,2890430,"6,945.35 ",CIS Labour - Croydon MC - LEND LEASE CONSTRUCTION (EMEA) LTD - Roof and Window Replacement
Ministry of Justice,HMCTS,18-Jun-14 ,532000-Tangible GBV - Additions,BZ999-London Region,LEND LEASE CONSTRUCTION (EMEA) LTD,2890430,"3,114.32 ",CIS Labour -Willesden County - LEND LEASE CONSTRUCTION (EMEA) LTD - Window Replacement
Ministry of Justice,HMCTS,18-Jun-14 ,532000-Tangible GBV - Additions,BZ999-London Region,LEND LEASE CONSTRUCTION (EMEA) LTD,2890430,"-6,945.35 ",CIS Labour - Croydon MC - LEND LEASE CONSTRUCTION (EMEA) LTD - Roof and Window Replacement
Ministry of Justice,HMCTS,18-Jun-14 ,532000-Tangible GBV - Additions,BZ999-London Region,LEND LEASE CONSTRUCTION (EMEA) LTD,2890430,"34,626.76 ",CIS Labour - Croydon MC - LEND LEASE CONSTRUCTION (EMEA) LTD - Roof and Window Replacement
Ministry of Justice,HMCTS,18-Jun-14 ,532000-Tangible GBV - Additions,BZ999-London Region,LEND LEASE CONSTRUCTION (EMEA) LTD,2890430,"6,925.35 ",CIS Labour - Croydon MC - LEND LEASE CONSTRUCTION (EMEA) LTD - Roof and Window Replacement
Ministry of Justice,HMCTS,18-Jun-14 ,532000-Tangible GBV - Additions,DZ999-South West Region,LONGCROSS GROUP LTD,2890436,"5,474.60 ",CIS Labour - Stroud Magistrates - Longcross Group Ltd -  MW - PTO 13/14 (14) - Fire Alarm
Ministry of Justice,HMCTS,18-Jun-14 ,532000-Tangible GBV - Additions,DZ999-South West Region,LONGCROSS GROUP LTD,2890436,"27,373.00 ",CIS Labour - Stroud Magistrates - Longcross Group Ltd -  MW - PTO 13/14 (14) - Fire Alarm
Ministry of Justice,HMCTS,18-Jun-14 ,532000-Tangible GBV - Additions,DZ999-South West Region,LONGCROSS GROUP LTD,2890436,"5,474.60 ",CIS Labour - Stroud Magistrates - Longcross Group Ltd -  MW - PTO 13/14 (14) - Fire Alarm
Ministry of Justice,HMCTS,18-Jun-14 ,532000-Tangible GBV - Additions,DZ999-South West Region,LONGCROSS GROUP LTD,2890436,"-5,474.60 ",CIS Labour - Stroud Magistrates - Longcross Group Ltd -  MW - PTO 13/14 (14) - Fire Alarm
Ministry of Justice,HMCTS,18-Jun-14 ,532000-Tangible GBV - Additions,DZ999-South West Region,LONGCROSS GROUP LTD,2890436,"23,500.00 ",CIS Labour - Bath Law Courts - Longcross Group Ltd -   MW - PTO 13/14 (15) - Boiler Replacement
Ministry of Justice,HMCTS,18-Jun-14 ,532000-Tangible GBV - Additions,DZ999-South West Region,LONGCROSS GROUP LTD,2890436,"4,700.00 ",CIS Labour - Bath Law Courts - Longcross Group Ltd -   MW - PTO 13/14 (15) - Boiler Replacement
Ministry of Justice,HMCTS,17-Jun-14 ,532000-Tangible GBV - Additions,DZ999-South West Region,LONGCROSS GROUP LTD,2887810,"28,992.62 ",CIS Labour - Taunton Magistrates - Longcross Group Ltd - MW - PTO 13/14 (13)  - LV Replacement
Ministry of Justice,HMCTS,17-Jun-14 ,532000-Tangible GBV - Additions,DZ999-South West Region,LONGCROSS GROUP LTD,2887810,"5,798.52 ",CIS Labour - Taunton Magistrates - Longcross Group Ltd - MW - PTO 13/14 (13)  - LV Replacement
Ministry of Justice,HMCTS,17-Jun-14 ,532000-Tangible GBV - Additions,DZ999-South West Region,LONGCROSS GROUP LTD,2887810,"23,126.00 ",CIS Labour - Barnstaple Magistrates - Longcross Group Ltd - MW - PTO 13/14 (12) - LV Replacement
Ministry of Justice,HMCTS,17-Jun-14 ,532000-Tangible GBV - Additions,DZ999-South West Region,LONGCROSS GROUP LTD,2887810,"4,625.20 ",CIS Labour - Barnstaple Magistrates - Longcross Group Ltd - MW - PTO 13/14 (12) - LV Replacement
Ministry of Justice,HMCTS,17-Jun-14 ,532000-Tangible GBV - Additions,DZ999-South West Region,LONGCROSS GROUP LTD,2887810,"42,000.00 ",CIS Labour - Weymouth Magistrates - Longcross Group Ltd - MW - PTO 13/14 (17) -AHU Replacement
Ministry of Justice,HMCTS,17-Jun-14 ,532000-Tangible GBV - Additions,DZ999-South West Region,LONGCROSS GROUP LTD,2887810,"8,400.00 ",CIS Labour - Weymouth Magistrates - Longcross Group Ltd - MW - PTO 13/14 (17) -AHU Replacement
Ministry of Justice,HMCTS,17-Jun-14 ,532000-Tangible GBV - Additions,DZ999-South West Region,LONGCROSS GROUP LTD,2887810,"28,500.00 ",CIS Labour - Taunton Magistrates - Longcross Group Ltd -MW - PTO 13/14 (16) - Boiler Replacement
Ministry of Justice,HMCTS,17-Jun-14 ,532000-Tangible GBV - Additions,DZ999-South West Region,LONGCROSS GROUP LTD,2887810,"5,700.00 ",CIS Labour - Taunton Magistrates - Longcross Group Ltd -MW - PTO 13/14 (16) - Boiler Replacement
Ministry of Justice,HMCTS,10-Jun-14 ,532000-Tangible GBV - Additions,GZ999-North West Region,HENRY BOOT CONSTRUCTION LTD,2879924,"143,476.73 ",Bolton Combined: Replace R22 condensing units and replace dray air cooler
Ministry of Justice,HMCTS,10-Jun-14 ,532000-Tangible GBV - Additions,GZ999-North West Region,HENRY BOOT CONSTRUCTION LTD,2879924,"28,695.35 ",Bolton Combined: Replace R22 condensing units and replace dray air cooler
Ministry of Justice,HMCTS,10-Jun-14 ,532000-Tangible GBV - Additions,EZ999-Wales Region,ISG CONSTRUCTION LTD,2879948,"171,930.19 ",CIS Labour - Llanelli Magistrates Court - ISG Construction - Asbestos Removal & Integration
Ministry of Justice,HMCTS,10-Jun-14 ,532000-Tangible GBV - Additions,EZ999-Wales Region,ISG CONSTRUCTION LTD,2879948,"34,386.04 ",CIS Labour - Llanelli Magistrates Court - ISG Construction - Asbestos Removal & Integration
Ministry of Justice,HMCTS,04-Jun-14 ,532000-Tangible GBV - Additions,DZ999-South West Region,ISG CONSTRUCTION LTD,2875232,"97,700.00 ",CIS Labour - Plymouth Combined Court - ISG CONSTRUCTION LTD - capital maintenance works (SAA)
Ministry of Justice,HMCTS,04-Jun-14 ,532000-Tangible GBV - Additions,DZ999-South West Region,ISG CONSTRUCTION LTD,2875232,"28,000.00 ",CIS Labour - Plymouth Combined Court - ISG CONSTRUCTION LTD - capital maintenance works (SAA)
Ministry of Justice,HMCTS,04-Jun-14 ,532000-Tangible GBV - Additions,DZ999-South West Region,ISG CONSTRUCTION LTD,2875232,"268,700.00 ",CIS Labour - Plymouth Magistrates' Court - ISG CONSTRUCTION LTD - capital maintenance works (SAA)
Ministry of Justice,HMCTS,04-Jun-14 ,532000-Tangible GBV - Additions,DZ999-South West Region,ISG CONSTRUCTION LTD,2875232,"104,100.00 ",CIS Labour - Truro Combined Court - ISG CONSTRUCTION LTD - capital maintenance works (SAA)
Ministry of Justice,HMCTS,04-Jun-14 ,532000-Tangible GBV - Additions,DZ999-South West Region,ISG CONSTRUCTION LTD,2875232,"87,700.00 ",CIS Labour - Truro Magistrates' Court - ISG CONSTRUCTION LTD - capital maintenance works (SAA)
Ministry of Justice,HMCTS,04-Jun-14 ,532000-Tangible GBV - Additions,DZ999-South West Region,ISG CONSTRUCTION LTD,2875232,"5,600.00 ",CIS Labour - Plymouth Combined Court - ISG CONSTRUCTION LTD - capital maintenance works (SAA)
Ministry of Justice,HMCTS,04-Jun-14 ,532000-Tangible GBV - Additions,DZ999-South West Region,ISG CONSTRUCTION LTD,2875232,"53,740.00 ",CIS Labour - Plymouth Magistrates' Court - ISG CONSTRUCTION LTD - capital maintenance works (SAA)
Ministry of Justice,HMCTS,04-Jun-14 ,532000-Tangible GBV - Additions,DZ999-South West Region,ISG CONSTRUCTION LTD,2875232,"20,820.00 ",CIS Labour - Truro Combined Court - ISG CONSTRUCTION LTD - capital maintenance works (SAA)
Ministry of Justice,HMCTS,04-Jun-14 ,532000-Tangible GBV - Additions,DZ999-South West Region,ISG CONSTRUCTION LTD,2875232,"17,540.00 ",CIS Labour - Truro Magistrates' Court - ISG CONSTRUCTION LTD - capital maintenance works (SAA)
Ministry of Justice,HMCTS,04-Jun-14 ,532000-Tangible GBV - Additions,DZ999-South West Region,ISG CONSTRUCTION LTD,2875232,"-97,700.00 ",CIS Labour - Plymouth Combined Court - ISG CONSTRUCTION LTD - capital maintenance works (SAA)
Ministry of Justice,HMCTS,10-Jun-14 ,532000-Tangible GBV - Additions,EZ999-Wales Region,ISG CONSTRUCTION LTD,2879948,"27,157.72 ",CIS Labour - Cardiff Civil Justice Centre - ISG Construction - New DDA Lifts replacement
Ministry of Justice,HMCTS,10-Jun-14 ,532000-Tangible GBV - Additions,EZ999-Wales Region,ISG CONSTRUCTION LTD,2879948,"5,431.54 ",CIS Labour - Cardiff Civil Justice Centre - ISG Construction - New DDA Lifts replacement
Ministry of Justice,HMCTS,17-Jun-14 ,532000-Tangible GBV - Additions,EZ999-Wales Region,G4S INTEGRATED SERVICES (UK) LTD,2887658,0.01 ,CIS Labour - Wrexham Law Courts  - G4S Integrated Services - Provide double push wirless panic buttons throughout building TO-W-DEC13-701
Ministry of Justice,HMCTS,17-Jun-14 ,532000-Tangible GBV - Additions,EZ999-Wales Region,G4S INTEGRATED SERVICES (UK) LTD,2887658,"38,489.21 ",CIS Labour - Wrexham Law Courts  - G4S Integrated Services - Provide double push wirless panic buttons throughout building TO-W-DEC13-701
Ministry of Justice,HMCTS,17-Jun-14 ,532000-Tangible GBV - Additions,EZ999-Wales Region,G4S INTEGRATED SERVICES (UK) LTD,2887658,"7,697.84 ",CIS Labour - Wrexham Law Courts  - G4S Integrated Services - Provide double push wirless panic buttons throughout building TO-W-DEC13-701
Ministry of Justice,HMCTS,17-Jun-14 ,532000-Tangible GBV - Additions,EZ999-Wales Region,G4S INTEGRATED SERVICES (UK) LTD,2887658,"55,025.59 ",Swansea Crown - G4S - New Panic Alarm System
Ministry of Justice,HMCTS,17-Jun-14 ,532000-Tangible GBV - Additions,EZ999-Wales Region,G4S INTEGRATED SERVICES (UK) LTD,2887658,"11,005.12 ",Swansea Crown - G4S - New Panic Alarm System
Ministry of Justice,HMCTS,17-Jun-14 ,532000-Tangible GBV - Additions,EZ999-Wales Region,G4S INTEGRATED SERVICES (UK) LTD,2887658,0.01 ,CIS Labour - Mold Law Courts - G4S Integrated Services - Installation of panic alarm network
Ministry of Justice,HMCTS,17-Jun-14 ,532000-Tangible GBV - Additions,EZ999-Wales Region,G4S INTEGRATED SERVICES (UK) LTD,2887658,"49,546.01 ",CIS Labour - Mold Law Courts - G4S Integrated Services - Installation of panic alarm network
Ministry of Justice,HMCTS,17-Jun-14 ,532000-Tangible GBV - Additions,EZ999-Wales Region,G4S INTEGRATED SERVICES (UK) LTD,2887658,"9,909.20 ",CIS Labour - Mold Law Courts - G4S Integrated Services - Installation of panic alarm network
Ministry of Justice,HMCTS,10-Jun-14 ,532000-Tangible GBV - Additions,CZ999-South East Region,PENTACO CONSTRUCTION LIMITED,2880355,"31,616.87 ",CIS Labour - St Albans Magistrates  -Pentaco Construction Ltd - Replace and upgrade of AHU
Ministry of Justice,HMCTS,10-Jun-14 ,532000-Tangible GBV - Additions,CZ999-South East Region,PENTACO CONSTRUCTION LIMITED,2880355,"6,323.37 ",CIS Labour - St Albans Magistrates  -Pentaco Construction Ltd - Replace and upgrade of AHU
Ministry of Justice,HMCTS,10-Jun-14 ,532000-Tangible GBV - Additions,CZ999-South East Region,PENTACO CONSTRUCTION LIMITED,2880355,"22,847.14 ",CIS Labour - St Albans Magistrates  -Pentaco Construction Ltd - Replace and upgrade of AHU
Ministry of Justice,HMCTS,10-Jun-14 ,532000-Tangible GBV - Additions,CZ999-South East Region,PENTACO CONSTRUCTION LIMITED,2880355,"4,569.43 ",CIS Labour - St Albans Magistrates  -Pentaco Construction Ltd - Replace and upgrade of AHU
Ministry of Justice,HMCTS,03-Jun-14 ,532000-Tangible GBV - Additions,BZ999-London Region,INTERSERVE CONSTRUCTION LTD,2872723,"109,633.78 ",London Court Estate Reconfiguration - Interserve - Refurbishment of floors 1 to 5 Thomas More Building
Ministry of Justice,HMCTS,03-Jun-14 ,532000-Tangible GBV - Additions,BZ999-London Region,INTERSERVE CONSTRUCTION LTD,2872723,"494,627.26 ",London Court Estate Reconfiguration - Interserve - Refurbishment of floors 1 to 5 Thomas More Building
Ministry of Justice,HMCTS,03-Jun-14 ,532000-Tangible GBV - Additions,BZ999-London Region,INTERSERVE CONSTRUCTION LTD,2872723,"53,541.63 ","CIS Labour - London Court Estate Reconfiguration - Interserve - , Refurbishment of floors 1 to 5 Thomas More Building"
Ministry of Justice,HMCTS,03-Jun-14 ,532000-Tangible GBV - Additions,BZ999-London Region,INTERSERVE CONSTRUCTION LTD,2872723,"98,925.45 ","CIS Labour - London Court Estate Reconfiguration - Interserve - , Refurbishment of floors 1 to 5 Thomas More Building"
Ministry of Justice,HMCTS,03-Jun-14 ,532000-Tangible GBV - Additions,BZ999-London Region,INTERSERVE CONSTRUCTION LTD,2872723,"10,708.33 ","CIS Labour - London Court Estate Reconfiguration - Interserve - , Refurbishment of floors 1 to 5 Thomas More Building"
Ministry of Justice,HMCTS,03-Jun-14 ,532000-Tangible GBV - Additions,BZ999-London Region,INTERSERVE CONSTRUCTION LTD,2872723,"-109,633.78 ","CIS Labour - London Court Estate Reconfiguration - Interserve - , Refurbishment of floors 1 to 5 Thomas More Building"
Ministry of Justice,HMCTS,11-Jun-14 ,532000-Tangible GBV - Additions,BZ999-London Region,INTERSERVE CONSTRUCTION LTD,2883265,"52,201.28 ","CIS Labour - London Court Estate Reconfiguration - Interserve - , Refurbishment of floors 1 to 5 Thomas More Building"
Ministry of Justice,HMCTS,11-Jun-14 ,532000-Tangible GBV - Additions,BZ999-London Region,INTERSERVE CONSTRUCTION LTD,2883265,"261,006.42 ","CIS Labour - London Court Estate Reconfiguration - Interserve - , Refurbishment of floors 1 to 5 Thomas More Building"
Ministry of Justice,HMCTS,11-Jun-14 ,532000-Tangible GBV - Additions,BZ999-London Region,INTERSERVE CONSTRUCTION LTD,2883265,"52,201.28 ","CIS Labour - London Court Estate Reconfiguration - Interserve - , Refurbishment of floors 1 to 5 Thomas More Building"
Ministry of Justice,HMCTS,11-Jun-14 ,532000-Tangible GBV - Additions,BZ999-London Region,INTERSERVE CONSTRUCTION LTD,2883265,"-52,201.28 ","CIS Labour - London Court Estate Reconfiguration - Interserve - , Refurbishment of floors 1 to 5 Thomas More Building"
Ministry of Justice,HMCTS,06-Jun-14 ,532000-Tangible GBV - Additions,DZ999-South West Region,INTERSERVE CONSTRUCTION LTD,2877814,"25,906.53 ",CIS Labour - Southampton MC - Interserve Construction Ltd - Window Replacement and Remedials - This PO replaces 20000163831
Ministry of Justice,HMCTS,06-Jun-14 ,532000-Tangible GBV - Additions,DZ999-South West Region,INTERSERVE CONSTRUCTION LTD,2877814,"5,181.31 ",CIS Labour - Southampton MC - Interserve Construction Ltd - Window Replacement and Remedials - This PO replaces 20000163831
Ministry of Justice,HMCTS,10-Jun-14 ,532000-Tangible GBV - Additions,DZ999-South West Region,INTERSERVE CONSTRUCTION LTD,2879946,"25,495.79 ","CIS labour: roof works at Southampton Combined Court, BCP 11/12 (10e)."
Ministry of Justice,HMCTS,10-Jun-14 ,532000-Tangible GBV - Additions,DZ999-South West Region,INTERSERVE CONSTRUCTION LTD,2879946,"5,099.16 ","CIS labour: roof works at Southampton Combined Court, BCP 11/12 (10e)."
Ministry of Justice,HMCTS,10-Jun-14 ,532000-Tangible GBV - Additions,DZ999-South West Region,INTERSERVE CONSTRUCTION LTD,2879946,"34,373.35 ","CIS labour: roof works at Southampton Combined Court, BCP 11/12 (10e)."
Ministry of Justice,HMCTS,10-Jun-14 ,532000-Tangible GBV - Additions,DZ999-South West Region,INTERSERVE CONSTRUCTION LTD,2879946,"6,874.67 ","CIS labour: roof works at Southampton Combined Court, BCP 11/12 (10e)."
Ministry of Justice,HMCTS,10-Jun-14 ,532000-Tangible GBV - Additions,DZ999-South West Region,INTERSERVE CONSTRUCTION LTD,2879946,"36,064.32 ",CIS Labour - Southampton MC - Interserve Construction Ltd - Window Replacement and Remedials - This PO replaces 20000163831
Ministry of Justice,HMCTS,10-Jun-14 ,532000-Tangible GBV - Additions,DZ999-South West Region,INTERSERVE CONSTRUCTION LTD,2879946,"7,212.86 ",CIS Labour - Southampton MC - Interserve Construction Ltd - Window Replacement and Remedials - This PO replaces 20000163831
Ministry of Justice,HMCTS,06-Jun-14 ,610300-Debtors < 1 Year - Deposits & Advances,GZ999-North West Region,NEOPOST LTD,2877960,"99,569.00 ","weekly franking machine re-credits for HMCTS, MOJ and LAA"
Ministry of Justice,HMCTS,13-Jun-14 ,610300-Debtors < 1 Year - Deposits & Advances,GZ999-North West Region,NEOPOST LTD,2885487,"162,635.00 ","weekly franking machine re-credits for HMCTS, MOJ and LAA"
Ministry of Justice,HMCTS,20-Jun-14 ,610300-Debtors < 1 Year - Deposits & Advances,GZ999-North West Region,NEOPOST LTD,2892666,"112,640.00 ","weekly franking machine re-credits for HMCTS, MOJ and LAA"
Ministry of Justice,HMCTS,27-Jun-14 ,610300-Debtors < 1 Year - Deposits & Advances,GZ999-North West Region,NEOPOST LTD,2899702,"140,800.00 ","weekly franking machine re-credits for HMCTS, MOJ and LAA"
Ministry of Justice,HMCTS,24-Jun-14 ,610400-Debtors <1 year - Prepayments & Accrued Income,CZ999-South East Region,I ELLINSON & CO,2895183,"26,765.00 ",Rent payment
Ministry of Justice,HMCTS,24-Jun-14 ,610400-Debtors <1 year - Prepayments & Accrued Income,CZ999-South East Region,I ELLINSON & CO,2895183,"5,353.00 ",Rent payment
Ministry of Justice,HMCTS,10-Jun-14 ,610400-Debtors <1 year - Prepayments & Accrued Income,DZ999-South West Region,RATCLIFFES,2880382,"77,613.75 ",Rent payment
Ministry of Justice,HMCTS,10-Jun-14 ,610400-Debtors <1 year - Prepayments & Accrued Income,DZ999-South West Region,RATCLIFFES,2880382,"15,522.75 ",Rent payment
Ministry of Justice,HMCTS,17-Jun-14 ,610400-Debtors <1 year - Prepayments & Accrued Income,HZ999-North East Region,MPS2 LTD,2887869,"39,875.00 ",Rent payment
Ministry of Justice,HMCTS,17-Jun-14 ,610400-Debtors <1 year - Prepayments & Accrued Income,HZ999-North East Region,MPS2 LTD,2887869,"7,975.00 ",Rent payment
Ministry of Justice,HMCTS,20-Jun-14 ,610400-Debtors <1 year - Prepayments & Accrued Income,BZ999-London Region,JOHN & SANDRA JOSEPH,2892543,"108,525.00 ",Rent payment
Ministry of Justice,HMCTS,20-Jun-14 ,610400-Debtors <1 year - Prepayments & Accrued Income,BZ999-London Region,JOHN & SANDRA JOSEPH,2892543,"21,705.00 ",Rent payment
Ministry of Justice,HMCTS,13-Jun-14 ,610400-Debtors <1 year - Prepayments & Accrued Income,CZ999-South East Region,MERCHANT PLACE PROPERTY PARTNERSHIP 36,2885458,"242,480.22 ",Rent payment
Ministry of Justice,HMCTS,13-Jun-14 ,610400-Debtors <1 year - Prepayments & Accrued Income,CZ999-South East Region,MERCHANT PLACE PROPERTY PARTNERSHIP 36,2885458,"48,496.04 ",Rent payment
Ministry of Justice,HMCTS,13-Jun-14 ,610400-Debtors <1 year - Prepayments & Accrued Income,HZ999-North East Region,M J MAPP LTD,2885429,"66,250.00 ",Rent payment
Ministry of Justice,HMCTS,13-Jun-14 ,610400-Debtors <1 year - Prepayments & Accrued Income,HZ999-North East Region,M J MAPP LTD,2885429,"13,250.00 ",Rent payment
Ministry of Justice,HMCTS,06-Jun-14 ,610400-Debtors <1 year - Prepayments & Accrued Income,HZ999-North East Region,SANDERSON WEATHERALL,2878088,"20,306.25 ",Rent payment
Ministry of Justice,HMCTS,06-Jun-14 ,610400-Debtors <1 year - Prepayments & Accrued Income,HZ999-North East Region,SANDERSON WEATHERALL,2878088,"4,061.25 ",Rent payment
Ministry of Justice,HMCTS,03-Jun-14 ,610400-Debtors <1 year - Prepayments & Accrued Income,GZ999-North West Region,PHILIP J DAVIES (HOLDINGS) PLC,2872972,"56,750.00 ",Rent payment
Ministry of Justice,HMCTS,03-Jun-14 ,610400-Debtors <1 year - Prepayments & Accrued Income,GZ999-North West Region,PHILIP J DAVIES (HOLDINGS) PLC,2872972,"11,350.00 ",Rent payment
Ministry of Justice,HMCTS,20-Jun-14 ,610400-Debtors <1 year - Prepayments & Accrued Income,CZ999-South East Region,WESDON MANAGEMENT LTD (IN RECEIVERSHIP),2892931,"35,000.00 ",Rent payment
Ministry of Justice,HMCTS,20-Jun-14 ,610400-Debtors <1 year - Prepayments & Accrued Income,CZ999-South East Region,WESDON MANAGEMENT LTD (IN RECEIVERSHIP),2892931,"7,000.00 ",Rent payment
Ministry of Justice,HMCTS,10-Jun-14 ,610400-Debtors <1 year - Prepayments & Accrued Income,CZ999-South East Region,AFFINITY COMMERCIAL LLP,2879627,"329,676.75 ",Rent payment
Ministry of Justice,HMCTS,10-Jun-14 ,610400-Debtors <1 year - Prepayments & Accrued Income,CZ999-South East Region,AFFINITY COMMERCIAL LLP,2879627,"65,935.35 ",Rent payment
Ministry of Justice,HMCTS,27-Jun-14 ,610400-Debtors <1 year - Prepayments & Accrued Income,DZ999-South West Region,SWANSTON HOLDINGS,2899831,"26,500.00 ",Rent payment
Ministry of Justice,HMCTS,27-Jun-14 ,610400-Debtors <1 year - Prepayments & Accrued Income,DZ999-South West Region,SWANSTON HOLDINGS,2899831,"5,300.00 ",Rent payment
Ministry of Justice,HMCTS,04-Jun-14 ,610400-Debtors <1 year - Prepayments & Accrued Income,HZ999-North East Region,COLENSO PROPERTY SERVICES LLP,2875117,"29,250.00 ",Rent payment
Ministry of Justice,HMCTS,04-Jun-14 ,610400-Debtors <1 year - Prepayments & Accrued Income,HZ999-North East Region,COLENSO PROPERTY SERVICES LLP,2875117,"5,850.00 ",Rent payment
Ministry of Justice,HMCTS,10-Jun-14 ,610400-Debtors <1 year - Prepayments & Accrued Income,FZ999-Midlands Region,CLSH MANAGEMENT LTD,2879755,"42,594.92 ",Rent payment
Ministry of Justice,HMCTS,03-Jun-14 ,610400-Debtors <1 year - Prepayments & Accrued Income,BZ999-London Region,CLSH MANAGEMENT LTD,2872486,"45,000.00 ",Rent payment
Ministry of Justice,HMCTS,03-Jun-14 ,610400-Debtors <1 year - Prepayments & Accrued Income,BZ999-London Region,CLSH MANAGEMENT LTD,2872486,"9,000.00 ",Rent payment
Ministry of Justice,HMCTS,10-Jun-14 ,610400-Debtors <1 year - Prepayments & Accrued Income,GZ999-North West Region,CORK STREET PROPERTIES LTD,2879769,"2,171,284.00 ",Rent payment
Ministry of Justice,HMCTS,10-Jun-14 ,610400-Debtors <1 year - Prepayments & Accrued Income,GZ999-North West Region,CORK STREET PROPERTIES LTD,2879769,"434,256.80 ",Rent payment
Ministry of Justice,HMCTS,17-Jun-14 ,610400-Debtors <1 year - Prepayments & Accrued Income,BZ999-London Region,JAMES ANDREW RSW,2887757,"225,708.25 ",Rent payment
Ministry of Justice,HMCTS,17-Jun-14 ,610400-Debtors <1 year - Prepayments & Accrued Income,BZ999-London Region,JAMES ANDREW RSW,2887757,"45,141.65 ",Rent payment
Ministry of Justice,HMCTS,10-Jun-14 ,610400-Debtors <1 year - Prepayments & Accrued Income,GZ999-North West Region,HURSTWOOD PROPERTIES (R) LTD,2879944,600.00 ,Rent payment
Ministry of Justice,HMCTS,10-Jun-14 ,610400-Debtors <1 year - Prepayments & Accrued Income,GZ999-North West Region,HURSTWOOD PROPERTIES (R) LTD,2879944,120.00 ,Rent payment
Ministry of Justice,HMCTS,17-Jun-14 ,610400-Debtors <1 year - Prepayments & Accrued Income,CZ999-South East Region,CBRE LTD,2887526,"100,480.25 ",Rent payment
Ministry of Justice,HMCTS,17-Jun-14 ,610400-Debtors <1 year - Prepayments & Accrued Income,CZ999-South East Region,CBRE LTD,2887526,"20,096.05 ",Rent payment
Ministry of Justice,HMCTS,10-Jun-14 ,610400-Debtors <1 year - Prepayments & Accrued Income,BZ999-London Region,BROADGATE ESTATES LTD,2879699,"2,616,550.00 ",Rent payment
Ministry of Justice,HMCTS,10-Jun-14 ,610400-Debtors <1 year - Prepayments & Accrued Income,BZ999-London Region,BROADGATE ESTATES LTD,2879699,"523,310.00 ",Rent payment
Ministry of Justice,HMCTS,20-Jun-14 ,610400-Debtors <1 year - Prepayments & Accrued Income,GZ999-North West Region,OAKLAWN,2892681,"26,818.88 ",Rent payment
Ministry of Justice,HMCTS,20-Jun-14 ,610400-Debtors <1 year - Prepayments & Accrued Income,GZ999-North West Region,OAKLAWN,2892681,"5,363.77 ",Rent payment
Ministry of Justice,HMCTS,03-Jun-14 ,610400-Debtors <1 year - Prepayments & Accrued Income,GZ999-North West Region,LAMBERT SMITH HAMPTON,2872772,"17,750.00 ",Rent payment
Ministry of Justice,HMCTS,03-Jun-14 ,610400-Debtors <1 year - Prepayments & Accrued Income,GZ999-North West Region,LAMBERT SMITH HAMPTON,2872772,"3,550.00 ",Rent payment
Ministry of Justice,HMCTS,03-Jun-14 ,610400-Debtors <1 year - Prepayments & Accrued Income,CZ999-South East Region,DTZ DEBENHAM TIE LEUNG,2872558,"13,750.00 ",Rent payment
Ministry of Justice,HMCTS,03-Jun-14 ,610400-Debtors <1 year - Prepayments & Accrued Income,CZ999-South East Region,DTZ DEBENHAM TIE LEUNG,2872558,"2,750.00 ",Rent payment
Ministry of Justice,HMCTS,10-Jun-14 ,610400-Debtors <1 year - Prepayments & Accrued Income,FZ999-Midlands Region,PRICEWATERHOUSECOOPERS LLP,2880373,"96,423.75 ",Rent payment
Ministry of Justice,HMCTS,10-Jun-14 ,610400-Debtors <1 year - Prepayments & Accrued Income,FZ999-Midlands Region,PRICEWATERHOUSECOOPERS LLP,2880373,"19,284.75 ",Rent payment
Ministry of Justice,HMCTS,10-Jun-14 ,610400-Debtors <1 year - Prepayments & Accrued Income,FZ999-Midlands Region,PRICEWATERHOUSECOOPERS LLP,2880373,"89,898.75 ",Rent payment
Ministry of Justice,HMCTS,10-Jun-14 ,610400-Debtors <1 year - Prepayments & Accrued Income,FZ999-Midlands Region,PRICEWATERHOUSECOOPERS LLP,2880373,"17,979.75 ",Rent payment
Ministry of Justice,HMCTS,13-Jun-14 ,610400-Debtors <1 year - Prepayments & Accrued Income,FZ999-Midlands Region,PRICEWATERHOUSECOOPERS LLP,2885749,"96,423.75 ",Rent payment
Ministry of Justice,HMCTS,13-Jun-14 ,610400-Debtors <1 year - Prepayments & Accrued Income,FZ999-Midlands Region,PRICEWATERHOUSECOOPERS LLP,2885749,"19,284.75 ",Rent payment
Ministry of Justice,HMCTS,04-Jun-14 ,610400-Debtors <1 year - Prepayments & Accrued Income,EZ999-Wales Region,LAMBERT SMITH HAMPTON,2875253,"25,400.00 ",Rent payment
Ministry of Justice,HMCTS,04-Jun-14 ,610400-Debtors <1 year - Prepayments & Accrued Income,EZ999-Wales Region,LAMBERT SMITH HAMPTON,2875253,"5,080.00 ",Rent payment
Ministry of Justice,HMCTS,10-Jun-14 ,610400-Debtors <1 year - Prepayments & Accrued Income,FZ999-Midlands Region,JONES LANG LASALLE LTD,2879965,"208,599.56 ",Rent payment
Ministry of Justice,HMCTS,10-Jun-14 ,610400-Debtors <1 year - Prepayments & Accrued Income,FZ999-Midlands Region,JONES LANG LASALLE LTD,2879965,"41,719.91 ",Rent payment
Ministry of Justice,HMCTS,20-Jun-14 ,610400-Debtors <1 year - Prepayments & Accrued Income,EZ999-Wales Region,CBRE LTD,2892330,"13,662.50 ",Rent payment
Ministry of Justice,HMCTS,20-Jun-14 ,610400-Debtors <1 year - Prepayments & Accrued Income,EZ999-Wales Region,CBRE LTD,2892330,"2,732.50 ",Rent payment
Ministry of Justice,HMCTS,20-Jun-14 ,610400-Debtors <1 year - Prepayments & Accrued Income,BZ999-London Region,CBRE LTD,2892330,"1,236,675.00 ",Rent payment
Ministry of Justice,HMCTS,20-Jun-14 ,610400-Debtors <1 year - Prepayments & Accrued Income,BZ999-London Region,CBRE LTD,2892330,"247,335.00 ",Rent payment
Ministry of Justice,HMCTS,10-Jun-14 ,610400-Debtors <1 year - Prepayments & Accrued Income,DZ999-South West Region,STANDARD LIFE INVESTMENTS,2880471,"236,756.00 ",Rent payment
Ministry of Justice,HMCTS,10-Jun-14 ,610400-Debtors <1 year - Prepayments & Accrued Income,DZ999-South West Region,STANDARD LIFE INVESTMENTS,2880471,"47,351.20 ",Rent payment
Ministry of Justice,HMCTS,10-Jun-14 ,610400-Debtors <1 year - Prepayments & Accrued Income,CZ999-South East Region,STANDARD LIFE INVESTMENTS,2880470,"180,136.59 ",Rent payment
Ministry of Justice,HMCTS,10-Jun-14 ,610400-Debtors <1 year - Prepayments & Accrued Income,CZ999-South East Region,STANDARD LIFE INVESTMENTS,2880470,"36,027.32 ",Rent payment
Ministry of Justice,HMCTS,18-Jun-14 ,610400-Debtors <1 year - Prepayments & Accrued Income,DZ999-South West Region,JONES LANG LASALLE LTD,2890409,"528,125.00 ",Rent payment
Ministry of Justice,HMCTS,18-Jun-14 ,610400-Debtors <1 year - Prepayments & Accrued Income,DZ999-South West Region,JONES LANG LASALLE LTD,2890409,"105,625.00 ",Rent payment
Ministry of Justice,HMCTS,27-Jun-14 ,610400-Debtors <1 year - Prepayments & Accrued Income,GZ999-North West Region,LONDON & CAPITAL PROPERTIES LTD,2899643,"126,133.71 ",Rent payment
Ministry of Justice,HMCTS,27-Jun-14 ,610400-Debtors <1 year - Prepayments & Accrued Income,GZ999-North West Region,LONDON & CAPITAL PROPERTIES LTD,2899643,"25,226.74 ",Rent payment
Ministry of Justice,HMCTS,27-Jun-14 ,610400-Debtors <1 year - Prepayments & Accrued Income,GZ999-North West Region,LONDON & CAPITAL PROPERTIES LTD,2899643,"129,745.98 ",Rent payment
Ministry of Justice,HMCTS,27-Jun-14 ,610400-Debtors <1 year - Prepayments & Accrued Income,GZ999-North West Region,LONDON & CAPITAL PROPERTIES LTD,2899643,"25,949.19 ",Rent payment
Ministry of Justice,HMCTS,27-Jun-14 ,610400-Debtors <1 year - Prepayments & Accrued Income,GZ999-North West Region,LONDON & CAPITAL PROPERTIES LTD,2899643,"130,264.02 ",Rent payment
Ministry of Justice,HMCTS,27-Jun-14 ,610400-Debtors <1 year - Prepayments & Accrued Income,GZ999-North West Region,LONDON & CAPITAL PROPERTIES LTD,2899643,"26,052.80 ",Rent payment
Ministry of Justice,HMCTS,27-Jun-14 ,610400-Debtors <1 year - Prepayments & Accrued Income,GZ999-North West Region,LONDON & CAPITAL PROPERTIES LTD,2899643,"96,716.32 ",Rent payment
Ministry of Justice,HMCTS,27-Jun-14 ,610400-Debtors <1 year - Prepayments & Accrued Income,GZ999-North West Region,LONDON & CAPITAL PROPERTIES LTD,2899643,"19,343.26 ",Rent payment
Ministry of Justice,HMCTS,03-Jun-14 ,610400-Debtors <1 year - Prepayments & Accrued Income,BZ999-London Region,EDDISONS,2872567,"30,460.07 ",Rent payment
Ministry of Justice,HMCTS,03-Jun-14 ,610400-Debtors <1 year - Prepayments & Accrued Income,BZ999-London Region,EDDISONS,2872567,"6,092.01 ",Rent payment
Ministry of Justice,HMCTS,10-Jun-14 ,610400-Debtors <1 year - Prepayments & Accrued Income,DZ999-South West Region,WORKMAN,2880584,"76,381.25 ",Rent payment
Ministry of Justice,HMCTS,10-Jun-14 ,610400-Debtors <1 year - Prepayments & Accrued Income,DZ999-South West Region,WORKMAN,2880584,"15,276.25 ",Rent payment
Ministry of Justice,HMCTS,10-Jun-14 ,610400-Debtors <1 year - Prepayments & Accrued Income,HZ999-North East Region,GVA GRIMLEY LTD T/A GVA,2879890,"46,323.25 ",Rent payment
Ministry of Justice,HMCTS,10-Jun-14 ,610400-Debtors <1 year - Prepayments & Accrued Income,HZ999-North East Region,GVA GRIMLEY LTD T/A GVA,2879890,"9,264.65 ",Rent payment
Ministry of Justice,HMCTS,17-Jun-14 ,610400-Debtors <1 year - Prepayments & Accrued Income,CZ999-South East Region,CBGA ROBSON LLP,2887525,"38,417.50 ",Rent payment
Ministry of Justice,HMCTS,17-Jun-14 ,610400-Debtors <1 year - Prepayments & Accrued Income,CZ999-South East Region,CBGA ROBSON LLP,2887525,"7,683.50 ",Rent payment
Ministry of Justice,HMCTS,06-Jun-14 ,610400-Debtors <1 year - Prepayments & Accrued Income,GZ999-North West Region,SAVILLS COMMERCIAL LTD,2878092,"109,403.75 ",Rent payment
Ministry of Justice,HMCTS,06-Jun-14 ,610400-Debtors <1 year - Prepayments & Accrued Income,GZ999-North West Region,SAVILLS COMMERCIAL LTD,2878092,"21,880.75 ",Rent payment
Ministry of Justice,HMCTS,13-Jun-14 ,610400-Debtors <1 year - Prepayments & Accrued Income,CZ999-South East Region,GDPP,2885286,"59,125.00 ",Rent payment
Ministry of Justice,HMCTS,13-Jun-14 ,610400-Debtors <1 year - Prepayments & Accrued Income,CZ999-South East Region,GDPP,2885286,"11,825.00 ",Rent payment
Ministry of Justice,HMCTS,10-Jun-14 ,610400-Debtors <1 year - Prepayments & Accrued Income,DZ999-South West Region,LONDONDERRY ADMINISTRATIVE SERVICES,2880023,"30,937.50 ",Rent payment
Ministry of Justice,HMCTS,10-Jun-14 ,610400-Debtors <1 year - Prepayments & Accrued Income,DZ999-South West Region,LONDONDERRY ADMINISTRATIVE SERVICES,2880023,"6,187.50 ",Rent payment
Ministry of Justice,HMCTS,20-Jun-14 ,610400-Debtors <1 year - Prepayments & Accrued Income,HZ999-North East Region,MORDEN COLLEGE,2892642,"47,875.00 ",Rent payment
Ministry of Justice,HMCTS,20-Jun-14 ,610400-Debtors <1 year - Prepayments & Accrued Income,HZ999-North East Region,MORDEN COLLEGE,2892642,"9,575.00 ",Rent payment
Ministry of Justice,HMCTS,06-Jun-14 ,610400-Debtors <1 year - Prepayments & Accrued Income,EZ999-Wales Region,SAVILLS COMMERCIAL LTD,2878092,"71,170.16 ",Rent payment
Ministry of Justice,HMCTS,06-Jun-14 ,610400-Debtors <1 year - Prepayments & Accrued Income,EZ999-Wales Region,SAVILLS COMMERCIAL LTD,2878092,"14,234.03 ",Rent payment
Ministry of Justice,HMCTS,27-Jun-14 ,610400-Debtors <1 year - Prepayments & Accrued Income,FZ999-Midlands Region,BOND WOLFE ASSETS LTD,2899395,"33,905.70 ",Rent payment
Ministry of Justice,HMCTS,17-Jun-14 ,610400-Debtors <1 year - Prepayments & Accrued Income,BZ999-London Region,BERKLEY ESTATES LONDON LTD,2887459,"1,168,077.14 ",Rent payment
Ministry of Justice,HMCTS,13-Jun-14 ,610400-Debtors <1 year - Prepayments & Accrued Income,EZ999-Wales Region,SCOTTS PROPERTY LLP,2885793,"33,750.00 ",Rent payment
Ministry of Justice,HMCTS,13-Jun-14 ,610400-Debtors <1 year - Prepayments & Accrued Income,EZ999-Wales Region,SCOTTS PROPERTY LLP,2885793,"6,750.00 ",Rent payment
Ministry of Justice,HMCTS,20-Jun-14 ,610400-Debtors <1 year - Prepayments & Accrued Income,CZ999-South East Region,HERTFORDSHIRE CONSTABULARY,2892495,"5,274.87 ",Rent payment
Ministry of Justice,HMCTS,20-Jun-14 ,610400-Debtors <1 year - Prepayments & Accrued Income,CZ999-South East Region,HERTFORDSHIRE CONSTABULARY,2892495,"-5,274.87 ",Rent payment
Ministry of Justice,HMCTS,20-Jun-14 ,610400-Debtors <1 year - Prepayments & Accrued Income,CZ999-South East Region,HERTFORDSHIRE CONSTABULARY,2892495,"26,374.37 ",Rent payment
Ministry of Justice,HMCTS,20-Jun-14 ,610400-Debtors <1 year - Prepayments & Accrued Income,CZ999-South East Region,SUFFOLKLIFE,2892874,"32,593.00 ",Rent payment
Ministry of Justice,HMCTS,17-Jun-14 ,610400-Debtors <1 year - Prepayments & Accrued Income,CZ999-South East Region,GOOD HARVEST GROUP LTD,2887670,"41,080.00 ",Rent payment
Ministry of Justice,HMCTS,17-Jun-14 ,610400-Debtors <1 year - Prepayments & Accrued Income,CZ999-South East Region,GOOD HARVEST GROUP LTD,2887670,"8,216.00 ",Rent payment
Ministry of Justice,HMCTS,19-Jun-14 ,610400-Debtors <1 year - Prepayments & Accrued Income,BZ999-London Region,RESIDENTIAL PARTNERS S42 CLIENT ACCOUNT#56865,7517,"202,500.00 ",Rent payment
Ministry of Justice,HMCTS,24-Jun-14 ,610400-Debtors <1 year - Prepayments & Accrued Income,CZ999-South East Region,I ELLINSON & CO,2895183,"13,025.00 ",Service charge payment
Ministry of Justice,HMCTS,24-Jun-14 ,610400-Debtors <1 year - Prepayments & Accrued Income,CZ999-South East Region,I ELLINSON & CO,2895183,"2,605.00 ",Service charge payment
Ministry of Justice,HMCTS,18-Jun-14 ,610400-Debtors <1 year - Prepayments & Accrued Income,GZ999-North West Region,SMITH & SONS,2890552,"25,560.47 ",Service charge payment
Ministry of Justice,HMCTS,18-Jun-14 ,610400-Debtors <1 year - Prepayments & Accrued Income,GZ999-North West Region,SMITH & SONS,2890552,"5,112.09 ",Service charge payment
Ministry of Justice,HMCTS,03-Jun-14 ,610400-Debtors <1 year - Prepayments & Accrued Income,CZ999-South East Region,OSPREY HOUSE (MANAGEMENT) LTD,2872951,"43,022.50 ",Service charge payment
Ministry of Justice,HMCTS,03-Jun-14 ,610400-Debtors <1 year - Prepayments & Accrued Income,CZ999-South East Region,OSPREY HOUSE (MANAGEMENT) LTD,2872951,"8,604.50 ",Service charge payment
Ministry of Justice,HMCTS,13-Jun-14 ,610400-Debtors <1 year - Prepayments & Accrued Income,HZ999-North East Region,M J MAPP LTD,2885429,"26,004.55 ",Service charge payment
Ministry of Justice,HMCTS,13-Jun-14 ,610400-Debtors <1 year - Prepayments & Accrued Income,HZ999-North East Region,M J MAPP LTD,2885429,"5,200.91 ",Service charge payment
Ministry of Justice,HMCTS,06-Jun-14 ,610400-Debtors <1 year - Prepayments & Accrued Income,HZ999-North East Region,SANDERSON WEATHERALL,2878088,"4,966.50 ",Service charge payment
Ministry of Justice,HMCTS,06-Jun-14 ,610400-Debtors <1 year - Prepayments & Accrued Income,HZ999-North East Region,SANDERSON WEATHERALL,2878088,993.30 ,Service charge payment
Ministry of Justice,HMCTS,06-Jun-14 ,610400-Debtors <1 year - Prepayments & Accrued Income,GZ999-North West Region,HURSTWOOD PROPERTIES (R) LTD,2877808,"33,354.62 ",Service charge payment
Ministry of Justice,HMCTS,06-Jun-14 ,610400-Debtors <1 year - Prepayments & Accrued Income,GZ999-North West Region,HURSTWOOD PROPERTIES (R) LTD,2877808,"6,670.93 ",Service charge payment
Ministry of Justice,HMCTS,10-Jun-14 ,610400-Debtors <1 year - Prepayments & Accrued Income,GZ999-North West Region,HURSTWOOD PROPERTIES (R) LTD,2879944,"63,775.75 ",Service charge payment
Ministry of Justice,HMCTS,10-Jun-14 ,610400-Debtors <1 year - Prepayments & Accrued Income,GZ999-North West Region,HURSTWOOD PROPERTIES (R) LTD,2879944,"12,755.15 ",Service charge payment
Ministry of Justice,HMCTS,10-Jun-14 ,610400-Debtors <1 year - Prepayments & Accrued Income,GZ999-North West Region,CBRE LTD,2879738,"22,814.25 ",Service charge payment
Ministry of Justice,HMCTS,10-Jun-14 ,610400-Debtors <1 year - Prepayments & Accrued Income,GZ999-North West Region,CBRE LTD,2879738,"4,562.85 ",Service charge payment
Ministry of Justice,HMCTS,10-Jun-14 ,610400-Debtors <1 year - Prepayments & Accrued Income,GZ999-North West Region,CBRE LTD,2879738,"27,976.50 ",Service charge payment
Ministry of Justice,HMCTS,10-Jun-14 ,610400-Debtors <1 year - Prepayments & Accrued Income,GZ999-North West Region,CBRE LTD,2879738,"5,595.30 ",Service charge payment
Ministry of Justice,HMCTS,10-Jun-14 ,610400-Debtors <1 year - Prepayments & Accrued Income,GZ999-North West Region,CBRE LTD,2879738,"28,724.75 ",Service charge payment
Ministry of Justice,HMCTS,10-Jun-14 ,610400-Debtors <1 year - Prepayments & Accrued Income,GZ999-North West Region,CBRE LTD,2879738,"5,744.95 ",Service charge payment
Ministry of Justice,HMCTS,10-Jun-14 ,610400-Debtors <1 year - Prepayments & Accrued Income,GZ999-North West Region,CBRE LTD,2879738,"28,683.75 ",Service charge payment
Ministry of Justice,HMCTS,10-Jun-14 ,610400-Debtors <1 year - Prepayments & Accrued Income,GZ999-North West Region,CBRE LTD,2879738,"5,736.75 ",Service charge payment
Ministry of Justice,HMCTS,17-Jun-14 ,610400-Debtors <1 year - Prepayments & Accrued Income,CZ999-South East Region,CBRE LTD,2887526,"8,601.00 ",Service charge payment
Ministry of Justice,HMCTS,17-Jun-14 ,610400-Debtors <1 year - Prepayments & Accrued Income,CZ999-South East Region,CBRE LTD,2887526,"1,720.20 ",Service charge payment
Ministry of Justice,HMCTS,10-Jun-14 ,610400-Debtors <1 year - Prepayments & Accrued Income,BZ999-London Region,BROADGATE ESTATES LTD,2879699,"287,755.90 ",Service charge payment
Ministry of Justice,HMCTS,10-Jun-14 ,610400-Debtors <1 year - Prepayments & Accrued Income,BZ999-London Region,BROADGATE ESTATES LTD,2879699,"57,551.18 ",Service charge payment
Ministry of Justice,HMCTS,03-Jun-14 ,610400-Debtors <1 year - Prepayments & Accrued Income,GZ999-North West Region,LAMBERT SMITH HAMPTON,2872772,"7,557.68 ",Service charge payment
Ministry of Justice,HMCTS,03-Jun-14 ,610400-Debtors <1 year - Prepayments & Accrued Income,GZ999-North West Region,LAMBERT SMITH HAMPTON,2872772,"1,511.54 ",Service charge payment
Ministry of Justice,HMCTS,03-Jun-14 ,610400-Debtors <1 year - Prepayments & Accrued Income,HZ999-North East Region,STOREYS EDWARD SYMMONS,2873080,"34,176.12 ",Service charge payment
Ministry of Justice,HMCTS,03-Jun-14 ,610400-Debtors <1 year - Prepayments & Accrued Income,HZ999-North East Region,STOREYS EDWARD SYMMONS,2873080,"6,835.22 ",Service charge payment
Ministry of Justice,HMCTS,03-Jun-14 ,610400-Debtors <1 year - Prepayments & Accrued Income,CZ999-South East Region,DTZ DEBENHAM TIE LEUNG,2872558,"11,870.02 ",Service charge payment
Ministry of Justice,HMCTS,03-Jun-14 ,610400-Debtors <1 year - Prepayments & Accrued Income,CZ999-South East Region,DTZ DEBENHAM TIE LEUNG,2872558,"2,374.00 ",Service charge payment
Ministry of Justice,HMCTS,10-Jun-14 ,610400-Debtors <1 year - Prepayments & Accrued Income,FZ999-Midlands Region,PRICEWATERHOUSECOOPERS LLP,2880373,"31,856.25 ",Service charge payment
Ministry of Justice,HMCTS,10-Jun-14 ,610400-Debtors <1 year - Prepayments & Accrued Income,FZ999-Midlands Region,PRICEWATERHOUSECOOPERS LLP,2880373,"6,371.25 ",Service charge payment
Ministry of Justice,HMCTS,10-Jun-14 ,610400-Debtors <1 year - Prepayments & Accrued Income,FZ999-Midlands Region,PRICEWATERHOUSECOOPERS LLP,2880373,"29,686.25 ",Service charge payment
Ministry of Justice,HMCTS,10-Jun-14 ,610400-Debtors <1 year - Prepayments & Accrued Income,FZ999-Midlands Region,PRICEWATERHOUSECOOPERS LLP,2880373,"5,937.25 ",Service charge payment
Ministry of Justice,HMCTS,13-Jun-14 ,610400-Debtors <1 year - Prepayments & Accrued Income,FZ999-Midlands Region,PRICEWATERHOUSECOOPERS LLP,2885749,"31,856.25 ",Service charge payment
Ministry of Justice,HMCTS,13-Jun-14 ,610400-Debtors <1 year - Prepayments & Accrued Income,FZ999-Midlands Region,PRICEWATERHOUSECOOPERS LLP,2885749,"6,371.25 ",Service charge payment
Ministry of Justice,HMCTS,10-Jun-14 ,610400-Debtors <1 year - Prepayments & Accrued Income,CZ999-South East Region,SOUTHEND-ON-SEA BOROUGH COUNCIL,2880463,"66,967.54 ",Service charge payment
Ministry of Justice,HMCTS,10-Jun-14 ,610400-Debtors <1 year - Prepayments & Accrued Income,CZ999-South East Region,SOUTHEND-ON-SEA BOROUGH COUNCIL,2880463,"7,970.24 ",Service charge payment
Ministry of Justice,HMCTS,10-Jun-14 ,610400-Debtors <1 year - Prepayments & Accrued Income,CZ999-South East Region,SOUTHEND-ON-SEA BOROUGH COUNCIL,2880463,"13,393.51 ",Service charge payment
Ministry of Justice,HMCTS,20-Jun-14 ,610400-Debtors <1 year - Prepayments & Accrued Income,EZ999-Wales Region,CBRE LTD,2892330,"12,200.00 ",Service charge payment
Ministry of Justice,HMCTS,20-Jun-14 ,610400-Debtors <1 year - Prepayments & Accrued Income,EZ999-Wales Region,CBRE LTD,2892330,"2,440.00 ",Service charge payment
Ministry of Justice,HMCTS,10-Jun-14 ,610400-Debtors <1 year - Prepayments & Accrued Income,EZ999-Wales Region,CITY AND COUNTY OF SWANSEA,2879748,"94,260.09 ",Service charge payment
Ministry of Justice,HMCTS,10-Jun-14 ,610400-Debtors <1 year - Prepayments & Accrued Income,DZ999-South West Region,HAMPSHIRE COUNTY COUNCIL,2879902,"964,939.80 ",Service charge payment
Ministry of Justice,HMCTS,27-Jun-14 ,610400-Debtors <1 year - Prepayments & Accrued Income,CZ999-South East Region,JONES LANG LASALLE LTD,2899611,"45,132.50 ",Service charge payment
Ministry of Justice,HMCTS,27-Jun-14 ,610400-Debtors <1 year - Prepayments & Accrued Income,CZ999-South East Region,JONES LANG LASALLE LTD,2899611,"9,026.50 ",Service charge payment
Ministry of Justice,HMCTS,17-Jun-14 ,610400-Debtors <1 year - Prepayments & Accrued Income,CZ999-South East Region,CBGA ROBSON LLP,2887525,"25,716.89 ",Service charge payment
Ministry of Justice,HMCTS,17-Jun-14 ,610400-Debtors <1 year - Prepayments & Accrued Income,CZ999-South East Region,CBGA ROBSON LLP,2887525,"5,143.38 ",Service charge payment
Ministry of Justice,HMCTS,10-Jun-14 ,610400-Debtors <1 year - Prepayments & Accrued Income,DZ999-South West Region,LONDONDERRY ADMINISTRATIVE SERVICES,2880023,306.92 ,Service charge payment
Ministry of Justice,HMCTS,10-Jun-14 ,610400-Debtors <1 year - Prepayments & Accrued Income,DZ999-South West Region,LONDONDERRY ADMINISTRATIVE SERVICES,2880023,61.38 ,Service charge payment
Ministry of Justice,HMCTS,10-Jun-14 ,610400-Debtors <1 year - Prepayments & Accrued Income,EZ999-Wales Region,POLICE & CRIME COMMISSIONER FOR NORTH WALES,2880361,"25,571.45 ",Service charge payment
Ministry of Justice,HMCTS,10-Jun-14 ,610400-Debtors <1 year - Prepayments & Accrued Income,EZ999-Wales Region,POLICE & CRIME COMMISSIONER FOR NORTH WALES,2880361,"5,114.29 ",Service charge payment
Ministry of Justice,HMCTS,27-Jun-14 ,610400-Debtors <1 year - Prepayments & Accrued Income,FZ999-Midlands Region,BOND WOLFE ASSETS LTD,2899395,"13,399.05 ",Service charge payment
Ministry of Justice,HMCTS,20-Jun-14 ,610400-Debtors <1 year - Prepayments & Accrued Income,CZ999-South East Region,HERTFORDSHIRE CONSTABULARY,2892495,"5,864.20 ",Service charge payment
Ministry of Justice,HMCTS,20-Jun-14 ,610400-Debtors <1 year - Prepayments & Accrued Income,CZ999-South East Region,HERTFORDSHIRE CONSTABULARY,2892495,"-5,864.20 ",Service charge payment
Ministry of Justice,HMCTS,20-Jun-14 ,610400-Debtors <1 year - Prepayments & Accrued Income,CZ999-South East Region,HERTFORDSHIRE CONSTABULARY,2892495,"29,321.00 ",Service charge payment
Ministry of Justice,HMCTS,20-Jun-14 ,610400-Debtors <1 year - Prepayments & Accrued Income,EZ999-Wales Region,FLINTSHIRE COUNTY COUNCIL,2892434,"48,599.99 ",Service charge payment
Ministry of Justice,HMCTS,20-Jun-14 ,610400-Debtors <1 year - Prepayments & Accrued Income,FZ999-Midlands Region,WARWICKSHIRE POLICE AND CRIME COMMISSIONER,2892925,"598,755.56 ",Service charge payment
Ministry of Justice,HMCTS,20-Jun-14 ,610400-Debtors <1 year - Prepayments & Accrued Income,FZ999-Midlands Region,WARWICKSHIRE POLICE AND CRIME COMMISSIONER,2892925,"1,294,929.00 ",Service charge payment
Ministry of Justice,HMCTS,23-Jun-14 ,610400-Debtors <1 year - Prepayments & Accrued Income,GZ999-North West Region,CARDIFF COUNTY COUNCIL,2892999,"25,542.00 ",Rates Payment
Ministry of Justice,HMCTS,23-Jun-14 ,610400-Debtors <1 year - Prepayments & Accrued Income,EZ999-Wales Region,CARDIFF COUNTY COUNCIL,2892999,"37,603.50 ",Rates Payment
Ministry of Justice,HMCTS,23-Jun-14 ,610400-Debtors <1 year - Prepayments & Accrued Income,EZ999-Wales Region,CARLISLE CITY COUNCIL,2893000,"28,197.00 ",Rates Payment
Ministry of Justice,HMCTS,23-Jun-14 ,610400-Debtors <1 year - Prepayments & Accrued Income,CZ999-South East Region,LUTON BOROUGH COUNCIL,2893101,"35,186.00 ",Rates Payment
Ministry of Justice,HMCTS,23-Jun-14 ,610400-Debtors <1 year - Prepayments & Accrued Income,BZ999-London Region,ROYAL BOROUGH OF KINGSTON UPON THAMES,2893143,"96,886.00 ",Rates Payment
Ministry of Justice,HMCTS,23-Jun-14 ,610400-Debtors <1 year - Prepayments & Accrued Income,CZ999-South East Region,BASILDON BOROUGH COUNCIL,2892971,"37,114.00 ",Rates Payment
Ministry of Justice,HMCTS,23-Jun-14 ,610400-Debtors <1 year - Prepayments & Accrued Income,DZ999-South West Region,BOURNEMOUTH BOROUGH COUNCIL,2892986,"42,657.00 ",Rates Payment
Ministry of Justice,HMCTS,23-Jun-14 ,610400-Debtors <1 year - Prepayments & Accrued Income,HZ999-North East Region,SHEFFIELD CITY COUNCIL,2893152,"88,206.00 ",Rates Payment
Ministry of Justice,HMCTS,23-Jun-14 ,610400-Debtors <1 year - Prepayments & Accrued Income,HZ999-North East Region,SHEFFIELD CITY COUNCIL,2893152,"43,621.00 ",Rates Payment
Ministry of Justice,HMCTS,23-Jun-14 ,610400-Debtors <1 year - Prepayments & Accrued Income,BZ999-London Region,CITY OF LONDON,2893014,"67,804.00 ",Rates Payment
Ministry of Justice,HMCTS,23-Jun-14 ,610400-Debtors <1 year - Prepayments & Accrued Income,BZ999-London Region,CITY OF LONDON,2893014,"372,922.00 ",Rates Payment
Ministry of Justice,HMCTS,23-Jun-14 ,610400-Debtors <1 year - Prepayments & Accrued Income,CZ999-South East Region,CANTERBURY CITY COUNCIL,2892998,"40,729.00 ",Rates Payment
Ministry of Justice,HMCTS,23-Jun-14 ,610400-Debtors <1 year - Prepayments & Accrued Income,FZ999-Midlands Region,NORTHAMPTON BOROUGH COUNCIL,2893123,"40,970.00 ",Rates Payment
Ministry of Justice,HMCTS,03-Jun-14 ,610400-Debtors <1 year - Prepayments & Accrued Income,BZ999-London Region,LONDON BOROUGH OF ISLINGTON,2872334,"52,538.00 ",Rates Payment
Ministry of Justice,HMCTS,03-Jun-14 ,610400-Debtors <1 year - Prepayments & Accrued Income,BZ999-London Region,LONDON BOROUGH OF ISLINGTON,2872334,"52,538.00 ",Rates Payment
Ministry of Justice,HMCTS,03-Jun-14 ,610400-Debtors <1 year - Prepayments & Accrued Income,BZ999-London Region,LONDON BOROUGH OF ISLINGTON,2872334,"49,767.03 ",Rates Payment
Ministry of Justice,HMCTS,03-Jun-14 ,610400-Debtors <1 year - Prepayments & Accrued Income,BZ999-London Region,LONDON BOROUGH OF ISLINGTON,2872334,"52,538.00 ",Rates Payment
Ministry of Justice,HMCTS,03-Jun-14 ,610400-Debtors <1 year - Prepayments & Accrued Income,BZ999-London Region,LONDON BOROUGH OF ISLINGTON,2872334,"55,256.43 ",Rates Payment
Ministry of Justice,HMCTS,03-Jun-14 ,610400-Debtors <1 year - Prepayments & Accrued Income,BZ999-London Region,LONDON BOROUGH OF ISLINGTON,2872334,"52,538.00 ",Rates Payment
Ministry of Justice,HMCTS,03-Jun-14 ,610400-Debtors <1 year - Prepayments & Accrued Income,BZ999-London Region,LONDON BOROUGH OF ISLINGTON,2872334,"52,538.00 ",Rates Payment
Ministry of Justice,HMCTS,03-Jun-14 ,610400-Debtors <1 year - Prepayments & Accrued Income,BZ999-London Region,LONDON BOROUGH OF ISLINGTON,2872334,"52,538.00 ",Rates Payment
Ministry of Justice,HMCTS,03-Jun-14 ,610400-Debtors <1 year - Prepayments & Accrued Income,BZ999-London Region,LONDON BOROUGH OF ISLINGTON,2872334,"54,718.00 ",Rates Payment
Ministry of Justice,HMCTS,03-Jun-14 ,610400-Debtors <1 year - Prepayments & Accrued Income,BZ999-London Region,LONDON BOROUGH OF ISLINGTON,2872334,"54,718.00 ",Rates Payment
Ministry of Justice,HMCTS,03-Jun-14 ,610400-Debtors <1 year - Prepayments & Accrued Income,BZ999-London Region,LONDON BOROUGH OF ISLINGTON,2872334,"54,718.00 ",Rates Payment
Ministry of Justice,HMCTS,23-Jun-14 ,610400-Debtors <1 year - Prepayments & Accrued Income,BZ999-London Region,LONDON BOROUGH OF ISLINGTON,2893093,"54,718.00 ",Rates Payment
Ministry of Justice,HMCTS,03-Jun-14 ,610400-Debtors <1 year - Prepayments & Accrued Income,BZ999-London Region,LONDON BOROUGH OF ISLINGTON,2872334,"25,093.52 ",Rates Payment
Ministry of Justice,HMCTS,23-Jun-14 ,610400-Debtors <1 year - Prepayments & Accrued Income,FZ999-Midlands Region,STAFFORD BOROUGH COUNCIL,2893173,"27,474.00 ",Rates Payment
Ministry of Justice,HMCTS,23-Jun-14 ,610400-Debtors <1 year - Prepayments & Accrued Income,FZ999-Midlands Region,CITY OF LINCOLN COUNCIL,2893013,"31,571.00 ",Rates Payment
Ministry of Justice,HMCTS,23-Jun-14 ,610400-Debtors <1 year - Prepayments & Accrued Income,FZ999-Midlands Region,COVENTRY CITY COUNCIL,2893026,"26,510.00 ",Rates Payment
Ministry of Justice,HMCTS,23-Jun-14 ,610400-Debtors <1 year - Prepayments & Accrued Income,FZ999-Midlands Region,COVENTRY CITY COUNCIL,2893026,"29,161.00 ",Rates Payment
Ministry of Justice,HMCTS,23-Jun-14 ,610400-Debtors <1 year - Prepayments & Accrued Income,HZ999-North East Region,BRADFORD METROPOLITAN COUNCIL,2892988,"59,286.00 ",Rates Payment
Ministry of Justice,HMCTS,23-Jun-14 ,610400-Debtors <1 year - Prepayments & Accrued Income,CZ999-South East Region,MAIDSTONE BOROUGH COUNCIL,2893102,"64,106.00 ",Rates Payment
Ministry of Justice,HMCTS,23-Jun-14 ,610400-Debtors <1 year - Prepayments & Accrued Income,CZ999-South East Region,CAMBRIDGE CITY COUNCIL,2892996,"26,992.00 ",Rates Payment
Ministry of Justice,HMCTS,23-Jun-14 ,610400-Debtors <1 year - Prepayments & Accrued Income,BZ999-London Region,LONDON BOROUGH OF HAMMERSMITH & FULHAM,2894264,"40,913.00 ",Rates Payment
Ministry of Justice,HMCTS,23-Jun-14 ,610400-Debtors <1 year - Prepayments & Accrued Income,BZ999-London Region,LONDON BOROUGH OF HAMMERSMITH & FULHAM,2894264,"40,913.00 ",Rates Payment
Ministry of Justice,HMCTS,23-Jun-14 ,610400-Debtors <1 year - Prepayments & Accrued Income,BZ999-London Region,LONDON BOROUGH OF HAMMERSMITH & FULHAM,2894264,"40,872.09 ",Rates Payment
Ministry of Justice,HMCTS,23-Jun-14 ,610400-Debtors <1 year - Prepayments & Accrued Income,BZ999-London Region,LONDON BOROUGH OF HAMMERSMITH & FULHAM,2894264,"40,913.00 ",Rates Payment
Ministry of Justice,HMCTS,23-Jun-14 ,610400-Debtors <1 year - Prepayments & Accrued Income,BZ999-London Region,LONDON BOROUGH OF HAMMERSMITH & FULHAM,2894264,"40,913.00 ",Rates Payment
Ministry of Justice,HMCTS,23-Jun-14 ,610400-Debtors <1 year - Prepayments & Accrued Income,BZ999-London Region,LONDON BOROUGH OF HAMMERSMITH & FULHAM,2894264,"40,913.00 ",Rates Payment
Ministry of Justice,HMCTS,23-Jun-14 ,610400-Debtors <1 year - Prepayments & Accrued Income,BZ999-London Region,LONDON BOROUGH OF HAMMERSMITH & FULHAM,2894264,"40,913.00 ",Rates Payment
Ministry of Justice,HMCTS,23-Jun-14 ,610400-Debtors <1 year - Prepayments & Accrued Income,BZ999-London Region,LONDON BOROUGH OF BRENT,2893081,"39,658.00 ",Rates Payment
Ministry of Justice,HMCTS,23-Jun-14 ,610400-Debtors <1 year - Prepayments & Accrued Income,BZ999-London Region,LONDON BOROUGH OF REDBRIDGE,2893097,"49,447.00 ",Rates Payment
Ministry of Justice,HMCTS,23-Jun-14 ,610400-Debtors <1 year - Prepayments & Accrued Income,CZ999-South East Region,HUNTINGDONSHIRE DISTRICT COUNCIL,2893067,"26,269.00 ",Rates Payment
Ministry of Justice,HMCTS,03-Jun-14 ,610400-Debtors <1 year - Prepayments & Accrued Income,BZ999-London Region,LONDON BOROUGH OF ISLINGTON,2872334,"51,706.00 ",Rates Payment
Ministry of Justice,HMCTS,03-Jun-14 ,610400-Debtors <1 year - Prepayments & Accrued Income,BZ999-London Region,LONDON BOROUGH OF ISLINGTON,2872334,"51,706.00 ",Rates Payment
Ministry of Justice,HMCTS,03-Jun-14 ,610400-Debtors <1 year - Prepayments & Accrued Income,BZ999-London Region,LONDON BOROUGH OF ISLINGTON,2872334,"51,706.00 ",Rates Payment
Ministry of Justice,HMCTS,23-Jun-14 ,610400-Debtors <1 year - Prepayments & Accrued Income,BZ999-London Region,LONDON BOROUGH OF ISLINGTON,2893093,"51,706.00 ",Rates Payment
Ministry of Justice,HMCTS,03-Jun-14 ,610400-Debtors <1 year - Prepayments & Accrued Income,BZ999-London Region,CITY OF WESTMINSTER,2872332,"303,624.54 ",Rates Payment
Ministry of Justice,HMCTS,03-Jun-14 ,610400-Debtors <1 year - Prepayments & Accrued Income,BZ999-London Region,CITY OF WESTMINSTER,2872332,"320,530.00 ",Rates Payment
Ministry of Justice,HMCTS,03-Jun-14 ,610400-Debtors <1 year - Prepayments & Accrued Income,BZ999-London Region,CITY OF WESTMINSTER,2872332,"320,530.00 ",Rates Payment
Ministry of Justice,HMCTS,03-Jun-14 ,610400-Debtors <1 year - Prepayments & Accrued Income,BZ999-London Region,CITY OF WESTMINSTER,2872332,"337,114.93 ",Rates Payment
Ministry of Justice,HMCTS,03-Jun-14 ,610400-Debtors <1 year - Prepayments & Accrued Income,BZ999-London Region,CITY OF WESTMINSTER,2872332,"320,530.00 ",Rates Payment
Ministry of Justice,HMCTS,03-Jun-14 ,610400-Debtors <1 year - Prepayments & Accrued Income,BZ999-London Region,CITY OF WESTMINSTER,2872332,"320,530.00 ",Rates Payment
Ministry of Justice,HMCTS,03-Jun-14 ,610400-Debtors <1 year - Prepayments & Accrued Income,BZ999-London Region,CITY OF WESTMINSTER,2872332,"320,530.00 ",Rates Payment
Ministry of Justice,HMCTS,03-Jun-14 ,610400-Debtors <1 year - Prepayments & Accrued Income,BZ999-London Region,CITY OF WESTMINSTER,2872332,"320,530.00 ",Rates Payment
Ministry of Justice,HMCTS,03-Jun-14 ,610400-Debtors <1 year - Prepayments & Accrued Income,BZ999-London Region,CITY OF WESTMINSTER,2872332,"320,850.56 ",Rates Payment
Ministry of Justice,HMCTS,03-Jun-14 ,610400-Debtors <1 year - Prepayments & Accrued Income,BZ999-London Region,CITY OF WESTMINSTER,2872332,"320,530.00 ",Rates Payment
Ministry of Justice,HMCTS,03-Jun-14 ,610400-Debtors <1 year - Prepayments & Accrued Income,BZ999-London Region,CITY OF WESTMINSTER,2872332,"337,114.93 ",Rates Payment
Ministry of Justice,HMCTS,03-Jun-14 ,610400-Debtors <1 year - Prepayments & Accrued Income,BZ999-London Region,CITY OF WESTMINSTER,2872332,"67,962.00 ",Rates Payment
Ministry of Justice,HMCTS,03-Jun-14 ,610400-Debtors <1 year - Prepayments & Accrued Income,BZ999-London Region,CITY OF WESTMINSTER,2872332,"64,377.53 ",Rates Payment
Ministry of Justice,HMCTS,03-Jun-14 ,610400-Debtors <1 year - Prepayments & Accrued Income,BZ999-London Region,CITY OF WESTMINSTER,2872332,"71,478.51 ",Rates Payment
Ministry of Justice,HMCTS,03-Jun-14 ,610400-Debtors <1 year - Prepayments & Accrued Income,BZ999-London Region,CITY OF WESTMINSTER,2872332,"67,962.00 ",Rates Payment
Ministry of Justice,HMCTS,03-Jun-14 ,610400-Debtors <1 year - Prepayments & Accrued Income,BZ999-London Region,CITY OF WESTMINSTER,2872332,"67,962.00 ",Rates Payment
Ministry of Justice,HMCTS,03-Jun-14 ,610400-Debtors <1 year - Prepayments & Accrued Income,BZ999-London Region,CITY OF WESTMINSTER,2872332,"67,962.00 ",Rates Payment
Ministry of Justice,HMCTS,03-Jun-14 ,610400-Debtors <1 year - Prepayments & Accrued Income,BZ999-London Region,CITY OF WESTMINSTER,2872332,"67,962.00 ",Rates Payment
Ministry of Justice,HMCTS,03-Jun-14 ,610400-Debtors <1 year - Prepayments & Accrued Income,BZ999-London Region,CITY OF WESTMINSTER,2872332,"67,962.00 ",Rates Payment
Ministry of Justice,HMCTS,03-Jun-14 ,610400-Debtors <1 year - Prepayments & Accrued Income,BZ999-London Region,CITY OF WESTMINSTER,2872332,"68,029.92 ",Rates Payment
Ministry of Justice,HMCTS,03-Jun-14 ,610400-Debtors <1 year - Prepayments & Accrued Income,BZ999-London Region,CITY OF WESTMINSTER,2872332,"67,962.00 ",Rates Payment
Ministry of Justice,HMCTS,03-Jun-14 ,610400-Debtors <1 year - Prepayments & Accrued Income,BZ999-London Region,CITY OF WESTMINSTER,2872332,"71,478.51 ",Rates Payment
Ministry of Justice,HMCTS,23-Jun-14 ,610400-Debtors <1 year - Prepayments & Accrued Income,BZ999-London Region,CITY OF WESTMINSTER,2893016,"71,478.51 ",Rates Payment
Ministry of Justice,HMCTS,03-Jun-14 ,610400-Debtors <1 year - Prepayments & Accrued Income,BZ999-London Region,CITY OF WESTMINSTER,2872332,"35,186.00 ",Rates Payment
Ministry of Justice,HMCTS,03-Jun-14 ,610400-Debtors <1 year - Prepayments & Accrued Income,BZ999-London Region,CITY OF WESTMINSTER,2872332,"37,006.60 ",Rates Payment
Ministry of Justice,HMCTS,03-Jun-14 ,610400-Debtors <1 year - Prepayments & Accrued Income,BZ999-London Region,CITY OF WESTMINSTER,2872332,"35,186.00 ",Rates Payment
Ministry of Justice,HMCTS,03-Jun-14 ,610400-Debtors <1 year - Prepayments & Accrued Income,BZ999-London Region,CITY OF WESTMINSTER,2872332,"35,186.00 ",Rates Payment
Ministry of Justice,HMCTS,03-Jun-14 ,610400-Debtors <1 year - Prepayments & Accrued Income,BZ999-London Region,CITY OF WESTMINSTER,2872332,"35,186.00 ",Rates Payment
Ministry of Justice,HMCTS,03-Jun-14 ,610400-Debtors <1 year - Prepayments & Accrued Income,BZ999-London Region,CITY OF WESTMINSTER,2872332,"35,186.00 ",Rates Payment
Ministry of Justice,HMCTS,03-Jun-14 ,610400-Debtors <1 year - Prepayments & Accrued Income,BZ999-London Region,CITY OF WESTMINSTER,2872332,"35,186.00 ",Rates Payment
Ministry of Justice,HMCTS,03-Jun-14 ,610400-Debtors <1 year - Prepayments & Accrued Income,BZ999-London Region,CITY OF WESTMINSTER,2872332,"33,330.21 ",Rates Payment
Ministry of Justice,HMCTS,03-Jun-14 ,610400-Debtors <1 year - Prepayments & Accrued Income,BZ999-London Region,CITY OF WESTMINSTER,2872332,"35,186.00 ",Rates Payment
Ministry of Justice,HMCTS,03-Jun-14 ,610400-Debtors <1 year - Prepayments & Accrued Income,BZ999-London Region,CITY OF WESTMINSTER,2872332,"37,006.60 ",Rates Payment
Ministry of Justice,HMCTS,23-Jun-14 ,610400-Debtors <1 year - Prepayments & Accrued Income,BZ999-London Region,CITY OF WESTMINSTER,2893016,"37,006.60 ",Rates Payment
Ministry of Justice,HMCTS,03-Jun-14 ,610400-Debtors <1 year - Prepayments & Accrued Income,BZ999-London Region,CITY OF WESTMINSTER,2872332,"35,221.20 ",Rates Payment
Ministry of Justice,HMCTS,23-Jun-14 ,610400-Debtors <1 year - Prepayments & Accrued Income,FZ999-Midlands Region,DERBY CITY COUNCIL,2893034,"30,366.00 ",Rates Payment
Ministry of Justice,HMCTS,03-Jun-14 ,610400-Debtors <1 year - Prepayments & Accrued Income,BZ999-London Region,CITY OF WESTMINSTER,2872332,"40,006.00 ",Rates Payment
Ministry of Justice,HMCTS,03-Jun-14 ,610400-Debtors <1 year - Prepayments & Accrued Income,BZ999-London Region,CITY OF WESTMINSTER,2872332,"37,895.99 ",Rates Payment
Ministry of Justice,HMCTS,03-Jun-14 ,610400-Debtors <1 year - Prepayments & Accrued Income,BZ999-London Region,CITY OF WESTMINSTER,2872332,"42,076.00 ",Rates Payment
Ministry of Justice,HMCTS,03-Jun-14 ,610400-Debtors <1 year - Prepayments & Accrued Income,BZ999-London Region,CITY OF WESTMINSTER,2872332,"40,006.00 ",Rates Payment
Ministry of Justice,HMCTS,03-Jun-14 ,610400-Debtors <1 year - Prepayments & Accrued Income,BZ999-London Region,CITY OF WESTMINSTER,2872332,"40,006.00 ",Rates Payment
Ministry of Justice,HMCTS,03-Jun-14 ,610400-Debtors <1 year - Prepayments & Accrued Income,BZ999-London Region,CITY OF WESTMINSTER,2872332,"40,006.00 ",Rates Payment
Ministry of Justice,HMCTS,03-Jun-14 ,610400-Debtors <1 year - Prepayments & Accrued Income,BZ999-London Region,CITY OF WESTMINSTER,2872332,"40,006.00 ",Rates Payment
Ministry of Justice,HMCTS,03-Jun-14 ,610400-Debtors <1 year - Prepayments & Accrued Income,BZ999-London Region,CITY OF WESTMINSTER,2872332,"40,006.00 ",Rates Payment
Ministry of Justice,HMCTS,03-Jun-14 ,610400-Debtors <1 year - Prepayments & Accrued Income,BZ999-London Region,CITY OF WESTMINSTER,2872332,"40,046.00 ",Rates Payment
Ministry of Justice,HMCTS,03-Jun-14 ,610400-Debtors <1 year - Prepayments & Accrued Income,BZ999-London Region,CITY OF WESTMINSTER,2872332,"40,006.00 ",Rates Payment
Ministry of Justice,HMCTS,23-Jun-14 ,610400-Debtors <1 year - Prepayments & Accrued Income,BZ999-London Region,CITY OF WESTMINSTER,2893016,"42,076.00 ",Rates Payment
Ministry of Justice,HMCTS,03-Jun-14 ,610400-Debtors <1 year - Prepayments & Accrued Income,BZ999-London Region,CITY OF WESTMINSTER,2872332,"42,076.00 ",Rates Payment
Ministry of Justice,HMCTS,23-Jun-14 ,610400-Debtors <1 year - Prepayments & Accrued Income,BZ999-London Region,CITY OF WESTMINSTER,2893016,"73,794.00 ",Rates Payment
Ministry of Justice,HMCTS,23-Jun-14 ,610400-Debtors <1 year - Prepayments & Accrued Income,BZ999-London Region,LONDON BOROUGH OF CROYDON,2893084,"75,802.00 ",Rates Payment
Ministry of Justice,HMCTS,03-Jun-14 ,610400-Debtors <1 year - Prepayments & Accrued Income,BZ999-London Region,LONDON BOROUGH OF NEWHAM,2872335,"32,535.00 ",Rates Payment
Ministry of Justice,HMCTS,03-Jun-14 ,610400-Debtors <1 year - Prepayments & Accrued Income,BZ999-London Region,LONDON BOROUGH OF NEWHAM,2872335,"34,218.43 ",Rates Payment
Ministry of Justice,HMCTS,03-Jun-14 ,610400-Debtors <1 year - Prepayments & Accrued Income,BZ999-London Region,LONDON BOROUGH OF NEWHAM,2872335,"30,819.03 ",Rates Payment
Ministry of Justice,HMCTS,03-Jun-14 ,610400-Debtors <1 year - Prepayments & Accrued Income,BZ999-London Region,LONDON BOROUGH OF NEWHAM,2872335,"32,535.00 ",Rates Payment
Ministry of Justice,HMCTS,03-Jun-14 ,610400-Debtors <1 year - Prepayments & Accrued Income,BZ999-London Region,LONDON BOROUGH OF NEWHAM,2872335,"32,535.00 ",Rates Payment
Ministry of Justice,HMCTS,03-Jun-14 ,610400-Debtors <1 year - Prepayments & Accrued Income,BZ999-London Region,LONDON BOROUGH OF NEWHAM,2872335,"32,535.00 ",Rates Payment
Ministry of Justice,HMCTS,03-Jun-14 ,610400-Debtors <1 year - Prepayments & Accrued Income,BZ999-London Region,LONDON BOROUGH OF NEWHAM,2872335,"32,535.00 ",Rates Payment
Ministry of Justice,HMCTS,03-Jun-14 ,610400-Debtors <1 year - Prepayments & Accrued Income,BZ999-London Region,LONDON BOROUGH OF NEWHAM,2872335,"32,535.00 ",Rates Payment
Ministry of Justice,HMCTS,03-Jun-14 ,610400-Debtors <1 year - Prepayments & Accrued Income,BZ999-London Region,LONDON BOROUGH OF NEWHAM,2872335,"33,885.00 ",Rates Payment
Ministry of Justice,HMCTS,23-Jun-14 ,610400-Debtors <1 year - Prepayments & Accrued Income,BZ999-London Region,LONDON BOROUGH OF NEWHAM,2893096,"33,885.00 ",Rates Payment
Ministry of Justice,HMCTS,03-Jun-14 ,610400-Debtors <1 year - Prepayments & Accrued Income,BZ999-London Region,LONDON BOROUGH OF NEWHAM,2872335,"33,885.00 ",Rates Payment
Ministry of Justice,HMCTS,03-Jun-14 ,610400-Debtors <1 year - Prepayments & Accrued Income,BZ999-London Region,LONDON BOROUGH OF NEWHAM,2872335,"33,885.00 ",Rates Payment
Ministry of Justice,HMCTS,23-Jun-14 ,610400-Debtors <1 year - Prepayments & Accrued Income,BZ999-London Region,LONDON BOROUGH OF CROYDON,2893084,"33,383.00 ",Rates Payment
Ministry of Justice,HMCTS,26-Jun-14 ,610400-Debtors <1 year - Prepayments & Accrued Income,DZ999-South West Region,BRISTOL CITY COUNCIL,2898568,"77,120.00 ",Rates Payment
Ministry of Justice,HMCTS,25-Jun-14 ,610400-Debtors <1 year - Prepayments & Accrued Income,DZ999-South West Region,BRISTOL CITY COUNCIL,2897397,"77,120.00 ",Rates Payment
Ministry of Justice,HMCTS,26-Jun-14 ,610400-Debtors <1 year - Prepayments & Accrued Income,DZ999-South West Region,BRISTOL CITY COUNCIL,2898568,"53,020.00 ",Rates Payment
Ministry of Justice,HMCTS,25-Jun-14 ,610400-Debtors <1 year - Prepayments & Accrued Income,DZ999-South West Region,BRISTOL CITY COUNCIL,2897397,"53,020.00 ",Rates Payment
Ministry of Justice,HMCTS,25-Jun-14 ,610400-Debtors <1 year - Prepayments & Accrued Income,DZ999-South West Region,BRISTOL CITY COUNCIL,2897397,"49,164.00 ",Rates Payment
Ministry of Justice,HMCTS,26-Jun-14 ,610400-Debtors <1 year - Prepayments & Accrued Income,DZ999-South West Region,BRISTOL CITY COUNCIL,2898568,"49,164.00 ",Rates Payment
Ministry of Justice,HMCTS,23-Jun-14 ,610400-Debtors <1 year - Prepayments & Accrued Income,DZ999-South West Region,WILTSHIRE COUNCIL,2893200,"26,028.00 ",Rates Payment
Ministry of Justice,HMCTS,23-Jun-14 ,610400-Debtors <1 year - Prepayments & Accrued Income,FZ999-Midlands Region,WOLVERHAMPTON CITY COUNCIL,2893202,"37,596.00 ",Rates Payment
Ministry of Justice,HMCTS,23-Jun-14 ,610400-Debtors <1 year - Prepayments & Accrued Income,CZ999-South East Region,READING BOROUGH COUNCIL,2893136,"50,128.00 ",Rates Payment
Ministry of Justice,HMCTS,23-Jun-14 ,610400-Debtors <1 year - Prepayments & Accrued Income,DZ999-South West Region,SOUTHAMPTON CITY COUNCIL,2893167,"34,463.00 ",Rates Payment
Ministry of Justice,HMCTS,23-Jun-14 ,610400-Debtors <1 year - Prepayments & Accrued Income,DZ999-South West Region,SOUTHAMPTON CITY COUNCIL,2893167,"41,934.00 ",Rates Payment
Ministry of Justice,HMCTS,23-Jun-14 ,610400-Debtors <1 year - Prepayments & Accrued Income,FZ999-Midlands Region,CITY OF STOKE ON TRENT,2893015,"33,740.00 ",Rates Payment
Ministry of Justice,HMCTS,23-Jun-14 ,610400-Debtors <1 year - Prepayments & Accrued Income,FZ999-Midlands Region,BIRMINGHAM CITY COUNCIL,2892976,"31,089.00 ",Rates Payment
Ministry of Justice,HMCTS,23-Jun-14 ,610400-Debtors <1 year - Prepayments & Accrued Income,FZ999-Midlands Region,BIRMINGHAM CITY COUNCIL,2892976,"46,995.00 ",Rates Payment
Ministry of Justice,HMCTS,23-Jun-14 ,610400-Debtors <1 year - Prepayments & Accrued Income,FZ999-Midlands Region,BIRMINGHAM CITY COUNCIL,2892976,"157,614.00 ",Rates Payment
Ministry of Justice,HMCTS,23-Jun-14 ,610400-Debtors <1 year - Prepayments & Accrued Income,HZ999-North East Region,HULL CITY COUNCIL,2893066,"33,499.00 ",Rates Payment
Ministry of Justice,HMCTS,23-Jun-14 ,610400-Debtors <1 year - Prepayments & Accrued Income,FZ999-Midlands Region,NOTTINGHAM CITY COUNCIL,2893126,"38,801.00 ",Rates Payment
Ministry of Justice,HMCTS,23-Jun-14 ,610400-Debtors <1 year - Prepayments & Accrued Income,BZ999-London Region,LONDON BOROUGH OF SOUTHWARK,2893099,"48,694.00 ",Rates Payment
Ministry of Justice,HMCTS,23-Jun-14 ,610400-Debtors <1 year - Prepayments & Accrued Income,BZ999-London Region,LONDON BOROUGH OF SOUTHWARK,2893099,"115,460.00 ",Rates Payment
Ministry of Justice,HMCTS,23-Jun-14 ,610400-Debtors <1 year - Prepayments & Accrued Income,BZ999-London Region,LONDON BOROUGH OF SOUTHWARK,2893099,"93,372.00 ",Rates Payment
Ministry of Justice,HMCTS,23-Jun-14 ,610400-Debtors <1 year - Prepayments & Accrued Income,BZ999-London Region,LONDON BOROUGH OF SOUTHWARK,2893099,"34,889.00 ",Rates Payment
Ministry of Justice,HMCTS,23-Jun-14 ,610400-Debtors <1 year - Prepayments & Accrued Income,FZ999-Midlands Region,NOTTINGHAM CITY COUNCIL,2893126,"74,710.00 ",Rates Payment
Ministry of Justice,HMCTS,23-Jun-14 ,610400-Debtors <1 year - Prepayments & Accrued Income,BZ999-London Region,LONDON BOROUGH OF TOWER HAMLETS,2893100,"46,434.95 ",Rates Payment
Ministry of Justice,HMCTS,23-Jun-14 ,610400-Debtors <1 year - Prepayments & Accrued Income,CZ999-South East Region,COLCHESTER BOROUGH COUNCIL,2893018,"31,330.00 ",Rates Payment
Ministry of Justice,HMCTS,23-Jun-14 ,610400-Debtors <1 year - Prepayments & Accrued Income,BZ999-London Region,LONDON BOROUGH OF CAMDEN,2893083,"170,680.00 ",Rates Payment
Ministry of Justice,HMCTS,23-Jun-14 ,610400-Debtors <1 year - Prepayments & Accrued Income,BZ999-London Region,LONDON BOROUGH OF CAMDEN,2893083,"32,881.00 ",Rates Payment
Ministry of Justice,HMCTS,23-Jun-14 ,610400-Debtors <1 year - Prepayments & Accrued Income,BZ999-London Region,LONDON BOROUGH OF CAMDEN,2893083,"42,168.00 ",Rates Payment
Ministry of Justice,HMCTS,23-Jun-14 ,610400-Debtors <1 year - Prepayments & Accrued Income,BZ999-London Region,LONDON BOROUGH OF CAMDEN,2893083,"61,746.00 ",Rates Payment
Ministry of Justice,HMCTS,23-Jun-14 ,610400-Debtors <1 year - Prepayments & Accrued Income,HZ999-North East Region,NEWCASTLE UPON TYNE CITY COUNCIL,2893116,"71,336.00 ",Rates Payment
Ministry of Justice,HMCTS,23-Jun-14 ,610400-Debtors <1 year - Prepayments & Accrued Income,DZ999-South West Region,NORTH SOMERSET COUNCIL,2893121,"36,873.00 ",Rates Payment
Ministry of Justice,HMCTS,23-Jun-14 ,610400-Debtors <1 year - Prepayments & Accrued Income,CZ999-South East Region,CHELMSFORD BOROUGH COUNCIL,2893004,"33,499.00 ",Rates Payment
Ministry of Justice,HMCTS,23-Jun-14 ,610400-Debtors <1 year - Prepayments & Accrued Income,DZ999-South West Region,EXETER CITY COUNCIL,2893048,"45,067.00 ",Rates Payment
Ministry of Justice,HMCTS,23-Jun-14 ,610400-Debtors <1 year - Prepayments & Accrued Income,GZ999-North West Region,MANCHESTER CITY COUNCIL,2893103,"58,322.00 ",Rates Payment
Ministry of Justice,HMCTS,23-Jun-14 ,610400-Debtors <1 year - Prepayments & Accrued Income,CZ999-South East Region,CHELMSFORD BOROUGH COUNCIL,2893004,"29,643.00 ",Rates Payment
Ministry of Justice,HMCTS,03-Jun-14 ,610400-Debtors <1 year - Prepayments & Accrued Income,CZ999-South East Region,CHELMSFORD BOROUGH COUNCIL,2872330,"27,233.00 ",Rates Payment
Ministry of Justice,HMCTS,03-Jun-14 ,610400-Debtors <1 year - Prepayments & Accrued Income,CZ999-South East Region,CHELMSFORD BOROUGH COUNCIL,2872330,"27,233.00 ",Rates Payment
Ministry of Justice,HMCTS,23-Jun-14 ,610400-Debtors <1 year - Prepayments & Accrued Income,CZ999-South East Region,CHELMSFORD BOROUGH COUNCIL,2893004,"27,233.00 ",Rates Payment
Ministry of Justice,HMCTS,03-Jun-14 ,610400-Debtors <1 year - Prepayments & Accrued Income,CZ999-South East Region,CHELMSFORD BOROUGH COUNCIL,2872330,"27,233.00 ",Rates Payment
Ministry of Justice,HMCTS,23-Jun-14 ,610400-Debtors <1 year - Prepayments & Accrued Income,GZ999-North West Region,MANCHESTER CITY COUNCIL,2893103,"28,679.00 ",Rates Payment
Ministry of Justice,HMCTS,23-Jun-14 ,610400-Debtors <1 year - Prepayments & Accrued Income,GZ999-North West Region,MANCHESTER CITY COUNCIL,2893103,"57,358.00 ",Rates Payment
Ministry of Justice,HMCTS,23-Jun-14 ,610400-Debtors <1 year - Prepayments & Accrued Income,GZ999-North West Region,MANCHESTER CITY COUNCIL,2893103,"25,787.00 ",Rates Payment
Ministry of Justice,HMCTS,23-Jun-14 ,610400-Debtors <1 year - Prepayments & Accrued Income,GZ999-North West Region,MANCHESTER CITY COUNCIL,2893103,"253,050.00 ",Rates Payment
Ministry of Justice,HMCTS,23-Jun-14 ,610400-Debtors <1 year - Prepayments & Accrued Income,GZ999-North West Region,PRESTON CITY COUNCIL,2893135,"56,876.00 ",Rates Payment
Ministry of Justice,HMCTS,23-Jun-14 ,610400-Debtors <1 year - Prepayments & Accrued Income,CZ999-South East Region,ST ALBANS CITY & DISTRICT COUNCIL,2893170,"36,150.00 ",Rates Payment
Ministry of Justice,HMCTS,23-Jun-14 ,610400-Debtors <1 year - Prepayments & Accrued Income,CZ999-South East Region,OXFORD CITY COUNCIL,2893129,"29,884.00 ",Rates Payment
Ministry of Justice,HMCTS,23-Jun-14 ,610400-Debtors <1 year - Prepayments & Accrued Income,BZ999-London Region,LONDON BOROUGH OF BROMLEY,2893082,"33,634.00 ",Rates Payment
Ministry of Justice,HMCTS,23-Jun-14 ,610400-Debtors <1 year - Prepayments & Accrued Income,HZ999-North East Region,ROTHERHAM METROPOLITAN BOROUGH COUNCIL,2893142,"27,956.00 ",Rates Payment
Ministry of Justice,HMCTS,23-Jun-14 ,610400-Debtors <1 year - Prepayments & Accrued Income,BZ999-London Region,LONDON BOROUGH OF BARNET,2893079,"26,104.00 ",Rates Payment
Ministry of Justice,HMCTS,23-Jun-14 ,610400-Debtors <1 year - Prepayments & Accrued Income,DZ999-South West Region,WINCHESTER CITY COUNCIL,2893201,"37,596.00 ",Rates Payment
Ministry of Justice,HMCTS,23-Jun-14 ,610400-Debtors <1 year - Prepayments & Accrued Income,BZ999-London Region,LONDON BOROUGH OF HARINGEY,2893088,"59,738.00 ",Rates Payment
Ministry of Justice,HMCTS,23-Jun-14 ,610400-Debtors <1 year - Prepayments & Accrued Income,FZ999-Midlands Region,LEICESTER CITY COUNCIL,2893076,"34,463.00 ",Rates Payment
Ministry of Justice,HMCTS,23-Jun-14 ,610400-Debtors <1 year - Prepayments & Accrued Income,FZ999-Midlands Region,LEICESTER CITY COUNCIL,2893076,"26,510.00 ",Rates Payment
Ministry of Justice,HMCTS,23-Jun-14 ,610400-Debtors <1 year - Prepayments & Accrued Income,BZ999-London Region,LONDON BOROUGH OF MERTON,2893095,"25,351.00 ",Rates Payment
Ministry of Justice,HMCTS,23-Jun-14 ,610400-Debtors <1 year - Prepayments & Accrued Income,GZ999-North West Region,LIVERPOOL CITY COUNCIL,2893078,"139,780.00 ",Rates Payment
Ministry of Justice,HMCTS,23-Jun-14 ,610400-Debtors <1 year - Prepayments & Accrued Income,HZ999-North East Region,LEEDS CITY COUNCIL,2893075,"69,890.00 ",Rates Payment
Ministry of Justice,HMCTS,23-Jun-14 ,610400-Debtors <1 year - Prepayments & Accrued Income,BZ999-London Region,LONDON BOROUGH OF GREENWICH,2893087,"81,324.00 ",Rates Payment
Ministry of Justice,HMCTS,23-Jun-14 ,610400-Debtors <1 year - Prepayments & Accrued Income,GZ999-North West Region,LIVERPOOL CITY COUNCIL,2893078,"77,602.00 ",Rates Payment
Ministry of Justice,HMCTS,23-Jun-14 ,610400-Debtors <1 year - Prepayments & Accrued Income,HZ999-North East Region,LEEDS CITY COUNCIL,2893075,"53,984.00 ",Rates Payment
Ministry of Justice,HMCTS,23-Jun-14 ,610400-Debtors <1 year - Prepayments & Accrued Income,HZ999-North East Region,MIDDLESBROUGH COUNCIL,2893109,"67,962.00 ",Rates Payment
Ministry of Justice,HMCTS,23-Jun-14 ,610400-Debtors <1 year - Prepayments & Accrued Income,HZ999-North East Region,MIDDLESBROUGH COUNCIL,2893109,"32,053.00 ",Rates Payment
Ministry of Justice,HMCTS,23-Jun-14 ,610400-Debtors <1 year - Prepayments & Accrued Income,BZ999-London Region,LONDON BOROUGH OF HARROW,2893089,"51,455.00 ",Rates Payment
Ministry of Justice,HMCTS,23-Jun-14 ,610400-Debtors <1 year - Prepayments & Accrued Income,CZ999-South East Region,NORWICH CITY COUNCIL,2893125,"31,812.00 ",Rates Payment
Ministry of Justice,HMCTS,23-Jun-14 ,610400-Debtors <1 year - Prepayments & Accrued Income,BZ999-London Region,LONDON BOROUGH OF HOUNSLOW,2893092,"65,260.00 ",Rates Payment
Ministry of Justice,HMCTS,23-Jun-14 ,610400-Debtors <1 year - Prepayments & Accrued Income,DZ999-South West Region,PORTSMOUTH CITY COUNCIL,2893133,"41,934.00 ",Rates Payment
Ministry of Justice,HMCTS,03-Jun-14 ,611000-Debtors <1 year - Other Debtors,WW000-Balance Sheet,VALUATION OFFICE AGENCY,3117,"66,096.00 ",REFUND OF INVOICE 18000007392013(741&743)
Ministry of Justice,HMCTS,20-Jun-14 ,611000-Debtors <1 year - Other Debtors,WW000-Balance Sheet,VALUATION OFFICE AGENCY,2892241,"66,096.00 ",REFUND IN RESPECT OF PAYMENT MADE IN ERROR CN2870-1
Ministry of Justice,HMCTS,10-Jun-14 ,710200-Creditors < 1 year - Trade & Other Creditors,SM999-National Business Centres,CLSH MANAGEMENT LTD,2879755,"2,781.58 ",MOTO Occupancy cost
Ministry of Justice,HMCTS,27-Jun-14 ,710200-Creditors < 1 year - Trade & Other Creditors,FZ999-Midlands Region,BOND WOLFE ASSETS LTD,2899395,"9,067.30 ",MOTO Occupancy cost
Ministry of Justice,HMCTS,27-Jun-14 ,710200-Creditors < 1 year - Trade & Other Creditors,FZ999-Midlands Region,BOND WOLFE ASSETS LTD,2899395,"3,583.27 ",MOTO Occupancy cost
Ministry of Justice,HMCTS,16-Jun-14 ,710200-Creditors < 1 year - Trade & Other Creditors,BZ999-London Region,OFFICIAL RECEIVER#RIE41306715,168514,"37,500.00 ",Bankruptcy deposits made to the Official receiver.
